Workbook

Sheet Bantam
A1: =YTD!L15 -> Bantam
B2: Team | C2: Fish | D2: Member | E2: Show | F2: Non | G2: Number | H2: Number | I2: Number | J2: Lunker | K2: Species | L2: Gross | M2: Total | N2: Net | O2: Points | P2: Non Boater | Q2: # Non-
B3: Number | C3: Alone? | D3: Name | E3: Up? | F3: Boater? | G3: of LMB | H3: of SMB | I3: Dead | J3: Weight | K3: LMB/SMB | L3: Weight | M3: Caught | N3: Weight | O3: Awarded | P3: Weight | Q3: Boaters
A4: 1 | B4: 1 | C4: N | D4: =YTD!P15 -> Anthony | E4: Y | F4: Y | H4: 1 | L4: 0.73 | M4: =G4+H4 -> 1 | N4: =L4-(I4*0.2) -> 0.73 | O4: =IF($E4="N",35,IF($M4=0,30,RANK($N4,$N$4:$N$29,0))) -> 14 | P4: =IF(F4="Y",N4,0) -> 0.73 | Q4: =IF(E4="N",0,(IF(F4="N",0,1))) -> 1
A5: 2 | B5: 5 | C5: N | D5: =YTD!P16 -> Armand | E5: Y | F5: N | G5: 1 | H5: 4 | J5: 4.05 | K5: SMB | L5: 10.57 | M5: 5 | N5: 10.57 | O5: =IF($E5="N",35,IF($M5=0,30,RANK($N5,$N$4:$N$29,0))) -> 1 | P5: 0 | Q5: =IF(E5="N",0,(IF(F5="N",0,1))) -> 0
A6: 3 | B6: 2 | C6: N | D6: =YTD!P17 -> Dean | E6: Y | F6: N | G6: 4 | H6: 1 | L6: 10.28 | M6: =G6+H6 -> 5 | N6: =L6-(I6*0.2) -> 10.28 | O6: 2 | P6: =IF(F6="Y",N6,0) -> 0 | Q6: 0
A7: 4 | B7: 8 | C7: N | D7: =YTD!P18 -> Jack | E7: Y | F7: N | G7: 3 | H7: 2 | L7: 7.41 | M7: 5 | N7: 7.41 | O7: 5 | P7: 0 | Q7: 0
A8: 5 | B8: 3 | C8: N | D8: =YTD!P19 -> Jason | E8: Y | F8: N | G8: 1 | H8: 2 | L8: 7.62 | M8: =G8+H8 -> 3 | N8: =L8-(I8*0.2) -> 7.62 | O8: 4 | P8: =IF(F8="Y",N8,0) -> 0 | Q8: 0
A9: 6 | B9: 6 | C9: N | D9: =YTD!P20 -> Jim B | E9: Y | F9: Y | G9: 1 | J9: 3.7 | K9: LMB | L9: 3.7 | M9: 1 | N9: 3.7 | O9: 8 | P9: 3.7 | Q9: 1
A10: 7 | C10: N | D10: =YTD!P21 -> Kam | E10: N | F10: Y | M10: 0 | N10: 0 | O10: 35 | P10: 0 | Q10: 0
A11: 8 | B11: 4 | C11: N | D11: =YTD!P22 -> Kevin | E11: Y | F11: N | G11: 5 | L11: 7.8 | M11: =G11+H11 -> 5 | N11: =L11-(I11*0.2) -> 7.8 | O11: 3 | P11: =IF(F11="Y",N11,0) -> 0 | Q11: 0
A12: 9 | B12: 3 | C12: N | D12: =YTD!P23 -> Mike G | E12: Y | F12: Y | M12: 0 | N12: 0 | O12: 30 | P12: 0 | Q12: 1
A13: 10 | C13: N | D13: =YTD!P24 -> Morrie | E13: N | F13: N | M13: 0 | N13: 0 | O13: 35 | P13: 0 | Q13: 0
A14: 11 | B14: 4 | C14: N | D14: =YTD!P25 -> Oz | E14: Y | F14: Y | G14: 1 | L14: 1.42 | M14: 1 | N14: 1.42 | O14: 12 | P14: 1.42 | Q14: 1
A15: 12 | B15: 5 | C15: N | D15: =YTD!P26 -> Pete | E15: Y | F15: Y | H15: 4 | L15: 5.17 | M15: 4 | N15: 5.17 | O15: 6 | P15: 5.17 | Q15: 1
A16: 13 | B16: 1 | C16: N | D16: =YTD!P27 -> Rich B | E16: Y | F16: N | G16: 2 | L16: 2.75 | M16: 2 | N16: 2.75 | O16: 9 | P16: 0 | Q16: 0
A17: 14 | C17: N | D17: =YTD!P28 -> Rich M | E17: N | F17: Y | M17: 0 | N17: 0 | O17: 35 | P17: 0 | Q17: 0
A18: 15 | B18: 2 | C18: N | D18: =YTD!P29 -> Rich T | E18: Y | F18: Y | M18: =G18+H18 -> 0 | N18: =L18-(I18*0.2) -> 0 | O18: 30 | P18: 0 | Q18: 1
A19: 16 | B19: 8 | C19: N | D19: =YTD!P30 -> Ryan | E19: Y | F19: Y | G19: 1 | H19: 2 | L19: 3.91 | M19: 3 | N19: 3.91 | O19: 7 | P19: 3.91 | Q19: 1
A20: 17 | B20: 7 | C20: Y | D20: =YTD!P31 -> Scott | E20: Y | F20: N | G20: 1 | L20: 0.92 | M20: =G20+H20 -> 1 | N20: =L20-(I20*0.2) -> 0.92 | O20: 13 | P20: =IF(F20="Y",N20,0) -> 0 | Q20: 0
A21: 18 | B21: 9 | C21: N | D21: =YTD!P32 -> Steve D | E21: Y | F21: N | H21: 1 | L21: 2.06 | M21: 1 | N21: 2.06 | O21: 10 | P21: 0 | Q21: 0
A22: 19 | B22: 6 | C22: N | D22: =YTD!P33 -> Steve S | E22: Y | F22: N | G22: 1 | L22: 2.05 | M22: 1 | N22: 2.05 | O22: 11 | P22: 0 | Q22: 0
A23: 20 | B23: 9 | C23: N | D23: =YTD!P34 -> Tom | E23: Y | F23: Y | M23: =G23+H23 -> 0 | N23: =L23-(I23*0.2) -> 0 | O23: 30 | P23: 0 | Q23: 1
A24: 21 | C24: N | D24: =YTD!P35 -> X | E24: N | F24: =YTD!Q35 -> 0 | M24: 0 | N24: 0 | O24: 35 | P24: 0 | Q24: 0
A25: 22 | C25: N | D25: =YTD!P36 -> X | E25: N | F25: =YTD!Q36 -> 0 | M25: 0 | N25: 0 | O25: 35 | P25: 0 | Q25: 0
A26: 23 | C26: N | D26: =YTD!P37 -> X | E26: N | F26: =YTD!Q37 -> 0 | M26: 0 | N26: 0 | O26: 35 | P26: 0 | Q26: 0
A27: 24 | C27: N | D27: =YTD!P38 -> X | E27: N | F27: =YTD!Q38 -> 0 | M27: 0 | N27: 0 | O27: 35 | P27: 0 | Q27: 0
A28: 25 | C28: N | D28: =YTD!P39 -> X | E28: N | F28: =YTD!Q39 -> 0 | M28: =G28+H28 -> 0 | N28: =L28-(I28*0.2) -> 0 | O28: 35 | P28: =IF(F28="Y",N28,0) -> 0 | Q28: =IF(E28="N",0,(IF(F28="N",0,1))) -> 0
A29: 26 | C29: N | D29: =YTD!P40 -> X | E29: N | F29: =YTD!Q40 -> 0 | M29: =G29+H29 -> 0 | N29: =L29-(I29*0.2) -> 0 | O29: 35 | P29: =IF(F29="Y",N29,0) -> 0 | Q29: =IF(E29="N",0,(IF(F29="N",0,1))) -> 0
D30: Totals | E30: =COUNTIF(E4:E29,"Y") -> 17 | G30: =SUM(G4:G29) -> 21 | H30: =SUM(H4:H29) -> 17 | I30: =SUM(I4:I29) -> 0 | J30: =MAX(J4:J29) -> 4.05 | L30: =SUM(L4:L29) -> 66.39 | M30: =SUM(M4:M29) -> 38 | N30: =SUM(N4:N29) -> 66.39 | P30: =SUM(P4:P29) -> 14.93 | Q30: =SUM(Q4:Q29) -> 8
B31: Place | C31: Team # | D31: Partners | G31: Total Weight | I31: Place | J31: Team # | K31: Partners | N31: Total Weight | P31: NB Avg | Q31: =IF(Q30=0,"No Data",P30/Q30) -> 1.86625
B32: 1st | C32: =Teams!N4 -> 5 | D32: =VLOOKUP($C32,$B$4:$D$29,3,0) -> Armand | E32: & | F32: =IF($B$4:$B$29=20,"#N/A",IF(COUNTIF($B$4:$B$29,$C32)=1,"Alone",LOOKUP(2,1/($B$4:$B$29=$C32),$D$4:$D$29))) -> Pete | G32: =Teams!O4 -> 15.74 | I32: 4th | J32: =Teams!N7 -> 4 | K32: =VLOOKUP($J32,$B$4:$D$29,3,0) -> Kevin | L32: & | M32: =IF($B$4:$B$29=20,"#N/A",IF(COUNTIF($B$4:$B$29,$J32)=1,"Alone",LOOKUP(2,1/($B$4:$B$29=$J32),$D$4:$D$29))) -> Oz | N32: =Teams!O7 -> 9.22
B33: 2nd | C33: =Teams!N5 -> 8 | D33: =VLOOKUP($C33,$B$4:$D$29,3,0) -> Jack | E33: & | F33: =IF($B$4:$B$29=20,"#N/A",IF(COUNTIF($B$4:$B$29,$C33)=1,"Alone",LOOKUP(2,1/($B$4:$B$29=$C33),$D$4:$D$29))) -> Ryan | G33: =Teams!O5 -> 11.32 | I33: 5th | J33: =Teams!N8 -> 3 | K33: =VLOOKUP($J33,$B$4:$D$29,3,0) -> Jason | L33: & | M33: =IF($B$4:$B$29=20,"#N/A",IF(COUNTIF($B$4:$B$29,$J33)=1,"Alone",LOOKUP(2,1/($B$4:$B$29=$J33),$D$4:$D$29))) -> Mike G | N33: =Teams!O8 -> 7.62
B34: 3rd | C34: =Teams!N6 -> 2 | D34: =VLOOKUP($C34,$B$4:$D$29,3,0) -> Dean | E34: & | F34: =IF($B$4:$B$29=20,"#N/A",IF(COUNTIF($B$4:$B$29,$C34)=1,"Alone",LOOKUP(2,1/($B$4:$B$29=$C34),$D$4:$D$29))) -> Rich T | G34: =Teams!O6 -> 10.28 | I34: 6th | J34: =Teams!N9 -> 6 | K34: =VLOOKUP($J34,$B$4:$D$29,3,0) -> Jim B | L34: & | M34: =IF($B$4:$B$29=20,"#N/A",IF(COUNTIF($B$4:$B$29,$J34)=1,"Alone",LOOKUP(2,1/($B$4:$B$29=$J34),$D$4:$D$29))) -> Steve S | N34: =Teams!O9 -> 5.75

Sheet McDonough
A1: =YTD!L16 -> McDonough
B2: Team | C2: Fish | D2: Member | E2: Show | F2: Non | G2: Number | H2: Number | I2: Number | J2: Lunker | K2: Species | L2: Gross | M2: Total | N2: Net | O2: Points | P2: Non Boater | Q2: # Non-
B3: Number | C3: Alone? | D3: Name | E3: Up? | F3: Boater? | G3: of LMB | H3: of SMB | I3: Dead | J3: Weight | K3: LMB/SMB | L3: Weight | M3: Caught | N3: Weight | O3: Awarded | P3: Weight | Q3: Boaters
A4: 1 | B4: 8 | C4: N | D4: =YTD!P15 -> Anthony | E4: Y | F4: =YTD!Q15 -> Y | G4: 1 | H4: 1 | L4: 2.39 | M4: =G4+H4 -> 2 | N4: =L4-(I4*0.2) -> 2.39 | O4: =IF($E4="N",35,IF($M4=0,30,RANK($N4,$N$4:$N$29,0))) -> 15 | P4: =IF(F4="Y",N4,0) -> 2.39 | Q4: =IF(E4="N",0,(IF(F4="N",0,1))) -> 1
A5: 2 | B5: 7 | C5: N | D5: =YTD!P16 -> Armand | E5: Y | F5: =YTD!Q16 -> N | G5: 5 | L5: 9.42 | M5: 5 | N5: 9.42 | O5: =IF($E5="N",35,IF($M5=0,30,RANK($N5,$N$4:$N$29,0))) -> 3 | P5: 0 | Q5: =IF(E5="N",0,(IF(F5="N",0,1))) -> 0
A6: 3 | B6: 3 | C6: Y | D6: =YTD!P17 -> Dean | E6: Y | F6: =YTD!Q17 -> N | G6: 4 | H6: 1 | L6: 9.16 | M6: =G6+H6 -> 5 | N6: =L6-(I6*0.2) -> 9.16 | O6: 4 | P6: =IF(F6="Y",N6,0) -> 0 | Q6: 0
A7: 4 | B7: 9 | C7: N | D7: =YTD!P18 -> Jack | E7: Y | F7: =YTD!Q18 -> N | G7: 3 | H7: 2 | L7: 6.33 | M7: 5 | N7: 6.33 | O7: 12 | P7: 0 | Q7: 0
A8: 5 | B8: 5 | C8: N | D8: =YTD!P19 -> Jason | E8: Y | F8: =YTD!Q19 -> N | G8: 5 | L8: 9.71 | M8: =G8+H8 -> 5 | N8: =L8-(I8*0.2) -> 9.71 | O8: 2 | P8: =IF(F8="Y",N8,0) -> 0 | Q8: 0
A9: 6 | B9: 6 | C9: N | D9: =YTD!P20 -> Jim B | E9: Y | F9: =YTD!Q20 -> Y | G9: 5 | L9: 7.43 | M9: 5 | N9: 7.43 | O9: 10 | P9: 7.43 | Q9: 1
A10: 7 | C10: N | D10: =YTD!P21 -> Kam | E10: N | F10: =YTD!Q21 -> Y | M10: 0 | N10: 0 | O10: 35 | P10: 0 | Q10: 0
A11: 8 | B11: 8 | C11: N | D11: =YTD!P22 -> Kevin | E11: Y | F11: =YTD!Q22 -> N | G11: 3 | H11: 2 | L11: 7.67 | M11: =G11+H11 -> 5 | N11: =L11-(I11*0.2) -> 7.67 | O11: 9 | P11: =IF(F11="Y",N11,0) -> 0 | Q11: 0
A12: 9 | C12: N | D12: =YTD!P23 -> Mike G | E12: N | F12: =YTD!Q23 -> Y | M12: 0 | N12: 0 | O12: 35 | P12: 0 | Q12: 0
A13: 10 | C13: N | D13: =YTD!P24 -> Morrie | E13: N | F13: =YTD!Q24 -> N | M13: 0 | N13: 0 | O13: 35 | P13: 0 | Q13: 0
A14: 11 | B14: 5 | C14: N | D14: =YTD!P25 -> Oz | E14: Y | F14: =YTD!Q25 -> Y | H14: 1 | L14: 1.02 | M14: 1 | N14: 1.02 | O14: 16 | P14: 1.02 | Q14: 1
A15: 12 | B15: 9 | C15: N | D15: =YTD!P26 -> Pete | E15: Y | F15: =YTD!Q26 -> Y | G15: 3 | H15: 2 | L15: 7.98 | M15: 5 | N15: 7.98 | O15: 7 | P15: 7.98 | Q15: 1
A16: 13 | B16: 1 | C16: Y | D16: =YTD!P27 -> Rich B | E16: Y | F16: =YTD!Q27 -> N | G16: 2 | H16: 1 | L16: 4.76 | M16: 3 | N16: 4.76 | O16: 14 | P16: 0 | Q16: 0
A17: 14 | C17: N | D17: =YTD!P28 -> Rich M | E17: N | F17: =YTD!Q28 -> Y | M17: 0 | N17: 0 | O17: 35 | P17: 0 | Q17: 0
A18: 15 | B18: 4 | C18: N | D18: =YTD!P29 -> Rich T | E18: Y | F18: =YTD!Q29 -> Y | G18: 4 | H18: 1 | L18: 7.98 | M18: =G18+H18 -> 5 | N18: =L18-(I18*0.2) -> 7.98 | O18: 7 | P18: 7.98 | Q18: 1
A19: 16 | B19: 2 | C19: N | D19: =YTD!P30 -> Ryan | E19: Y | F19: =YTD!Q30 -> Y | G19: 4 | H19: 1 | J19: 3.97 | K19: LMB | L19: 10.46 | M19: 5 | N19: 10.46 | O19: 1 | P19: 10.46 | Q19: 1
A20: 17 | B20: 2 | C20: N | D20: =YTD!P31 -> Scott | E20: Y | F20: =YTD!Q31 -> N | G20: 5 | L20: 8.27 | M20: =G20+H20 -> 5 | N20: =L20-(I20*0.2) -> 8.27 | O20: 5 | P20: =IF(F20="Y",N20,0) -> 0 | Q20: 0
A21: 18 | B21: 4 | C21: N | D21: =YTD!P32 -> Steve D | E21: Y | F21: N | G21: 5 | L21: 8.23 | M21: 5 | N21: 8.23 | O21: 6 | P21: 0 | Q21: 0
A22: 19 | B22: 7 | C22: N | D22: =YTD!P33 -> Steve S | E22: Y | F22: Y | G22: 5 | L22: 6.7 | M22: 5 | N22: 6.7 | O22: 11 | P22: 6.7 | Q22: 1
A23: 20 | B23: 6 | C23: N | D23: =YTD!P34 -> Tom | E23: Y | F23: =YTD!Q34 -> N | G23: 4 | H23: 1 | I23: 1 | L23: 6.26 | M23: =G23+H23 -> 5 | N23: =L23-(I23*0.2) -> 6.06 | O23: 13 | P23: 0 | Q23: 0
A24: 21 | C24: N | D24: =YTD!P35 -> X | E24: N | F24: =YTD!Q35 -> 0 | M24: 0 | N24: 0 | O24: 35 | P24: 0 | Q24: 0
A25: 22 | C25: N | D25: =YTD!P36 -> X | E25: N | F25: =YTD!Q36 -> 0 | M25: 0 | N25: 0 | O25: 35 | P25: 0 | Q25: 0
A26: 23 | C26: N | D26: =YTD!P37 -> X | E26: N | F26: =YTD!Q37 -> 0 | M26: 0 | N26: 0 | O26: 35 | P26: 0 | Q26: 0
A27: 24 | C27: N | D27: =YTD!P38 -> X | E27: N | F27: =YTD!Q38 -> 0 | M27: 0 | N27: 0 | O27: 35 | P27: 0 | Q27: 0
A28: 25 | C28: N | D28: =YTD!P39 -> X | E28: N | F28: =YTD!Q39 -> 0 | M28: =G28+H28 -> 0 | N28: =L28-(I28*0.2) -> 0 | O28: 35 | P28: =IF(F28="Y",N28,0) -> 0 | Q28: =IF(E28="N",0,(IF(F28="N",0,1))) -> 0
A29: 26 | C29: N | D29: =YTD!P40 -> X | E29: N | F29: =YTD!Q40 -> 0 | M29: =G29+H29 -> 0 | N29: =L29-(I29*0.2) -> 0 | O29: 35 | P29: =IF(F29="Y",N29,0) -> 0 | Q29: =IF(E29="N",0,(IF(F29="N",0,1))) -> 0
D30: Totals | E30: =COUNTIF(E4:E29,"Y") -> 16 | G30: =SUM(G4:G29) -> 58 | H30: =SUM(H4:H29) -> 13 | I30: =SUM(I4:I29) -> 1 | J30: =MAX(J4:J29) -> 3.97 | L30: =SUM(L4:L29) -> 113.77 | M30: =SUM(M4:M29) -> 71 | N30: =SUM(N4:N29) -> 113.57 | P30: =SUM(P4:P29) -> 43.96 | Q30: =SUM(Q4:Q29) -> 7
B31: Place | C31: Team # | D31: Partners | G31: Total Weight | I31: Place | J31: Team # | K31: Partners | N31: Total Weight | P31: NB Avg | Q31: =IF(Q30=0,"No Data",P30/Q30) -> 6.28
B32: 1st | C32: =Teams!N34 -> 2 | D32: =VLOOKUP($C32,$B$4:$D$29,3,0) -> Ryan | E32: & | F32: =IF($B$4:$B$29=20,"#N/A",IF(COUNTIF($B$4:$B$29,$C32)=1,"Alone",LOOKUP(2,1/($B$4:$B$29=$C32),$D$4:$D$29))) -> Scott | G32: =Teams!O34 -> 18.73 | I32: 4th | J32: =Teams!N37 -> 3 | K32: =VLOOKUP($J32,$B$4:$D$29,3,0) -> Dean | L32: & | M32: =IF($B$4:$B$29=20,"#N/A",IF(COUNTIF($B$4:$B$29,$J32)=1,"Alone",LOOKUP(2,1/($B$4:$B$29=$J32),$D$4:$D$29))) -> Alone | N32: =Teams!O37 -> 15.44
B33: 2nd | C33: =Teams!N35 -> 4 | D33: =VLOOKUP($C33,$B$4:$D$29,3,0) -> Rich T | E33: & | F33: =IF($B$4:$B$29=20,"#N/A",IF(COUNTIF($B$4:$B$29,$C33)=1,"Alone",LOOKUP(2,1/($B$4:$B$29=$C33),$D$4:$D$29))) -> Steve D | G33: =Teams!O35 -> 16.21 | I33: 5th | J33: =Teams!N38 -> 9 | K33: =VLOOKUP($J33,$B$4:$D$29,3,0) -> Jack | L33: & | M33: =IF($B$4:$B$29=20,"#N/A",IF(COUNTIF($B$4:$B$29,$J33)=1,"Alone",LOOKUP(2,1/($B$4:$B$29=$J33),$D$4:$D$29))) -> Pete | N33: =Teams!O38 -> 14.31
B34: 3rd | C34: =Teams!N36 -> 7 | D34: =VLOOKUP($C34,$B$4:$D$29,3,0) -> Armand | E34: & | F34: =IF($B$4:$B$29=20,"#N/A",IF(COUNTIF($B$4:$B$29,$C34)=1,"Alone",LOOKUP(2,1/($B$4:$B$29=$C34),$D$4:$D$29))) -> Steve S | G34: =Teams!O36 -> 16.12 | I34: 6th | J34: =Teams!N39 -> 6 | K34: =VLOOKUP($J34,$B$4:$D$29,3,0) -> Jim B | L34: & | M34: =IF($B$4:$B$29=20,"#N/A",IF(COUNTIF($B$4:$B$29,$J34)=1,"Alone",LOOKUP(2,1/($B$4:$B$29=$J34),$D$4:$D$29))) -> Tom | N34: =Teams!O39 -> 13.49

Sheet Quaddick
A1: =YTD!L17 -> Quaddick
B2: Team | C2: Fish | D2: Member | E2: Show | F2: Non | G2: Number | H2: Number | I2: Number | J2: Lunker | K2: Species | L2: Gross | M2: Total | N2: Net | O2: Points | P2: Non Boater | Q2: # Non-
B3: Number | C3: Alone? | D3: Name | E3: Up? | F3: Boater? | G3: of LMB | H3: of SMB | I3: Dead | J3: Weight | K3: LMB/SMB | L3: Weight | M3: Caught | N3: Weight | O3: Awarded | P3: Weight | Q3: Boaters
A4: 1 | B4: 3 | C4: N | D4: =YTD!P15 -> Anthony | E4: Y | F4: Y | M4: =G4+H4 -> 0 | N4: =L4-(I4*0.2) -> 0 | O4: =IF($E4="N",35,IF($M4=0,30,RANK($N4,$N$4:$N$29,0))) -> 30 | P4: =IF(F4="Y",N4,0) -> 0 | Q4: =IF(E4="N",0,(IF(F4="N",0,1))) -> 1
A5: 2 | B5: 9 | C5: N | D5: =YTD!P16 -> Armand | E5: Y | F5: N | G5: 5 | L5: 8.56 | M5: 5 | N5: 8.56 | O5: =IF($E5="N",35,IF($M5=0,30,RANK($N5,$N$4:$N$29,0))) -> 5 | P5: 0 | Q5: =IF(E5="N",0,(IF(F5="N",0,1))) -> 0
A6: 3 | B6: 5 | C6: N | D6: =YTD!P17 -> Dean | E6: Y | F6: N | G6: 5 | I6: 1 | L6: 8.63 | M6: =G6+H6 -> 5 | N6: =L6-(I6*0.2) -> 8.43 | O6: 6 | P6: =IF(F6="Y",N6,0) -> 0 | Q6: 0
A7: 4 | B7: 6 | C7: N | D7: =YTD!P18 -> Jack | E7: Y | F7: N | G7: 5 | L7: 6.43 | M7: 5 | N7: 6.43 | O7: 9 | P7: 0 | Q7: 0
A8: 5 | B8: 3 | C8: N | D8: =YTD!P19 -> Jason | E8: Y | F8: N | G8: 3 | L8: 4.18 | M8: =G8+H8 -> 3 | N8: =L8-(I8*0.2) -> 4.18 | O8: 14 | P8: =IF(F8="Y",N8,0) -> 0 | Q8: 0
A9: 6 | B9: 7 | C9: N | D9: =YTD!P20 -> Jim B | E9: Y | F9: Y | G9: 2 | L9: 4.79 | M9: 2 | N9: 4.79 | O9: 11 | P9: 4.79 | Q9: 1
A10: 7 | C10: N | D10: =YTD!P21 -> Kam | E10: N | F10: Y | M10: 0 | N10: 0 | O10: 35 | P10: 0 | Q10: 0
A11: 8 | B11: 8 | C11: N | D11: =YTD!P22 -> Kevin | E11: Y | F11: Y | G11: 5 | I11: 1 | L11: 9.27 | M11: =G11+H11 -> 5 | N11: =L11-(I11*0.2) -> 9.07 | O11: 4 | P11: =IF(F11="Y",N11,0) -> 9.07 | Q11: 1
A12: 9 | B12: 1 | C12: N | D12: =YTD!P23 -> Mike G | E12: Y | F12: Y | G12: 3 | L12: 4.75 | M12: 3 | N12: 4.75 | O12: 12 | P12: 4.75 | Q12: 1
A13: 10 | B13: 8 | C13: N | D13: =YTD!P24 -> Morrie | E13: Y | F13: N | G13: 3 | L13: 3.72 | M13: 3 | N13: 3.72 | O13: 15 | P13: 0 | Q13: 0
A14: 11 | B14: 5 | C14: N | D14: =YTD!P25 -> Oz | E14: Y | F14: Y | G14: 1 | L14: 1.87 | M14: 1 | N14: 1.87 | O14: 17 | P14: 1.87 | Q14: 1
A15: 12 | B15: 2 | C15: N | D15: =YTD!P26 -> Pete | E15: Y | F15: Y | G15: 3 | L15: 4.29 | M15: 3 | N15: 4.29 | O15: 13 | P15: 4.29 | Q15: 1
A16: 13 | C16: N | D16: =YTD!P27 -> Rich B | E16: N | F16: N | M16: 0 | N16: 0 | O16: 35 | P16: 0 | Q16: 0
A17: 14 | B17: 6 | C17: N | D17: =YTD!P28 -> Rich M | E17: Y | F17: Y | G17: 2 | L17: 3.47 | M17: 2 | N17: 3.47 | O17: 16 | P17: 3.47 | Q17: 1
A18: 15 | B18: 4 | C18: N | D18: =YTD!P29 -> Rich T | E18: Y | F18: Y | G18: 5 | L18: 8.41 | M18: =G18+H18 -> 5 | N18: =L18-(I18*0.2) -> 8.41 | O18: 7 | P18: 8.41 | Q18: 1
A19: 16 | B19: 9 | C19: N | D19: =YTD!P30 -> Ryan | E19: Y | F19: Y | G19: 2 | L19: 5.79 | M19: 2 | N19: 5.79 | O19: 10 | P19: 5.79 | Q19: 1
A20: 17 | B20: 2 | C20: N | D20: =YTD!P31 -> Scott | E20: Y | F20: N | G20: 5 | L20: 9.85 | M20: =G20+H20 -> 5 | N20: =L20-(I20*0.2) -> 9.85 | O20: 2 | P20: =IF(F20="Y",N20,0) -> 0 | Q20: 0
A21: 18 | B21: 1 | C21: N | D21: =YTD!P32 -> Steve D | E21: Y | F21: N | G21: 5 | L21: 9.86 | M21: 5 | N21: 9.86 | O21: 1 | P21: 0 | Q21: 0
A22: 19 | B22: 4 | C22: N | D22: =YTD!P33 -> Steve S | E22: Y | F22: N | G22: 5 | L22: 9.13 | M22: 5 | N22: 9.13 | O22: 3 | P22: 0 | Q22: 0
A23: 20 | B23: 7 | C23: N | D23: =YTD!P34 -> Tom | E23: Y | F23: N | G23: 2 | J23: 5.36 | K23: lmb | L23: 7.21 | M23: =G23+H23 -> 2 | N23: =L23-(I23*0.2) -> 7.21 | O23: 8 | P23: 0 | Q23: 0
A24: 21 | C24: N | D24: =YTD!P35 -> X | E24: N | F24: N | M24: 0 | N24: 0 | O24: 35 | P24: 0 | Q24: 0
A25: 22 | C25: N | D25: =YTD!P36 -> X | E25: N | F25: N | M25: 0 | N25: 0 | O25: 35 | P25: 0 | Q25: 0
A26: 23 | C26: N | D26: =YTD!P37 -> X | E26: N | F26: N | M26: 0 | N26: 0 | O26: 35 | P26: 0 | Q26: 0
A27: 24 | C27: N | D27: =YTD!P38 -> X | E27: N | F27: N | M27: 0 | N27: 0 | O27: 35 | P27: 0 | Q27: 0
A28: 25 | C28: N | D28: =YTD!P39 -> X | E28: N | F28: N | M28: =G28+H28 -> 0 | N28: =L28-(I28*0.2) -> 0 | O28: 35 | P28: =IF(F28="Y",N28,0) -> 0 | Q28: =IF(E28="N",0,(IF(F28="N",0,1))) -> 0
A29: 26 | C29: N | D29: =YTD!P40 -> X | E29: N | F29: N | M29: =G29+H29 -> 0 | N29: =L29-(I29*0.2) -> 0 | O29: 35 | P29: =IF(F29="Y",N29,0) -> 0 | Q29: =IF(E29="N",0,(IF(F29="N",0,1))) -> 0
D30: Totals | E30: =COUNTIF(E4:E29,"Y") -> 18 | G30: =SUM(G4:G29) -> 61 | H30: =SUM(H4:H29) -> 0 | I30: =SUM(I4:I29) -> 2 | J30: =MAX(J4:J29) -> 5.36 | L30: =SUM(L4:L29) -> 110.21 | M30: =SUM(M4:M29) -> 61 | N30: =SUM(N4:N29) -> 109.81 | P30: =SUM(P4:P29) -> 42.44 | Q30: =SUM(Q4:Q29) -> 9
B31: Place | C31: Team # | D31: Partners | G31: Total Weight | I31: Place | J31: Team # | K31: Partners | N31: Total Weight | P31: NB Avg | Q31: =IF(Q30=0,"No Data",P30/Q30) -> 4.715555556
B32: 1st | C32: =Teams!N64 -> 4 | D32: =VLOOKUP($C32,$B$4:$D$29,3,0) -> Rich T | E32: & | F32: =IF($B$4:$B$29=20,"#N/A",IF(COUNTIF($B$4:$B$29,$C32)=1,"Alone",LOOKUP(2,1/($B$4:$B$29=$C32),$D$4:$D$29))) -> Steve S | G32: =Teams!O64 -> 17.54 | I32: 4th | J32: =Teams!N67 -> 2 | K32: =VLOOKUP($J32,$B$4:$D$29,3,0) -> Pete | L32: & | M32: =IF($B$4:$B$29=20,"#N/A",IF(COUNTIF($B$4:$B$29,$J32)=1,"Alone",LOOKUP(2,1/($B$4:$B$29=$J32),$D$4:$D$29))) -> Scott | N32: =Teams!O67 -> 14.14
B33: 2nd | C33: =Teams!N65 -> 1 | D33: =VLOOKUP($C33,$B$4:$D$29,3,0) -> Mike G | E33: & | F33: =IF($B$4:$B$29=20,"#N/A",IF(COUNTIF($B$4:$B$29,$C33)=1,"Alone",LOOKUP(2,1/($B$4:$B$29=$C33),$D$4:$D$29))) -> Steve D | G33: =Teams!O65 -> 14.61 | I33: 5th | J33: =Teams!N68 -> 8 | K33: =VLOOKUP($J33,$B$4:$D$29,3,0) -> Kevin | L33: & | M33: =IF($B$4:$B$29=20,"#N/A",IF(COUNTIF($B$4:$B$29,$J33)=1,"Alone",LOOKUP(2,1/($B$4:$B$29=$J33),$D$4:$D$29))) -> Morrie | N33: =Teams!O68 -> 12.79
B34: 3rd | C34: =Teams!N66 -> 9 | D34: =VLOOKUP($C34,$B$4:$D$29,3,0) -> Armand | E34: & | F34: =IF($B$4:$B$29=20,"#N/A",IF(COUNTIF($B$4:$B$29,$C34)=1,"Alone",LOOKUP(2,1/($B$4:$B$29=$C34),$D$4:$D$29))) -> Ryan | G34: =Teams!O66 -> 14.35 | I34: 6th | J34: =Teams!N69 -> 7 | K34: =VLOOKUP($J34,$B$4:$D$29,3,0) -> Jim B | L34: & | M34: =IF($B$4:$B$29=20,"#N/A",IF(COUNTIF($B$4:$B$29,$J34)=1,"Alone",LOOKUP(2,1/($B$4:$B$29=$J34),$D$4:$D$29))) -> Tom | N34: =Teams!O69 -> 12

Sheet Candlewood
A1: =YTD!L18 -> Candlewood
B2: Team | C2: Fish | D2: Member | E2: Show | F2: Non | G2: Number | H2: Number | I2: Number | J2: Lunker | K2: Species | L2: Gross | M2: Total | N2: Net | O2: Points | P2: Non Boater | Q2: # Non-
B3: Number | C3: Alone? | D3: Name | E3: Up? | F3: Boater? | G3: of LMB | H3: of SMB | I3: Dead | J3: Weight | K3: LMB/SMB | L3: Weight | M3: Caught | N3: Weight | O3: Awarded | P3: Weight | Q3: Boaters
A4: 1 | B4: 5 | C4: N | D4: =YTD!P15 -> Anthony | E4: Y | F4: =YTD!Q15 -> Y | G4: 1 | L4: 1.83 | M4: =G4+H4 -> 1 | N4: =L4-(I4*0.2) -> 1.83 | O4: =IF($E4="N",35,IF($M4=0,30,RANK($N4,$N$4:$N$29,0))) -> 16 | P4: =IF(F4="Y",N4,0) -> 1.83 | Q4: =IF(E4="N",0,(IF(F4="N",0,1))) -> 1
A5: 2 | C5: N | D5: =YTD!P16 -> Armand | E5: N | F5: =YTD!Q16 -> N | M5: 0 | N5: 0 | O5: =IF($E5="N",35,IF($M5=0,30,RANK($N5,$N$4:$N$29,0))) -> 35 | P5: 0 | Q5: =IF(E5="N",0,(IF(F5="N",0,1))) -> 0
A6: 3 | B6: 5 | C6: N | D6: =YTD!P17 -> Dean | E6: Y | F6: =YTD!Q17 -> N | G6: 5 | J6: 3.91 | K6: LMB | L6: 14.7 | M6: =G6+H6 -> 5 | N6: =L6-(I6*0.2) -> 14.7 | O6: 1 | P6: =IF(F6="Y",N6,0) -> 0 | Q6: 0
A7: 4 | B7: 1 | C7: N | D7: =YTD!P18 -> Jack | E7: Y | F7: =YTD!Q18 -> N | G7: 2 | H7: 3 | L7: 9.37 | M7: 5 | N7: 9.37 | O7: 7 | P7: 0 | Q7: 0
A8: 5 | B8: 6 | C8: N | D8: =YTD!P19 -> Jason | E8: Y | F8: =YTD!Q19 -> N | G8: 1 | H8: 1 | L8: 3.54 | M8: =G8+H8 -> 2 | N8: =L8-(I8*0.2) -> 3.54 | O8: 15 | P8: =IF(F8="Y",N8,0) -> 0 | Q8: 0
A9: 6 | C9: N | D9: =YTD!P20 -> Jim B | E9: N | F9: =YTD!Q20 -> Y | M9: 0 | N9: 0 | O9: 35 | P9: 0 | Q9: 0
A10: 7 | C10: N | D10: =YTD!P21 -> Kam | E10: N | F10: =YTD!Q21 -> Y | M10: 0 | N10: 0 | O10: 35 | P10: 0 | Q10: 0
A11: 8 | B11: 9 | C11: N | D11: =YTD!P22 -> Kevin | E11: Y | F11: =YTD!Q22 -> N | G11: 4 | H11: 1 | L11: 9.52 | M11: =G11+H11 -> 5 | N11: =L11-(I11*0.2) -> 9.52 | O11: 6 | P11: =IF(F11="Y",N11,0) -> 0 | Q11: 0
A12: 9 | B12: 2 | C12: N | D12: =YTD!P23 -> Mike G | E12: Y | F12: =YTD!Q23 -> Y | G12: 3 | L12: 5.4 | M12: 3 | N12: 5.4 | O12: 13 | P12: 5.4 | Q12: 1
A13: 10 | C13: N | D13: =YTD!P24 -> Morrie | E13: N | F13: =YTD!Q24 -> N | M13: 0 | N13: 0 | O13: 35 | P13: 0 | Q13: 0
A14: 11 | B14: 8 | C14: N | D14: =YTD!P25 -> Oz | E14: Y | F14: =YTD!Q25 -> Y | G14: 2 | H14: 1 | J14: 3.28 | K14: LMB | L14: 8.09 | M14: 3 | N14: 8.09 | O14: 9 | P14: 8.09 | Q14: 1
A15: 12 | B15: 4 | C15: N | D15: =YTD!P26 -> Pete | E15: Y | F15: =YTD!Q26 -> Y | G15: 4 | H15: 1 | L15: 9.16 | M15: 5 | N15: 9.16 | O15: 8 | P15: 9.16 | Q15: 1
A16: 13 | B16: 4 | C16: N | D16: =YTD!P27 -> Rich B | E16: Y | F16: =YTD!Q27 -> N | G16: 2 | H16: 1 | L16: 6.34 | M16: 3 | N16: 6.34 | O16: 12 | P16: 0 | Q16: 0
A17: 14 | B17: 6 | C17: N | D17: =YTD!P28 -> Rich M | E17: Y | F17: =YTD!Q28 -> Y | G17: 3 | H17: 1 | L17: 6.93 | M17: 4 | N17: 6.93 | O17: 10 | P17: 6.93 | Q17: 1
A18: 15 | B18: 1 | C18: N | D18: =YTD!P29 -> Rich T | E18: Y | F18: =YTD!Q29 -> Y | G18: 2 | H18: 3 | J18: 3.3 | K18: LMB | L18: 12.64 | M18: =G18+H18 -> 5 | N18: =L18-(I18*0.2) -> 12.64 | O18: 3 | P18: 12.64 | Q18: 1
A19: 16 | B19: 9 | C19: N | D19: =YTD!P30 -> Ryan | E19: Y | F19: =YTD!Q30 -> Y | G19: 5 | I19: 1 | J19: 3.37 | K19: LMB | L19: 10.97 | M19: 5 | N19: 10.77 | O19: 4 | P19: 10.77 | Q19: 1
A20: 17 | B20: 3 | C20: Y | D20: =YTD!P31 -> Scott | E20: Y | F20: =YTD!Q31 -> N | G20: 4 | L20: 6.72 | M20: =G20+H20 -> 4 | N20: =L20-(I20*0.2) -> 6.72 | O20: 11 | P20: =IF(F20="Y",N20,0) -> 0 | Q20: 0
A21: 18 | B21: 8 | C21: N | D21: =YTD!P32 -> Steve D | E21: Y | F21: =YTD!Q32 -> N | G21: 3 | H21: 2 | L21: 13.27 | M21: 5 | N21: 13.27 | O21: 2 | P21: 0 | Q21: 0
A22: 19 | B22: 2 | C22: N | D22: =YTD!P33 -> Steve S | E22: Y | F22: =YTD!Q33 -> N | G22: 3 | L22: 4.57 | M22: 3 | N22: 4.57 | O22: 14 | P22: 0 | Q22: 0
A23: 20 | B23: 7 | C23: Y | D23: =YTD!P34 -> Tom | E23: Y | F23: =YTD!Q34 -> N | G23: 3 | H23: 2 | I23: 1 | L23: 9.75 | M23: =G23+H23 -> 5 | N23: =L23-(I23*0.2) -> 9.55 | O23: 5 | P23: 0 | Q23: 0
A24: 21 | C24: N | D24: =YTD!P35 -> X | E24: N | M24: 0 | N24: 0 | O24: 35 | P24: 0 | Q24: 0
A25: 22 | C25: N | D25: =YTD!P36 -> X | E25: N | M25: 0 | N25: 0 | O25: 35 | P25: 0 | Q25: 0
A26: 23 | C26: N | D26: =YTD!P37 -> X | E26: N | M26: 0 | N26: 0 | O26: 35 | P26: 0 | Q26: 0
A27: 24 | C27: N | D27: =YTD!P38 -> X | E27: N | M27: 0 | N27: 0 | O27: 35 | P27: 0 | Q27: 0
A28: 25 | C28: N | D28: =YTD!P39 -> X | E28: N | M28: =G28+H28 -> 0 | N28: =L28-(I28*0.2) -> 0 | O28: 35 | P28: =IF(F28="Y",N28,0) -> 0 | Q28: =IF(E28="N",0,(IF(F28="N",0,1))) -> 0
A29: 26 | C29: N | D29: =YTD!P40 -> X | E29: N | M29: =G29+H29 -> 0 | N29: =L29-(I29*0.2) -> 0 | O29: 35 | P29: =IF(F29="Y",N29,0) -> 0 | Q29: =IF(E29="N",0,(IF(F29="N",0,1))) -> 0
D30: Totals | E30: =COUNTIF(E4:E29,"Y") -> 16 | G30: =SUM(G4:G29) -> 47 | H30: =SUM(H4:H29) -> 16 | I30: =SUM(I4:I29) -> 2 | J30: =MAX(J4:J29) -> 3.91 | L30: =SUM(L4:L29) -> 132.8 | M30: =SUM(M4:M29) -> 63 | N30: =SUM(N4:N29) -> 132.4 | P30: =SUM(P4:P29) -> 54.82 | Q30: =SUM(Q4:Q29) -> 7
B31: Place | C31: Team # | D31: Partners | G31: Total Weight | I31: Place | J31: Team # | K31: Partners | N31: Total Weight | P31: NB Avg | Q31: =IF(Q30=0,"No Data",P30/Q30) -> 7.831428571
B32: 1st | C32: =Teams!$N94 -> 1 | D32: =VLOOKUP($C32,$B$4:$D$29,3,0) -> Jack | E32: & | F32: =IF($B$4:$B$29=20,"#N/A",IF(COUNTIF($B$4:$B$29,$C32)=1,"Alone",LOOKUP(2,1/($B$4:$B$29=$C32),$D$4:$D$29))) -> Rich T | G32: =Teams!O94 -> 22.01 | I32: 4th | J32: =Teams!$N97 -> 7 | K32: =VLOOKUP($J32,$B$4:$D$29,3,0) -> Tom | L32: & | M32: =IF($B$4:$B$29=20,"#N/A",IF(COUNTIF($B$4:$B$29,$J32)=1,"Alone",LOOKUP(2,1/($B$4:$B$29=$J32),$D$4:$D$29))) -> Alone | N32: =Teams!O97 -> 17.38142857
B33: 2nd | C33: =Teams!$N95 -> 8 | D33: =VLOOKUP($C33,$B$4:$D$29,3,0) -> Oz | E33: & | F33: =IF($B$4:$B$29=20,"#N/A",IF(COUNTIF($B$4:$B$29,$C33)=1,"Alone",LOOKUP(2,1/($B$4:$B$29=$C33),$D$4:$D$29))) -> Steve D | G33: =Teams!O95 -> 21.36 | I33: 5th | J33: =Teams!$N98 -> 5 | K33: =VLOOKUP($J33,$B$4:$D$29,3,0) -> Anthony | L33: & | M33: =IF($B$4:$B$29=20,"#N/A",IF(COUNTIF($B$4:$B$29,$J33)=1,"Alone",LOOKUP(2,1/($B$4:$B$29=$J33),$D$4:$D$29))) -> Dean | N33: =Teams!O98 -> 16.53
B34: 3rd | C34: =Teams!$N96 -> 9 | D34: =VLOOKUP($C34,$B$4:$D$29,3,0) -> Kevin | E34: & | F34: =IF($B$4:$B$29=20,"#N/A",IF(COUNTIF($B$4:$B$29,$C34)=1,"Alone",LOOKUP(2,1/($B$4:$B$29=$C34),$D$4:$D$29))) -> Ryan | G34: =Teams!O96 -> 20.29 | I34: 6th | J34: =Teams!$N99 -> 4 | K34: =VLOOKUP($J34,$B$4:$D$29,3,0) -> Pete | L34: & | M34: =IF($B$4:$B$29=20,"#N/A",IF(COUNTIF($B$4:$B$29,$J34)=1,"Alone",LOOKUP(2,1/($B$4:$B$29=$J34),$D$4:$D$29))) -> Rich B | N34: =Teams!O99 -> 15.5

Sheet Lillinonah
A1: =YTD!L19 -> Lillinonah
B2: Team | C2: Fish | D2: Member | E2: Show | F2: Non | G2: Number | H2: Number | I2: Number | J2: Lunker | K2: Species | L2: Gross | M2: Total | N2: Net | O2: Points | P2: Non Boater | Q2: # Non-
B3: Number | C3: Alone? | D3: Name | E3: Up? | F3: Boater? | G3: of LMB | H3: of SMB | I3: Dead | J3: Weight | K3: LMB/SMB | L3: Weight | M3: Caught | N3: Weight | O3: Awarded | P3: Weight | Q3: Boaters
A4: 1 | C4: N | D4: =YTD!P15 -> Anthony | E4: N | F4: =YTD!Q15 -> Y | M4: =G4+H4 -> 0 | N4: =L4-(I4*0.2) -> 0 | O4: =IF($E4="N",35,IF($M4=0,30,RANK($N4,$N$4:$N$29,0))) -> 35 | P4: =IF(F4="Y",N4,0) -> 0 | Q4: =IF(E4="N",0,(IF(F4="N",0,1))) -> 0
A5: 2 | B5: 1 | C5: N | D5: =YTD!P16 -> Armand | E5: Y | F5: Y | G5: 3 | H5: 2 | I5: 2 | L5: 6.9 | M5: 5 | N5: 6.5 | O5: =IF($E5="N",35,IF($M5=0,30,RANK($N5,$N$4:$N$29,0))) -> 6 | P5: 6.5 | Q5: =IF(E5="N",0,(IF(F5="N",0,1))) -> 1
A6: 3 | B6: 7 | C6: N | D6: =YTD!P17 -> Dean | E6: Y | F6: =YTD!Q17 -> N | G6: 2 | H6: 1 | I6: 1 | J6: 3.94 | K6: LMB | L6: 6.11 | M6: =G6+H6 -> 3 | N6: =L6-(I6*0.2) -> 5.91 | O6: 7 | P6: =IF(F6="Y",N6,0) -> 0 | Q6: 0
A7: 4 | B7: 6 | C7: N | D7: =YTD!P18 -> Jack | E7: Y | F7: =YTD!Q18 -> N | G7: 2 | H7: 2 | L7: 4.41 | M7: 4 | N7: 4.41 | O7: 11 | P7: 0 | Q7: 0
A8: 5 | C8: N | D8: =YTD!P19 -> Jason | E8: N | F8: =YTD!Q19 -> N | M8: =G8+H8 -> 0 | N8: =L8-(I8*0.2) -> 0 | O8: 35 | P8: =IF(F8="Y",N8,0) -> 0 | Q8: 0
A9: 6 | C9: N | D9: =YTD!P20 -> Jim B | E9: N | F9: =YTD!Q20 -> Y | M9: 0 | N9: 0 | O9: 35 | P9: 0 | Q9: 0
A10: 7 | C10: N | D10: =YTD!P21 -> Kam | E10: n | F10: =YTD!Q21 -> Y | M10: 0 | N10: 0 | O10: 35 | P10: 0 | Q10: 0
A11: 8 | B11: 8 | C11: N | D11: =YTD!P22 -> Kevin | E11: Y | F11: =YTD!Q22 -> N | G11: 1 | H11: 4 | J11: 3.22 | K11: smb | L11: 11.41 | M11: =G11+H11 -> 5 | N11: =L11-(I11*0.2) -> 11.41 | O11: 1 | P11: =IF(F11="Y",N11,0) -> 0 | Q11: 0
A12: 9 | B12: 3 | C12: N | D12: =YTD!P23 -> Mike G | E12: Y | F12: =YTD!Q23 -> Y | H12: 2 | L12: 2.94 | M12: 2 | N12: 2.94 | O12: 14 | P12: 2.94 | Q12: 1
A13: 10 | B13: 3 | C13: N | D13: =YTD!P24 -> Morrie | E13: Y | F13: =YTD!Q24 -> N | H13: 3 | L13: 4.47 | M13: 3 | N13: 4.47 | O13: 10 | P13: 0 | Q13: 0
A14: 11 | C14: N | D14: =YTD!P25 -> Oz | E14: N | F14: =YTD!Q25 -> Y | M14: 0 | N14: 0 | O14: 35 | P14: 0 | Q14: 0
A15: 12 | B15: 8 | C15: N | D15: =YTD!P26 -> Pete | E15: Y | F15: =YTD!Q26 -> Y | H15: 5 | L15: 7.96 | M15: 5 | N15: 7.96 | O15: 5 | P15: 7.96 | Q15: 1
A16: 13 | B16: 1 | C16: N | D16: =YTD!P27 -> Rich B | E16: Y | F16: =YTD!Q27 -> N | G16: 3 | H16: 2 | J16: 3.09 | K16: lmb | L16: 8.82 | M16: 5 | N16: 8.82 | O16: 2 | P16: 0 | Q16: 0
A17: 14 | B17: 7 | C17: N | D17: =YTD!P28 -> Rich M | E17: Y | F17: =YTD!Q28 -> Y | G17: 1 | H17: 2 | L17: 4.92 | M17: 3 | N17: 4.92 | O17: 9 | P17: 4.92 | Q17: 1
A18: 15 | B18: 4 | C18: N | D18: =YTD!P29 -> Rich T | E18: Y | F18: =YTD!Q29 -> Y | H18: 1 | L18: 0.95 | M18: =G18+H18 -> 1 | N18: =L18-(I18*0.2) -> 0.95 | O18: 15 | P18: 0.95 | Q18: 1
A19: 16 | B19: 6 | C19: N | D19: =YTD!P30 -> Ryan | E19: Y | F19: =YTD!Q30 -> Y | H19: 3 | L19: 3.22 | M19: 3 | N19: 3.22 | O19: 13 | P19: 3.22 | Q19: 1
A20: 17 | B20: 9 | C20: y | D20: =YTD!P31 -> Scott | E20: Y | F20: =YTD!Q31 -> N | G20: 5 | L20: 8.52 | M20: =G20+H20 -> 5 | N20: =L20-(I20*0.2) -> 8.52 | O20: 3 | P20: =IF(F20="Y",N20,0) -> 0 | Q20: 0
A21: 18 | B21: 2 | C21: N | D21: =YTD!P32 -> Steve D | E21: Y | F21: =YTD!Q32 -> N | G21: 1 | H21: 4 | L21: 5.69 | M21: 5 | N21: 5.69 | O21: 8 | P21: 0 | Q21: 0
A22: 19 | B22: 2 | C22: N | D22: =YTD!P33 -> Steve S | E22: Y | F22: Y | G22: 4 | H22: 1 | J22: 2.85 | K22: LMB | L22: 8.18 | M22: 5 | N22: 8.18 | O22: 4 | P22: 8.18 | Q22: 1
A23: 20 | B23: 4 | C23: N | D23: =YTD!P34 -> Tom | E23: Y | F23: =YTD!Q34 -> N | G23: 4 | L23: 3.65 | M23: =G23+H23 -> 4 | N23: =L23-(I23*0.2) -> 3.65 | O23: 12 | P23: 0 | Q23: 0
A24: 21 | C24: N | D24: =YTD!P35 -> X | E24: N | F24: =YTD!Q35 -> 0 | M24: 0 | N24: 0 | O24: 35 | P24: 0 | Q24: 0
A25: 22 | C25: N | D25: =YTD!P36 -> X | E25: N | F25: =YTD!Q36 -> 0 | M25: 0 | N25: 0 | O25: 35 | P25: 0 | Q25: 0
A26: 23 | C26: N | D26: =YTD!P37 -> X | E26: N | F26: =YTD!Q37 -> 0 | M26: 0 | N26: 0 | O26: 35 | P26: 0 | Q26: 0
A27: 24 | C27: N | D27: =YTD!P38 -> X | E27: N | F27: =YTD!Q38 -> 0 | M27: 0 | N27: 0 | O27: 35 | P27: 0 | Q27: 0
A28: 25 | C28: N | D28: =YTD!P39 -> X | E28: N | F28: =YTD!Q39 -> 0 | M28: =G28+H28 -> 0 | N28: =L28-(I28*0.2) -> 0 | O28: 35 | P28: =IF(F28="Y",N28,0) -> 0 | Q28: =IF(E28="N",0,(IF(F28="N",0,1))) -> 0
A29: 26 | C29: N | D29: =YTD!P40 -> X | E29: N | F29: =YTD!Q40 -> 0 | M29: =G29+H29 -> 0 | N29: =L29-(I29*0.2) -> 0 | O29: 35 | P29: =IF(F29="Y",N29,0) -> 0 | Q29: =IF(E29="N",0,(IF(F29="N",0,1))) -> 0
D30: Totals | E30: =COUNTIF(E4:E29,"Y") -> 15 | G30: =SUM(G4:G29) -> 26 | H30: =SUM(H4:H29) -> 32 | I30: =SUM(I4:I29) -> 3 | J30: =MAX(J4:J29) -> 3.94 | L30: =SUM(L4:L29) -> 88.15 | M30: =SUM(M4:M29) -> 58 | N30: =SUM(N4:N29) -> 87.55 | P30: =SUM(P4:P29) -> 34.67 | Q30: =SUM(Q4:Q29) -> 7
B31: Place | C31: Team # | D31: Partners | G31: Total Weight | I31: Place | J31: Team # | K31: Partners | N31: Total Weight | P31: NB Avg | Q31: =IF(Q30=0,"No Data",P30/Q30) -> 4.952857143
B32: 1st | C32: =Teams!$AD4 -> 8 | D32: =VLOOKUP($C32,$B$4:$D$29,3,0) -> Kevin | E32: & | F32: =IF($B$4:$B$29=20,"#N/A",IF(COUNTIF($B$4:$B$29,$C32)=1,"Alone",LOOKUP(2,1/($B$4:$B$29=$C32),$D$4:$D$29))) -> Pete | G32: =Teams!AE4 -> 19.37 | I32: 4th | J32: =Teams!$AD7 -> 9 | K32: =VLOOKUP($J32,$B$4:$D$29,3,0) -> Scott | L32: & | M32: =IF($B$4:$B$29=20,"#N/A",IF(COUNTIF($B$4:$B$29,$J32)=1,"Alone",LOOKUP(2,1/($B$4:$B$29=$J32),$D$4:$D$29))) -> Alone | N32: =Teams!AE7 -> 13.47285714
B33: 2nd | C33: =Teams!$AD5 -> 1 | D33: =VLOOKUP($C33,$B$4:$D$29,3,0) -> Armand | E33: & | F33: =IF($B$4:$B$29=20,"#N/A",IF(COUNTIF($B$4:$B$29,$C33)=1,"Alone",LOOKUP(2,1/($B$4:$B$29=$C33),$D$4:$D$29))) -> Rich B | G33: =Teams!AE5 -> 15.32 | I33: 5th | J33: =Teams!$AD8 -> 7 | K33: =VLOOKUP($J33,$B$4:$D$29,3,0) -> Dean | L33: & | M33: =IF($B$4:$B$29=20,"#N/A",IF(COUNTIF($B$4:$B$29,$J33)=1,"Alone",LOOKUP(2,1/($B$4:$B$29=$J33),$D$4:$D$29))) -> Rich M | N33: =Teams!AE8 -> 10.83
B34: 3rd | C34: =Teams!$AD6 -> 2 | D34: =VLOOKUP($C34,$B$4:$D$29,3,0) -> Steve D | E34: & | F34: =IF($B$4:$B$29=20,"#N/A",IF(COUNTIF($B$4:$B$29,$C34)=1,"Alone",LOOKUP(2,1/($B$4:$B$29=$C34),$D$4:$D$29))) -> Steve S | G34: =Teams!AE6 -> 13.87 | I34: 6th | J34: =Teams!$AD9 -> 6 | K34: =VLOOKUP($J34,$B$4:$D$29,3,0) -> Jack | L34: & | M34: =IF($B$4:$B$29=20,"#N/A",IF(COUNTIF($B$4:$B$29,$J34)=1,"Alone",LOOKUP(2,1/($B$4:$B$29=$J34),$D$4:$D$29))) -> Ryan | N34: =Teams!AE9 -> 7.63

Sheet CT River
A1: =YTD!L20 -> CT River
B2: Team | C2: Fish | D2: Member | E2: Show | F2: Non | G2: Number | H2: Number | I2: Number | J2: Lunker | K2: Species | L2: Gross | M2: Total | N2: Net | O2: Points | P2: Non Boater | Q2: # Non-
B3: Number | C3: Alone? | D3: Name | E3: Up? | F3: Boater? | G3: of LMB | H3: of SMB | I3: Dead | J3: Weight | K3: LMB/SMB | L3: Weight | M3: Caught | N3: Weight | O3: Awarded | P3: Weight | Q3: Boaters
C4: N | D4: =YTD!P15 -> Anthony | E4: N | F4: =YTD!Q15 -> Y | M4: =G4+H4 -> 0 | N4: =L4-(I4*0.2) -> 0 | O4: =IF($E4="N",35,IF($M4=0,30,RANK($N4,$N$4:$N$29,0))) -> 35 | P4: =IF(F4="Y",N4,0) -> 0 | Q4: =IF(E4="N",0,(IF(F4="N",0,1))) -> 0
B5: 8 | C5: N | D5: =YTD!P16 -> Armand | E5: Y | F5: =YTD!Q16 -> N | H5: 1 | L5: 1.1 | M5: 1 | N5: 1.1 | O5: =IF($E5="N",35,IF($M5=0,30,RANK($N5,$N$4:$N$29,0))) -> 13 | P5: 0 | Q5: =IF(E5="N",0,(IF(F5="N",0,1))) -> 0
B6: 3 | C6: N | D6: =YTD!P17 -> Dean | E6: Y | F6: =YTD!Q17 -> N | G6: 3 | J6: 2.32 | K6: LMB | L6: 5.05 | M6: =G6+H6 -> 3 | N6: =L6-(I6*0.2) -> 5.05 | O6: 4 | P6: =IF(F6="Y",N6,0) -> 0 | Q6: 0
B7: 7 | C7: N | D7: =YTD!P18 -> Jack | E7: Y | F7: Y | G7: 2 | H7: 2 | J7: 3.58 | K7: LMB | L7: 8 | M7: 4 | N7: 8 | O7: 1 | P7: 8 | Q7: 1
C8: N | D8: =YTD!P19 -> Jason | E8: N | F8: =YTD!Q19 -> N | M8: =G8+H8 -> 0 | N8: =L8-(I8*0.2) -> 0 | O8: 35 | P8: =IF(F8="Y",N8,0) -> 0 | Q8: 0
C9: N | D9: =YTD!P20 -> Jim B | E9: N | F9: =YTD!Q20 -> Y | M9: 0 | N9: 0 | O9: 35 | P9: 0 | Q9: 0
B10: 2 | C10: N | D10: =YTD!P21 -> Kam | E10: y | F10: =YTD!Q21 -> Y | G10: 1 | H10: 3 | L10: 4.91 | M10: 4 | N10: 4.91 | O10: 5 | P10: 4.91 | Q10: 1
B11: 7 | C11: N | D11: =YTD!P22 -> Kevin | E11: Y | F11: =YTD!Q22 -> N | H11: 1 | L11: 1.88 | M11: =G11+H11 -> 1 | N11: =L11-(I11*0.2) -> 1.88 | O11: 12 | P11: =IF(F11="Y",N11,0) -> 0 | Q11: 0
B12: 6 | C12: N | D12: =YTD!P23 -> Mike G | E12: Y | F12: =YTD!Q23 -> Y | H12: 1 | L12: 0.86 | M12: 1 | N12: 0.86 | O12: 14 | P12: 0.86 | Q12: 1
B13: 5 | C13: N | D13: =YTD!P24 -> Morrie | E13: Y | F13: =YTD!Q24 -> N | G13: 1 | H13: 3 | L13: 4.57 | M13: 4 | N13: 4.57 | O13: 6 | P13: 0 | Q13: 0
B14: 5 | C14: N | D14: =YTD!P25 -> Oz | E14: Y | F14: =YTD!Q25 -> Y | M14: 0 | N14: 0 | O14: 30 | P14: 0 | Q14: 1
B15: 1 | C15: N | D15: =YTD!P26 -> Pete | E15: Y | F15: =YTD!Q26 -> Y | H15: 3 | L15: 3.32 | M15: 3 | N15: 3.32 | O15: 10 | P15: 3.32 | Q15: 1
B16: 2 | C16: N | D16: =YTD!P27 -> Rich B | E16: Y | F16: =YTD!Q27 -> N | M16: 0 | N16: 0 | O16: 30 | P16: 0 | Q16: 0
B17: 4 | C17: N | D17: =YTD!P28 -> Rich M | E17: Y | F17: =YTD!Q28 -> Y | H17: 3 | I17: 1 | L17: 3.92 | M17: 3 | N17: 3.72 | O17: 9 | P17: 3.72 | Q17: 1
B18: 8 | C18: N | D18: =YTD!P29 -> Rich T | E18: Y | F18: =YTD!Q29 -> Y | G18: 1 | H18: 1 | L18: 3.72 | M18: =G18+H18 -> 2 | N18: =L18-(I18*0.2) -> 3.72 | O18: 8 | P18: 3.72 | Q18: 1
B19: 3 | C19: N | D19: =YTD!P30 -> Ryan | E19: Y | F19: =YTD!Q30 -> Y | G19: 4 | J19: 2.3 | K19: LMB | L19: 7.26 | M19: 4 | N19: 7.26 | O19: 3 | P19: 7.26 | Q19: 1
B20: 6 | C20: N | D20: =YTD!P31 -> Scott | E20: Y | F20: =YTD!Q31 -> N | G20: 2 | L20: 2.47 | M20: =G20+H20 -> 2 | N20: =L20-(I20*0.2) -> 2.47 | O20: 11 | P20: =IF(F20="Y",N20,0) -> 0 | Q20: 0
B21: 4 | C21: N | D21: =YTD!P32 -> Steve D | E21: Y | F21: =YTD!Q32 -> N | G21: 1 | H21: 4 | I21: 3 | J21: 2.05 | K21: LMB | L21: 7.94 | M21: 5 | N21: 7.34 | O21: 2 | P21: 0 | Q21: 0
B22: 1 | C22: N | D22: =YTD!P33 -> Steve S | E22: Y | F22: =YTD!Q33 -> N | G22: 2 | H22: 1 | L22: 4.15 | M22: 3 | N22: 4.15 | O22: 7 | P22: 0 | Q22: 0
C23: N | D23: =YTD!P34 -> Tom | E23: N | F23: =YTD!Q34 -> N | M23: =G23+H23 -> 0 | N23: =L23-(I23*0.2) -> 0 | O23: 35 | P23: 0 | Q23: 0
C24: N | D24: =YTD!P35 -> X | E24: N | F24: N | M24: 0 | N24: 0 | O24: 35 | P24: 0 | Q24: 0
C25: N | D25: =YTD!P36 -> X | E25: N | F25: N | M25: 0 | N25: 0 | O25: 35 | P25: 0 | Q25: 0
C26: N | D26: =YTD!P37 -> X | E26: N | F26: N | M26: 0 | N26: 0 | O26: 35 | P26: 0 | Q26: 0
C27: N | D27: =YTD!P38 -> X | E27: N | F27: N | M27: 0 | N27: 0 | O27: 35 | P27: 0 | Q27: 0
C28: N | D28: =YTD!P39 -> X | E28: N | F28: N | M28: =G28+H28 -> 0 | N28: =L28-(I28*0.2) -> 0 | O28: 35 | P28: =IF(F28="Y",N28,0) -> 0 | Q28: =IF(E28="N",0,(IF(F28="N",0,1))) -> 0
C29: N | D29: =YTD!P40 -> X | E29: N | F29: N | M29: =G29+H29 -> 0 | N29: =L29-(I29*0.2) -> 0 | O29: 35 | P29: =IF(F29="Y",N29,0) -> 0 | Q29: =IF(E29="N",0,(IF(F29="N",0,1))) -> 0
D30: Totals | E30: =COUNTIF(E4:E29,"Y") -> 16 | G30: =SUM(G4:G29) -> 17 | H30: =SUM(H4:H29) -> 23 | I30: =SUM(I4:I29) -> 4 | J30: =MAX(J4:J29) -> 3.58 | L30: =SUM(L4:L29) -> 59.15 | M30: =SUM(M4:M29) -> 40 | N30: =SUM(N4:N29) -> 58.35 | P30: =SUM(P4:P29) -> 31.79 | Q30: =SUM(Q4:Q29) -> 8
B31: Place | C31: Team # | D31: Partners | G31: Total Weight | I31: Place | J31: Team # | K31: Partners | N31: Total Weight | P31: NB Avg | Q31: =IF(Q30=0,"No Data",P30/Q30) -> 3.97375
B32: 1st | C32: =Teams!$AD34 -> 3 | D32: =VLOOKUP($C32,$B$4:$D$29,3,0) -> Dean | E32: & | F32: =IF($B$4:$B$29=20,"#N/A",IF(COUNTIF($B$4:$B$29,$C32)=1,"Alone",LOOKUP(2,1/($B$4:$B$29=$C32),$D$4:$D$29))) -> Ryan | G32: =Teams!AE34 -> 12.31 | I32: 4th | J32: =Teams!$AD37 -> 1 | K32: =VLOOKUP($J32,$B$4:$D$29,3,0) -> Pete | L32: & | M32: =IF($B$4:$B$29=20,"#N/A",IF(COUNTIF($B$4:$B$29,$J32)=1,"Alone",LOOKUP(2,1/($B$4:$B$29=$J32),$D$4:$D$29))) -> Steve S | N32: =Teams!AE37 -> 7.47
B33: 2nd | C33: =Teams!$AD35 -> 4 | D33: =VLOOKUP($C33,$B$4:$D$29,3,0) -> Rich M | E33: & | F33: =IF($B$4:$B$29=20,"#N/A",IF(COUNTIF($B$4:$B$29,$C33)=1,"Alone",LOOKUP(2,1/($B$4:$B$29=$C33),$D$4:$D$29))) -> Steve D | G33: =Teams!AE35 -> 11.06 | I33: 5th | J33: =Teams!$AD38 -> 2 | K33: =VLOOKUP($J33,$B$4:$D$29,3,0) -> Kam | L33: & | M33: =IF($B$4:$B$29=20,"#N/A",IF(COUNTIF($B$4:$B$29,$J33)=1,"Alone",LOOKUP(2,1/($B$4:$B$29=$J33),$D$4:$D$29))) -> Rich B | N33: =Teams!AE38 -> 4.91
B34: 3rd | C34: =Teams!$AD36 -> 7 | D34: =VLOOKUP($C34,$B$4:$D$29,3,0) -> Jack | E34: & | F34: =IF($B$4:$B$29=20,"#N/A",IF(COUNTIF($B$4:$B$29,$C34)=1,"Alone",LOOKUP(2,1/($B$4:$B$29=$C34),$D$4:$D$29))) -> Kevin | G34: =Teams!AE36 -> 9.88 | I34: 6th | J34: =Teams!$AD39 -> 5 | K34: =VLOOKUP($J34,$B$4:$D$29,3,0) -> Morrie | L34: & | M34: =IF($B$4:$B$29=20,"#N/A",IF(COUNTIF($B$4:$B$29,$J34)=1,"Alone",LOOKUP(2,1/($B$4:$B$29=$J34),$D$4:$D$29))) -> Oz | N34: =Teams!AE39 -> 4.57

Sheet West Hill
A1: =YTD!L21 -> West Hill
B2: Team | C2: Fish | D2: Member | E2: Show | F2: Non | G2: Number | H2: Number | I2: Number | J2: Lunker | K2: Species | L2: Gross | M2: Total | N2: Net | O2: Points | P2: Non Boater | Q2: # Non-
B3: Number | C3: Alone? | D3: Name | E3: Up? | F3: Boater? | G3: of LMB | H3: of SMB | I3: Dead | J3: Weight | K3: LMB/SMB | L3: Weight | M3: Caught | N3: Weight | O3: Awarded | P3: Weight | Q3: Boaters
A4: 1 | C4: N | D4: =YTD!P15 -> Anthony | E4: n | F4: =YTD!Q15 -> Y | M4: =G4+H4 -> 0 | N4: =L4-(I4*0.2) -> 0 | O4: =IF($E4="N",35,IF($M4=0,30,RANK($N4,$N$4:$N$29,0))) -> 35 | P4: =IF(F4="Y",N4,0) -> 0 | Q4: =IF(E4="N",0,(IF(F4="N",0,1))) -> 0
A5: 2 | B5: 7 | C5: N | D5: =YTD!P16 -> Armand | E5: Y | F5: =YTD!Q16 -> N | G5: 1 | J5: 3.21 | K5: LMB | L5: 3.21 | M5: 1 | N5: 3.21 | O5: =IF($E5="N",35,IF($M5=0,30,RANK($N5,$N$4:$N$29,0))) -> 3 | P5: 0 | Q5: =IF(E5="N",0,(IF(F5="N",0,1))) -> 0
A6: 3 | B6: 1 | C6: N | D6: =YTD!P17 -> Dean | E6: Y | F6: =YTD!Q17 -> N | G6: 2 | L6: 3.21 | M6: =G6+H6 -> 2 | N6: =L6-(I6*0.2) -> 3.21 | O6: 3 | P6: =IF(F6="Y",N6,0) -> 0 | Q6: 0
A7: 4 | B7: 2 | C7: N | D7: =YTD!P18 -> Jack | E7: Y | F7: =YTD!Q18 -> N | G7: 5 | L7: 4.77 | M7: 5 | N7: 4.77 | O7: 1 | P7: 0 | Q7: 0
A8: 5 | C8: N | D8: =YTD!P19 -> Jason | E8: n | F8: =YTD!Q19 -> N | M8: =G8+H8 -> 0 | N8: =L8-(I8*0.2) -> 0 | O8: 35 | P8: =IF(F8="Y",N8,0) -> 0 | Q8: 0
A9: 6 | B9: 3 | C9: N | D9: =YTD!P20 -> Jim B | E9: Y | F9: =YTD!Q20 -> Y | M9: 0 | N9: 0 | O9: 30 | P9: 0 | Q9: 1
A10: 7 | B10: 9 | C10: N | D10: =YTD!P21 -> Kam | E10: Y | F10: =YTD!Q21 -> Y | G10: 1 | L10: 1.3 | M10: 1 | N10: 1.3 | O10: 9 | P10: 1.3 | Q10: 1
A11: 8 | B11: 9 | C11: N | D11: =YTD!P22 -> Kevin | E11: Y | F11: =YTD!Q22 -> N | G11: 1 | L11: 1.92 | M11: =G11+H11 -> 1 | N11: =L11-(I11*0.2) -> 1.92 | O11: 6 | P11: =IF(F11="Y",N11,0) -> 0 | Q11: 0
A12: 9 | B12: 7 | C12: N | D12: =YTD!P23 -> Mike G | E12: Y | F12: =YTD!Q23 -> Y | G12: 1 | L12: 1.17 | M12: 1 | N12: 1.17 | O12: 10 | P12: 1.17 | Q12: 1
A13: 10 | B13: 8 | C13: N | D13: =YTD!P24 -> Morrie | E13: Y | F13: =YTD!Q24 -> N | G13: 1 | L13: 0.75 | M13: 1 | N13: 0.75 | O13: 14 | P13: 0 | Q13: 0
A14: 11 | B14: 8 | C14: N | D14: =YTD!P25 -> Oz | E14: Y | F14: =YTD!Q25 -> Y | G14: 1 | L14: 0.81 | M14: 1 | N14: 0.81 | O14: 12 | P14: 0.81 | Q14: 1
A15: 12 | B15: 1 | C15: N | D15: =YTD!P26 -> Pete | E15: Y | F15: =YTD!Q26 -> Y | G15: 1 | L15: 0.87 | M15: 1 | N15: 0.87 | O15: 11 | P15: 0.87 | Q15: 1
A16: 13 | B16: 3 | C16: N | D16: =YTD!P27 -> Rich B | E16: Y | F16: =YTD!Q27 -> N | G16: 2 | L16: 2.02 | M16: 2 | N16: 2.02 | O16: 5 | P16: 0 | Q16: 0
A17: 14 | B17: 5 | C17: N | D17: =YTD!P28 -> Rich M | E17: Y | F17: =YTD!Q28 -> Y | M17: 0 | N17: 0 | O17: 30 | P17: 0 | Q17: 1
A18: 15 | B18: 2 | C18: N | D18: =YTD!P29 -> Rich T | E18: Y | F18: =YTD!Q29 -> Y | G18: 4 | L18: 4.17 | M18: =G18+H18 -> 4 | N18: =L18-(I18*0.2) -> 4.17 | O18: 2 | P18: 4.17 | Q18: 1
A19: 16 | B19: 4 | C19: N | D19: =YTD!P30 -> Ryan | E19: Y | F19: =YTD!Q30 -> Y | G19: 2 | L19: 1.54 | M19: 2 | N19: 1.54 | O19: 8 | P19: 1.54 | Q19: 1
A20: 17 | B20: 6 | C20: y | D20: =YTD!P31 -> Scott | E20: Y | F20: =YTD!Q31 -> N | G20: 1 | L20: 0.78 | M20: =G20+H20 -> 1 | N20: =L20-(I20*0.2) -> 0.78 | O20: 13 | P20: =IF(F20="Y",N20,0) -> 0 | Q20: 0
A21: 18 | B21: 4 | C21: N | D21: =YTD!P32 -> Steve D | E21: Y | F21: =YTD!Q32 -> N | G21: 2 | L21: 1.6 | M21: 2 | N21: 1.6 | O21: 7 | P21: 0 | Q21: 0
A22: 19 | B22: 5 | C22: N | D22: =YTD!P33 -> Steve S | E22: Y | F22: =YTD!Q33 -> N | G22: 1 | L22: 0.74 | M22: 1 | N22: 0.74 | O22: 15 | P22: 0 | Q22: 0
A23: 20 | C23: N | D23: =YTD!P34 -> Tom | E23: n | F23: =YTD!Q34 -> N | M23: =G23+H23 -> 0 | N23: =L23-(I23*0.2) -> 0 | O23: 35 | P23: 0 | Q23: 0
A24: 21 | C24: N | D24: =YTD!P35 -> X | E24: N | F24: =YTD!Q35 -> 0 | M24: 0 | N24: 0 | O24: 35 | P24: 0 | Q24: 0
A25: 22 | C25: N | D25: =YTD!P36 -> X | E25: N | F25: =YTD!Q36 -> 0 | M25: 0 | N25: 0 | O25: 35 | P25: 0 | Q25: 0
A26: 23 | C26: N | D26: =YTD!P37 -> X | E26: N | F26: =YTD!Q37 -> 0 | M26: 0 | N26: 0 | O26: 35 | P26: 0 | Q26: 0
A27: 24 | C27: N | D27: =YTD!P38 -> X | E27: N | F27: =YTD!Q38 -> 0 | M27: 0 | N27: 0 | O27: 35 | P27: 0 | Q27: 0
A28: 25 | C28: N | D28: =YTD!P39 -> X | E28: N | F28: =YTD!Q39 -> 0 | M28: =G28+H28 -> 0 | N28: =L28-(I28*0.2) -> 0 | O28: 35 | P28: =IF(F28="Y",N28,0) -> 0 | Q28: =IF(E28="N",0,(IF(F28="N",0,1))) -> 0
A29: 26 | C29: N | D29: =YTD!P40 -> X | E29: N | F29: =YTD!Q40 -> 0 | M29: =G29+H29 -> 0 | N29: =L29-(I29*0.2) -> 0 | O29: 35 | P29: =IF(F29="Y",N29,0) -> 0 | Q29: =IF(E29="N",0,(IF(F29="N",0,1))) -> 0
D30: Totals | E30: =COUNTIF(E4:E29,"Y") -> 17 | G30: =SUM(G4:G29) -> 26 | H30: =SUM(H4:H29) -> 0 | I30: =SUM(I4:I29) -> 0 | J30: =MAX(J4:J29) -> 3.21 | L30: =SUM(L4:L29) -> 28.86 | M30: =SUM(M4:M29) -> 26 | N30: =SUM(N4:N29) -> 28.86 | P30: =SUM(P4:P29) -> 9.86 | Q30: =SUM(Q4:Q29) -> 8
B31: Place | C31: Team # | D31: Partners | G31: Total Weight | I31: Place | J31: Team # | K31: Partners | N31: Total Weight | P31: NB Avg | Q31: =IF(Q30=0,"No Data",P30/Q30) -> 1.2325
B32: 1st | C32: =Teams!$AD64 -> 2 | D32: =VLOOKUP($C32,$B$4:$D$29,3,0) -> Jack | E32: & | F32: =IF($B$4:$B$29=20,"#N/A",IF(COUNTIF($B$4:$B$29,$C32)=1,"Alone",LOOKUP(2,1/($B$4:$B$29=$C32),$D$4:$D$29))) -> Rich T | G32: =Teams!AE64 -> 8.94 | I32: 4th | J32: =Teams!$AD67 -> 9 | K32: =VLOOKUP($J32,$B$4:$D$29,3,0) -> Kam | L32: & | M32: =IF($B$4:$B$29=20,"#N/A",IF(COUNTIF($B$4:$B$29,$J32)=1,"Alone",LOOKUP(2,1/($B$4:$B$29=$J32),$D$4:$D$29))) -> Kevin | N32: =Teams!AE67 -> 3.22
B33: 2nd | C33: =Teams!$AD65 -> 7 | D33: =VLOOKUP($C33,$B$4:$D$29,3,0) -> Armand | E33: & | F33: =IF($B$4:$B$29=20,"#N/A",IF(COUNTIF($B$4:$B$29,$C33)=1,"Alone",LOOKUP(2,1/($B$4:$B$29=$C33),$D$4:$D$29))) -> Mike G | G33: =Teams!AE65 -> 4.38 | I33: 5th | J33: =Teams!$AD68 -> 4 | K33: =VLOOKUP($J33,$B$4:$D$29,3,0) -> Ryan | L33: & | M33: =IF($B$4:$B$29=20,"#N/A",IF(COUNTIF($B$4:$B$29,$J33)=1,"Alone",LOOKUP(2,1/($B$4:$B$29=$J33),$D$4:$D$29))) -> Steve D | N33: =Teams!AE68 -> 3.14
B34: 3rd | C34: =Teams!$AD66 -> 1 | D34: =VLOOKUP($C34,$B$4:$D$29,3,0) -> Dean | E34: & | F34: =IF($B$4:$B$29=20,"#N/A",IF(COUNTIF($B$4:$B$29,$C34)=1,"Alone",LOOKUP(2,1/($B$4:$B$29=$C34),$D$4:$D$29))) -> Pete | G34: =Teams!AE66 -> 4.08 | I34: 6th | J34: =Teams!$AD69 -> 3 | K34: =VLOOKUP($J34,$B$4:$D$29,3,0) -> Jim B | L34: & | M34: =IF($B$4:$B$29=20,"#N/A",IF(COUNTIF($B$4:$B$29,$J34)=1,"Alone",LOOKUP(2,1/($B$4:$B$29=$J34),$D$4:$D$29))) -> Rich B | N34: =Teams!AE69 -> 2.02

Sheet Moodus
A1: =YTD!L22 -> Moodus
B2: Team | C2: Fish | D2: Member | E2: Show | F2: Non | G2: Number | H2: Number | I2: Number | J2: Lunker | K2: Species | L2: Gross | M2: Total | N2: Net | O2: Points | P2: Non Boater | Q2: # Non-
B3: Number | C3: Alone? | D3: Name | E3: Up? | F3: Boater? | G3: of LMB | H3: of SMB | I3: Dead | J3: Weight | K3: LMB/SMB | L3: Weight | M3: Caught | N3: Weight | O3: Awarded | P3: Weight | Q3: Boaters
A4: 1 | C4: N | D4: =YTD!P15 -> Anthony | E4: n | F4: =YTD!Q15 -> Y | M4: =G4+H4 -> 0 | N4: =L4-(I4*0.2) -> 0 | O4: =IF($E4="N",35,IF($M4=0,30,RANK($N4,$N$4:$N$29,0))) -> 35 | P4: =IF(F4="Y",N4,0) -> 0 | Q4: =IF(E4="N",0,(IF(F4="N",0,1))) -> 0
A5: 2 | B5: 3 | C5: N | D5: =YTD!P16 -> Armand | E5: Y | F5: =YTD!Q16 -> N | G5: 4 | L5: 3.28 | M5: 4 | N5: 3.28 | O5: =IF($E5="N",35,IF($M5=0,30,RANK($N5,$N$4:$N$29,0))) -> 4 | P5: 0 | Q5: =IF(E5="N",0,(IF(F5="N",0,1))) -> 0
A6: 3 | B6: 8 | C6: y | D6: =YTD!P17 -> Dean | E6: Y | F6: =YTD!Q17 -> N | G6: 2 | L6: 2.28 | M6: =G6+H6 -> 2 | N6: =L6-(I6*0.2) -> 2.28 | O6: 7 | P6: =IF(F6="Y",N6,0) -> 0 | Q6: 0
A7: 4 | B7: 5 | C7: N | D7: =YTD!P18 -> Jack | E7: Y | F7: =YTD!Q18 -> N | G7: 3 | L7: 3.84 | M7: 3 | N7: 3.84 | O7: 2 | P7: 0 | Q7: 0
A8: 5 | C8: N | D8: =YTD!P19 -> Jason | E8: n | F8: =YTD!Q19 -> N | M8: =G8+H8 -> 0 | N8: =L8-(I8*0.2) -> 0 | O8: 35 | P8: =IF(F8="Y",N8,0) -> 0 | Q8: 0
A9: 6 | B9: 1 | C9: N | D9: =YTD!P20 -> Jim B | E9: Y | F9: =YTD!Q20 -> Y | G9: 1 | L9: 0.77 | M9: 1 | N9: 0.77 | O9: 12 | P9: 0.77 | Q9: 1
A10: 7 | B10: 5 | C10: N | D10: =YTD!P21 -> Kam | E10: Y | F10: =YTD!Q21 -> Y | G10: 1 | L10: 0.85 | M10: 1 | N10: 0.85 | O10: 11 | P10: 0.85 | Q10: 1
A11: 8 | B11: 1 | C11: N | D11: =YTD!P22 -> Kevin | E11: Y | F11: =YTD!Q22 -> N | G11: 2 | L11: 2.22 | M11: =G11+H11 -> 2 | N11: =L11-(I11*0.2) -> 2.22 | O11: 8 | P11: =IF(F11="Y",N11,0) -> 0 | Q11: 0
A12: 9 | C12: N | D12: =YTD!P23 -> Mike G | E12: n | F12: =YTD!Q23 -> Y | M12: 0 | N12: 0 | O12: 35 | P12: 0 | Q12: 0
A13: 10 | B13: 2 | C13: N | D13: =YTD!P24 -> Morrie | E13: Y | F13: =YTD!Q24 -> N | M13: 0 | N13: 0 | O13: 30 | P13: 0 | Q13: 0
A14: 11 | B14: 3 | C14: N | D14: =YTD!P25 -> Oz | E14: Y | F14: =YTD!Q25 -> Y | G14: 1 | L14: 0.76 | M14: 1 | N14: 0.76 | O14: 13 | P14: 0.76 | Q14: 1
A15: 12 | B15: 6 | C15: N | D15: =YTD!P26 -> Pete | E15: Y | F15: =YTD!Q26 -> Y | G15: 1 | L15: 1.53 | M15: 1 | N15: 1.53 | O15: 10 | P15: 1.53 | Q15: 1
A16: 13 | B16: 4 | C16: N | D16: =YTD!P27 -> Rich B | E16: Y | F16: y | G16: 2 | L16: 1.65 | M16: 2 | N16: 1.65 | O16: 9 | P16: 1.65 | Q16: 1
A17: 14 | B17: 2 | C17: N | D17: =YTD!P28 -> Rich M | E17: Y | F17: =YTD!Q28 -> Y | G17: 3 | L17: 3.3 | M17: 3 | N17: 3.3 | O17: 3 | P17: 3.3 | Q17: 1
A18: 15 | C18: N | D18: =YTD!P29 -> Rich T | E18: n | F18: =YTD!Q29 -> Y | M18: =G18+H18 -> 0 | N18: =L18-(I18*0.2) -> 0 | O18: 35 | P18: 0 | Q18: 0
A19: 16 | B19: 7 | C19: N | D19: =YTD!P30 -> Ryan | E19: Y | F19: =YTD!Q30 -> Y | G19: 3 | L19: 2.73 | M19: 3 | N19: 2.73 | O19: 6 | P19: 2.73 | Q19: 1
A20: 17 | B20: 4 | C20: N | D20: =YTD!P31 -> Scott | E20: Y | F20: =YTD!Q31 -> N | G20: 3 | J20: 6.84 | K20: LMB | L20: 10.58 | M20: =G20+H20 -> 3 | N20: =L20-(I20*0.2) -> 10.58 | O20: 1 | P20: =IF(F20="Y",N20,0) -> 0 | Q20: 0
A21: 18 | B21: 6 | C21: N | D21: =YTD!P32 -> Steve D | E21: Y | F21: =YTD!Q32 -> N | G21: 4 | L21: 3.27 | M21: 4 | N21: 3.27 | O21: 5 | P21: 0 | Q21: 0
A22: 19 | B22: 7 | C22: N | D22: =YTD!P33 -> Steve S | E22: Y | F22: =YTD!Q33 -> N | M22: 0 | N22: 0 | O22: 30 | P22: 0 | Q22: 0
A23: 20 | C23: N | D23: =YTD!P34 -> Tom | E23: n | F23: =YTD!Q34 -> N | M23: =G23+H23 -> 0 | N23: =L23-(I23*0.2) -> 0 | O23: 35 | P23: 0 | Q23: 0
A24: 21 | C24: N | D24: =YTD!P35 -> X | E24: N | F24: =YTD!Q35 -> 0 | M24: 0 | N24: 0 | O24: 35 | P24: 0 | Q24: 0
A25: 22 | C25: N | D25: =YTD!P36 -> X | E25: N | F25: =YTD!Q36 -> 0 | M25: 0 | N25: 0 | O25: 35 | P25: 0 | Q25: 0
A26: 23 | C26: N | D26: =YTD!P37 -> X | E26: N | F26: =YTD!Q37 -> 0 | M26: 0 | N26: 0 | O26: 35 | P26: 0 | Q26: 0
A27: 24 | C27: N | D27: =YTD!P38 -> X | E27: N | F27: =YTD!Q38 -> 0 | M27: 0 | N27: 0 | O27: 35 | P27: 0 | Q27: 0
A28: 25 | C28: N | D28: =YTD!P39 -> X | E28: N | F28: =YTD!Q39 -> 0 | M28: =G28+H28 -> 0 | N28: =L28-(I28*0.2) -> 0 | O28: 35 | P28: =IF(F28="Y",N28,0) -> 0 | Q28: =IF(E28="N",0,(IF(F28="N",0,1))) -> 0
A29: 26 | C29: N | D29: =YTD!P40 -> X | E29: N | F29: =YTD!Q40 -> 0 | M29: =G29+H29 -> 0 | N29: =L29-(I29*0.2) -> 0 | O29: 35 | P29: =IF(F29="Y",N29,0) -> 0 | Q29: =IF(E29="N",0,(IF(F29="N",0,1))) -> 0
D30: Totals | E30: =COUNTIF(E4:E29,"Y") -> 15 | G30: =SUM(G4:G29) -> 30 | H30: =SUM(H4:H29) -> 0 | I30: =SUM(I4:I29) -> 0 | J30: =MAX(J4:J29) -> 6.84 | L30: =SUM(L4:L29) -> 37.06 | M30: =SUM(M4:M29) -> 30 | N30: =SUM(N4:N29) -> 37.06 | P30: =SUM(P4:P29) -> 11.59 | Q30: =SUM(Q4:Q29) -> 7
B31: Place | C31: Team # | D31: Partners | G31: Total Weight | I31: Place | J31: Team # | K31: Partners | N31: Total Weight | P31: NB Avg | Q31: =IF(Q30=0,"No Data",P30/Q30) -> 1.655714286
B32: 1st | C32: =Teams!$AD94 -> 4 | D32: =VLOOKUP($C32,$B$4:$D$29,3,0) -> Rich B | E32: & | F32: =IF($B$4:$B$29=20,"#N/A",IF(COUNTIF($B$4:$B$29,$C32)=1,"Alone",LOOKUP(2,1/($B$4:$B$29=$C32),$D$4:$D$29))) -> Scott | G32: =Teams!AE94 -> 12.23 | I32: 4th | J32: =Teams!$AD97 -> 3 | K32: =VLOOKUP($J32,$B$4:$D$29,3,0) -> Armand | L32: & | M32: =IF($B$4:$B$29=20,"#N/A",IF(COUNTIF($B$4:$B$29,$J32)=1,"Alone",LOOKUP(2,1/($B$4:$B$29=$J32),$D$4:$D$29))) -> Oz | N32: =Teams!AE97 -> 4.04
B33: 2nd | C33: =Teams!$AD95 -> 6 | D33: =VLOOKUP($C33,$B$4:$D$29,3,0) -> Pete | E33: & | F33: =IF($B$4:$B$29=20,"#N/A",IF(COUNTIF($B$4:$B$29,$C33)=1,"Alone",LOOKUP(2,1/($B$4:$B$29=$C33),$D$4:$D$29))) -> Steve D | G33: =Teams!AE95 -> 4.8 | I33: 5th | J33: =Teams!$AD98 -> 8 | K33: =VLOOKUP($J33,$B$4:$D$29,3,0) -> Dean | L33: & | M33: =IF($B$4:$B$29=20,"#N/A",IF(COUNTIF($B$4:$B$29,$J33)=1,"Alone",LOOKUP(2,1/($B$4:$B$29=$J33),$D$4:$D$29))) -> Alone | N33: =Teams!AE98 -> 3.935714286
B34: 3rd | C34: =Teams!$AD96 -> 5 | D34: =VLOOKUP($C34,$B$4:$D$29,3,0) -> Jack | E34: & | F34: =IF($B$4:$B$29=20,"#N/A",IF(COUNTIF($B$4:$B$29,$C34)=1,"Alone",LOOKUP(2,1/($B$4:$B$29=$C34),$D$4:$D$29))) -> Kam | G34: =Teams!AE96 -> 4.69 | I34: 6th | J34: =Teams!$AD99 -> 2 | K34: =VLOOKUP($J34,$B$4:$D$29,3,0) -> Morrie | L34: & | M34: =IF($B$4:$B$29=20,"#N/A",IF(COUNTIF($B$4:$B$29,$J34)=1,"Alone",LOOKUP(2,1/($B$4:$B$29=$J34),$D$4:$D$29))) -> Rich M | N34: =Teams!AE99 -> 3.3

Sheet Teams
A2: =YTD!L15 -> Bantam | M2: Sort | N2: Copy | O2: Sort | Q2: =YTD!L19 -> Lillinonah | AC2: Sort | AD2: Copy | AE2: Sort
A3: Team # | B3: Alone? | C3: Name | D3: Net Wt | F3: Team # | G3: Alone? | H3: Name | I3: Net Wt | K3: Totals | L3: Rank | M3: Rank | N3: Team # | O3: Tot Wt | Q3: Team # | R3: Alone? | S3: Name | T3: Net Wt | V3: Team # | W3: Alone? | X3: Name | Y3: Net Wt | AA3: Totals | AB3: Rank | AC3: Rank | AD3: Team # | AE3: Tot Wt
A4: =Bantam!B4 -> 1 | B4: =Bantam!C4 -> N | C4: =Bantam!D4 -> Anthony | D4: =Bantam!N4 -> 0.73 | F4: 0 | G4: N | H4: Kam | I4: 0 | K4: =IF(F4=20,0,IF(F4=F5,I4+I5,IF(G4="Y",I4+I$30,0))) -> 0 | L4: =IF(K4>0,RANK(K4,K$4:K$29,0),"") ->  | M4: 1 | N4: 5 | O4: 15.74 | Q4: =Lillinonah!B4 -> 0 | R4: =Lillinonah!C4 -> N | S4: =Lillinonah!D4 -> Anthony | T4: =Lillinonah!N4 -> 0 | V4: 0 | W4: N | X4: Anthony | Y4: 0 | AA4: =IF(V4=20,0,IF(V4=V5,Y4+Y5,IF(W4="Y",Y4+Y$30,0))) -> 0 | AB4: =IF(AA4>0,RANK(AA4,AA$4:AA$29,0),"") ->  | AC4: 1 | AD4: 8 | AE4: 19.37
A5: =Bantam!B5 -> 5 | B5: =Bantam!C5 -> N | C5: =Bantam!D5 -> Armand | D5: =Bantam!N5 -> 10.57 | F5: 0 | G5: N | H5: Morrie | I5: 0 | K5: =IF(F5=20,0,IF(F5=F6,I5+I6,IF(G5="Y",I5+I$30,0))) -> 0 | L5: =IF(K5>0,RANK(K5,K$4:K$29,0),"") ->  | M5: 2 | N5: 8 | O5: 11.32 | Q5: =Lillinonah!B5 -> 1 | R5: =Lillinonah!C5 -> N | S5: =Lillinonah!D5 -> Armand | T5: =Lillinonah!N5 -> 6.5 | V5: 0 | W5: N | X5: Jason | Y5: 0 | AA5: =IF(V5=20,0,IF(V5=V6,Y5+Y6,IF(W5="Y",Y5+Y$30,0))) -> 0 | AB5: =IF(AA5>0,RANK(AA5,AA$4:AA$29,0),"") ->  | AC5: 2 | AD5: 1 | AE5: 15.32
A6: =Bantam!B6 -> 2 | B6: =Bantam!C6 -> N | C6: =Bantam!D6 -> Dean | D6: =Bantam!N6 -> 10.28 | F6: 0 | G6: N | H6: Rich M | I6: 0 | K6: 0 | M6: 3 | N6: 2 | O6: 10.28 | Q6: =Lillinonah!B6 -> 7 | R6: =Lillinonah!C6 -> N | S6: =Lillinonah!D6 -> Dean | T6: =Lillinonah!N6 -> 5.91 | V6: 0 | W6: N | X6: Jim B | Y6: 0 | AA6: 0 | AC6: 3 | AD6: 2 | AE6: 13.87
A7: =Bantam!B7 -> 8 | B7: =Bantam!C7 -> N | C7: =Bantam!D7 -> Jack | D7: =Bantam!N7 -> 7.41 | F7: 0 | G7: N | H7: X | I7: 0 | K7: 0 | M7: 4 | N7: 4 | O7: 9.22 | Q7: =Lillinonah!B7 -> 6 | R7: =Lillinonah!C7 -> N | S7: =Lillinonah!D7 -> Jack | T7: =Lillinonah!N7 -> 4.41 | V7: 0 | W7: N | X7: Kam | Y7: 0 | AA7: 0 | AC7: 4 | AD7: 9 | AE7: 13.47285714
A8: =Bantam!B8 -> 3 | B8: =Bantam!C8 -> N | C8: =Bantam!D8 -> Jason | D8: =Bantam!N8 -> 7.62 | F8: 0 | G8: N | H8: X | I8: 0 | K8: 0 | M8: 5 | N8: 3 | O8: 7.62 | Q8: =Lillinonah!B8 -> 0 | R8: =Lillinonah!C8 -> N | S8: =Lillinonah!D8 -> Jason | T8: =Lillinonah!N8 -> 0 | V8: 0 | W8: N | X8: Oz | Y8: 0 | AA8: 0 | AC8: 5 | AD8: 7 | AE8: 10.83
A9: =Bantam!B9 -> 6 | B9: =Bantam!C9 -> N | C9: =Bantam!D9 -> Jim B | D9: =Bantam!N9 -> 3.7 | F9: 0 | G9: N | H9: X | I9: 0 | K9: 0 | M9: 6 | N9: 6 | O9: 5.75 | Q9: =Lillinonah!B9 -> 0 | R9: =Lillinonah!C9 -> N | S9: =Lillinonah!D9 -> Jim B | T9: =Lillinonah!N9 -> 0 | V9: 0 | W9: N | X9: X | Y9: 0 | AA9: 0 | AC9: 6 | AD9: 6 | AE9: 7.63
A10: =Bantam!B10 -> 0 | B10: =Bantam!C10 -> N | C10: =Bantam!D10 -> Kam | D10: =Bantam!N10 -> 0 | F10: 0 | G10: N | H10: X | I10: 0 | K10: 0 | M10: 7 | N10: 1 | O10: 3.48 | Q10: =Lillinonah!B10 -> 0 | R10: =Lillinonah!C10 -> N | S10: =Lillinonah!D10 -> Kam | T10: =Lillinonah!N10 -> 0 | V10: 0 | W10: N | X10: X | Y10: 0 | AA10: 0 | AC10: 7 | AD10: 3 | AE10: 7.41
A11: =Bantam!B11 -> 4 | B11: =Bantam!C11 -> N | C11: =Bantam!D11 -> Kevin | D11: =Bantam!N11 -> 7.8 | F11: 0 | G11: N | H11: X | I11: 0 | K11: 0 | M11: 8 | N11: 9 | O11: 2.06 | Q11: =Lillinonah!B11 -> 8 | R11: =Lillinonah!C11 -> N | S11: =Lillinonah!D11 -> Kevin | T11: =Lillinonah!N11 -> 11.41 | V11: 0 | W11: N | X11: X | Y11: 0 | AA11: 0 | AC11: 8 | AD11: 4 | AE11: 4.6
A12: =Bantam!B12 -> 3 | B12: =Bantam!C12 -> N | C12: =Bantam!D12 -> Mike G | D12: =Bantam!N12 -> 0 | F12: 0 | G12: N | H12: X | I12: 0 | K12: 0 | N12: 0 | O12: 0 | Q12: =Lillinonah!B12 -> 3 | R12: =Lillinonah!C12 -> N | S12: =Lillinonah!D12 -> Mike G | T12: =Lillinonah!N12 -> 2.94 | V12: 0 | W12: N | X12: X | Y12: 0 | AA12: 0 | AD12: 0 | AE12: 0
A13: =Bantam!B13 -> 0 | B13: =Bantam!C13 -> N | C13: =Bantam!D13 -> Morrie | D13: =Bantam!N13 -> 0 | F13: 1 | G13: N | H13: Anthony | I13: 0.73 | K13: 3.48 | L13: 7 | N13: 0 | O13: 0 | Q13: =Lillinonah!B13 -> 3 | R13: =Lillinonah!C13 -> N | S13: =Lillinonah!D13 -> Morrie | T13: =Lillinonah!N13 -> 4.47 | V13: 0 | W13: N | X13: X | Y13: 0 | AA13: 0 | AD13: 0 | AE13: 0
A14: =Bantam!B14 -> 4 | B14: =Bantam!C14 -> N | C14: =Bantam!D14 -> Oz | D14: =Bantam!N14 -> 1.42 | F14: 1 | G14: N | H14: Rich B | I14: 2.75 | K14: 0 | N14: 0 | O14: 0 | Q14: =Lillinonah!B14 -> 0 | R14: =Lillinonah!C14 -> N | S14: =Lillinonah!D14 -> Oz | T14: =Lillinonah!N14 -> 0 | V14: 0 | W14: N | X14: X | Y14: 0 | AA14: 0 | AD14: 0 | AE14: 0
A15: =Bantam!B15 -> 5 | B15: =Bantam!C15 -> N | C15: =Bantam!D15 -> Pete | D15: =Bantam!N15 -> 5.17 | F15: 2 | G15: N | H15: Dean | I15: 10.28 | K15: 10.28 | L15: 3 | N15: 0 | O15: 0 | Q15: =Lillinonah!B15 -> 8 | R15: =Lillinonah!C15 -> N | S15: =Lillinonah!D15 -> Pete | T15: =Lillinonah!N15 -> 7.96 | V15: 1 | W15: N | X15: Armand | Y15: 6.5 | AA15: 15.32 | AB15: 2 | AD15: 0 | AE15: 0
A16: =Bantam!B16 -> 1 | B16: =Bantam!C16 -> N | C16: =Bantam!D16 -> Rich B | D16: =Bantam!N16 -> 2.75 | F16: 2 | G16: N | H16: Rich T | I16: 0 | K16: 0 | N16: 0 | O16: 0 | Q16: =Lillinonah!B16 -> 1 | R16: =Lillinonah!C16 -> N | S16: =Lillinonah!D16 -> Rich B | T16: =Lillinonah!N16 -> 8.82 | V16: 1 | W16: N | X16: Rich B | Y16: 8.82 | AA16: 0 | AD16: 0 | AE16: 0
A17: =Bantam!B17 -> 0 | B17: =Bantam!C17 -> N | C17: =Bantam!D17 -> Rich M | D17: =Bantam!N17 -> 0 | F17: 3 | G17: N | H17: Jason | I17: 7.62 | K17: 7.62 | L17: 5 | N17: 0 | O17: 0 | Q17: =Lillinonah!B17 -> 7 | R17: =Lillinonah!C17 -> N | S17: =Lillinonah!D17 -> Rich M | T17: =Lillinonah!N17 -> 4.92 | V17: 2 | W17: N | X17: Steve D | Y17: 5.69 | AA17: 13.87 | AB17: 3 | AD17: 0 | AE17: 0
A18: =Bantam!B18 -> 2 | B18: =Bantam!C18 -> N | C18: =Bantam!D18 -> Rich T | D18: =Bantam!N18 -> 0 | F18: 3 | G18: N | H18: Mike G | I18: 0 | K18: 0 | N18: 0 | O18: 0 | Q18: =Lillinonah!B18 -> 4 | R18: =Lillinonah!C18 -> N | S18: =Lillinonah!D18 -> Rich T | T18: =Lillinonah!N18 -> 0.95 | V18: 2 | W18: N | X18: Steve S | Y18: 8.18 | AA18: 0 | AD18: 0 | AE18: 0
A19: =Bantam!B19 -> 8 | B19: =Bantam!C19 -> N | C19: =Bantam!D19 -> Ryan | D19: =Bantam!N19 -> 3.91 | F19: 4 | G19: N | H19: Kevin | I19: 7.8 | K19: 9.22 | L19: 4 | N19: 0 | O19: 0 | Q19: =Lillinonah!B19 -> 6 | R19: =Lillinonah!C19 -> N | S19: =Lillinonah!D19 -> Ryan | T19: =Lillinonah!N19 -> 3.22 | V19: 3 | W19: N | X19: Mike G | Y19: 2.94 | AA19: 7.41 | AB19: 7 | AD19: 0 | AE19: 0
A20: =Bantam!B20 -> 7 | B20: =Bantam!C20 -> Y | C20: =Bantam!D20 -> Scott | D20: =Bantam!N20 -> 0.92 | F20: 4 | G20: N | H20: Oz | I20: 1.42 | K20: 0 | N20: 0 | O20: 0 | Q20: =Lillinonah!B20 -> 9 | R20: =Lillinonah!C20 -> y | S20: =Lillinonah!D20 -> Scott | T20: =Lillinonah!N20 -> 8.52 | V20: 3 | W20: N | X20: Morrie | Y20: 4.47 | AA20: 0 | AD20: 0 | AE20: 0
A21: =Bantam!B21 -> 9 | B21: =Bantam!C21 -> N | C21: =Bantam!D21 -> Steve D | D21: =Bantam!N21 -> 2.06 | F21: 5 | G21: N | H21: Armand | I21: 10.57 | K21: 15.74 | L21: 1 | N21: 1 | O21: 0 | Q21: =Lillinonah!B21 -> 2 | R21: =Lillinonah!C21 -> N | S21: =Lillinonah!D21 -> Steve D | T21: =Lillinonah!N21 -> 5.69 | V21: 4 | W21: N | X21: Rich T | Y21: 0.95 | AA21: 4.6 | AB21: 8 | AD21: 0 | AE21: 0
A22: =Bantam!B22 -> 6 | B22: =Bantam!C22 -> N | C22: =Bantam!D22 -> Steve S | D22: =Bantam!N22 -> 2.05 | F22: 5 | G22: N | H22: Pete | I22: 5.17 | K22: 0 | N22: 2 | O22: 0 | Q22: =Lillinonah!B22 -> 2 | R22: =Lillinonah!C22 -> N | S22: =Lillinonah!D22 -> Steve S | T22: =Lillinonah!N22 -> 8.18 | V22: 4 | W22: N | X22: Tom | Y22: 3.65 | AA22: 0 | AD22: 0 | AE22: 0
A23: =Bantam!B23 -> 9 | B23: =Bantam!C23 -> N | C23: =Bantam!D23 -> Tom | D23: =Bantam!N23 -> 0 | F23: 6 | G23: N | H23: Jim B | I23: 3.7 | K23: 5.75 | L23: 6 | N23: 3 | O23: 0 | Q23: =Lillinonah!B23 -> 4 | R23: =Lillinonah!C23 -> N | S23: =Lillinonah!D23 -> Tom | T23: =Lillinonah!N23 -> 3.65 | V23: 6 | W23: N | X23: Jack | Y23: 4.41 | AA23: 7.63 | AB23: 6 | AD23: 1 | AE23: 0
A24: =Bantam!B24 -> 0 | B24: =Bantam!C24 -> N | C24: =Bantam!D24 -> X | D24: =Bantam!N24 -> 0 | F24: 6 | G24: N | H24: Steve S | I24: 2.05 | K24: 0 | N24: 4 | O24: 0 | Q24: =Lillinonah!B24 -> 0 | R24: =Lillinonah!C24 -> N | S24: =Lillinonah!D24 -> X | T24: =Lillinonah!N24 -> 0 | V24: 6 | W24: N | X24: Ryan | Y24: 3.22 | AA24: 0 | AD24: 2 | AE24: 0
A25: =Bantam!B25 -> 0 | B25: =Bantam!C25 -> N | C25: =Bantam!D25 -> X | D25: =Bantam!N25 -> 0 | F25: 7 | G25: N | H25: Scott | I25: 0.92 | K25: 0 | N25: 5 | O25: 0 | Q25: =Lillinonah!B25 -> 0 | R25: =Lillinonah!C25 -> N | S25: =Lillinonah!D25 -> X | T25: =Lillinonah!N25 -> 0 | V25: 7 | W25: N | X25: Dean | Y25: 5.91 | AA25: 10.83 | AB25: 5 | AD25: 3 | AE25: 0
A26: =Bantam!B26 -> 0 | B26: =Bantam!C26 -> N | C26: =Bantam!D26 -> X | D26: =Bantam!N26 -> 0 | F26: 8 | G26: N | H26: Jack | I26: 7.41 | K26: 11.32 | L26: 2 | N26: 6 | O26: 0 | Q26: =Lillinonah!B26 -> 0 | R26: =Lillinonah!C26 -> N | S26: =Lillinonah!D26 -> X | T26: =Lillinonah!N26 -> 0 | V26: 7 | W26: N | X26: Rich M | Y26: 4.92 | AA26: 0 | AD26: 4 | AE26: 0
A27: =Bantam!B27 -> 0 | B27: =Bantam!C27 -> N | C27: =Bantam!D27 -> X | D27: =Bantam!N27 -> 0 | F27: 8 | G27: N | H27: Ryan | I27: 3.91 | K27: 0 | N27: 7 | O27: 0 | Q27: =Lillinonah!B27 -> 0 | R27: =Lillinonah!C27 -> N | S27: =Lillinonah!D27 -> X | T27: =Lillinonah!N27 -> 0 | V27: 8 | W27: N | X27: Kevin | Y27: 11.41 | AA27: 19.37 | AB27: 1 | AD27: 6 | AE27: 0
A28: =Bantam!B28 -> 0 | B28: =Bantam!C28 -> N | C28: =Bantam!D28 -> X | D28: =Bantam!N28 -> 0 | F28: 9 | G28: N | H28: Steve D | I28: 2.06 | K28: 2.06 | L28: 8 | N28: 8 | O28: 0 | Q28: =Lillinonah!B28 -> 0 | R28: =Lillinonah!C28 -> N | S28: =Lillinonah!D28 -> X | T28: =Lillinonah!N28 -> 0 | V28: 8 | W28: N | X28: Pete | Y28: 7.96 | AA28: 0 | AD28: 7 | AE28: 0
A29: =Bantam!B29 -> 0 | B29: =Bantam!C29 -> N | C29: =Bantam!D29 -> X | D29: =Bantam!N29 -> 0 | F29: 9 | G29: N | H29: Tom | I29: 0 | K29: 0 | N29: 9 | O29: 0 | Q29: =Lillinonah!B29 -> 0 | R29: =Lillinonah!C29 -> N | S29: =Lillinonah!D29 -> X | T29: =Lillinonah!N29 -> 0 | V29: 9 | W29: y | X29: Scott | Y29: 8.52 | AA29: 13.47285714 | AB29: 4 | AD29: 8 | AE29: 0
B30: Macro | C30: CTL+M | D30: Teams | E30: 1 | H30: NB Avg | I30: =Bantam!Q31 -> 1.86625 | R30: Macro | S30: CTL+Y | T30: Teams | U30: 5 | X30: NB Avg | Y30: =Lillinonah!Q31 -> 4.952857143
A32: =YTD!L16 -> McDonough | M32: Sort | N32: Copy | O32: Sort | Q32: =YTD!L20 -> CT River | AC32: Sort | AD32: Copy | AE32: Sort
A33: Team # | B33: Alone? | C33: Name | D33: Net Wt | F33: Team # | G33: Alone? | H33: Name | I33: Net Wt | K33: Totals | L33: Rank | M33: Rank | N33: Team # | O33: Tot Wt | Q33: Team # | R33: Alone? | S33: Name | T33: Net Wt | V33: Team # | W33: Alone? | X33: Name | Y33: Net Wt | AA33: Totals | AB33: Rank | AC33: Rank | AD33: Team # | AE33: Tot Wt
A34: =McDonough!B4 -> 8 | B34: =McDonough!C4 -> N | C34: =McDonough!D4 -> Anthony | D34: =McDonough!N4 -> 2.39 | F34: 0 | G34: N | H34: Kam | I34: 0 | K34: =IF(F34=20,0,IF(F34=F35,I34+I35,IF(G34="Y",I34+I$60,0))) -> 0 | L34: =IF(K34>0,RANK(K34,K$34:K$59,0),"") ->  | M34: 1 | N34: 2 | O34: 18.73 | Q34: ='CT River'!B4 -> 0 | R34: ='CT River'!C4 -> N | S34: ='CT River'!D4 -> Anthony | T34: ='CT River'!N4 -> 0 | V34: 0 | W34: N | X34: Anthony | Y34: 0 | AA34: =IF(V34=20,0,IF(V34=V35,Y34+Y35,IF(W34="Y",Y34+Y$60,0))) -> 0 | AB34: =IF(AA34>0,RANK(AA34,AA$34:AA$59,0),"") ->  | AC34: 1 | AD34: 3 | AE34: 12.31
A35: =McDonough!B5 -> 7 | B35: =McDonough!C5 -> N | C35: =McDonough!D5 -> Armand | D35: =McDonough!N5 -> 9.42 | F35: 0 | G35: N | H35: Mike G | I35: 0 | K35: =IF(F35=20,0,IF(F35=F36,I35+I36,IF(G35="Y",I35+I$60,0))) -> 0 | L35: =IF(K35>0,RANK(K35,K$34:K$59,0),"") ->  | M35: 2 | N35: 4 | O35: 16.21 | Q35: ='CT River'!B5 -> 8 | R35: ='CT River'!C5 -> N | S35: ='CT River'!D5 -> Armand | T35: ='CT River'!N5 -> 1.1 | V35: 0 | W35: N | X35: Jason | Y35: 0 | AA35: =IF(V35=20,0,IF(V35=V36,Y35+Y36,IF(W35="Y",Y35+$Y$60,0))) -> 0 | AB35: =IF(AA35>0,RANK(AA35,AA$34:AA$59,0),"") ->  | AC35: 2 | AD35: 4 | AE35: 11.06
A36: =McDonough!B6 -> 3 | B36: =McDonough!C6 -> Y | C36: =McDonough!D6 -> Dean | D36: =McDonough!N6 -> 9.16 | F36: 0 | G36: N | H36: Morrie | I36: 0 | K36: 0 | M36: 3 | N36: 7 | O36: 16.12 | Q36: ='CT River'!B6 -> 3 | R36: ='CT River'!C6 -> N | S36: ='CT River'!D6 -> Dean | T36: ='CT River'!N6 -> 5.05 | V36: 0 | W36: N | X36: Jim B | Y36: 0 | AA36: 0 | AC36: 3 | AD36: 7 | AE36: 9.88
A37: =McDonough!B7 -> 9 | B37: =McDonough!C7 -> N | C37: =McDonough!D7 -> Jack | D37: =McDonough!N7 -> 6.33 | F37: 0 | G37: N | H37: Rich M | I37: 0 | K37: 0 | M37: 4 | N37: 3 | O37: 15.44 | Q37: ='CT River'!B7 -> 7 | R37: ='CT River'!C7 -> N | S37: ='CT River'!D7 -> Jack | T37: ='CT River'!N7 -> 8 | V37: 0 | W37: N | X37: Tom | Y37: 0 | AA37: 0 | AC37: 4 | AD37: 1 | AE37: 7.47
A38: =McDonough!B8 -> 5 | B38: =McDonough!C8 -> N | C38: =McDonough!D8 -> Jason | D38: =McDonough!N8 -> 9.71 | F38: 0 | G38: N | H38: X | I38: 0 | K38: 0 | M38: 5 | N38: 9 | O38: 14.31 | Q38: ='CT River'!B8 -> 0 | R38: ='CT River'!C8 -> N | S38: ='CT River'!D8 -> Jason | T38: ='CT River'!N8 -> 0 | V38: 0 | W38: N | X38: X | Y38: 0 | AA38: 0 | AC38: 5 | AD38: 2 | AE38: 4.91
A39: =McDonough!B9 -> 6 | B39: =McDonough!C9 -> N | C39: =McDonough!D9 -> Jim B | D39: =McDonough!N9 -> 7.43 | F39: 0 | G39: N | H39: X | I39: 0 | K39: 0 | M39: 6 | N39: 6 | O39: 13.49 | Q39: ='CT River'!B9 -> 0 | R39: ='CT River'!C9 -> N | S39: ='CT River'!D9 -> Jim B | T39: ='CT River'!N9 -> 0 | V39: 0 | W39: N | X39: X | Y39: 0 | AA39: 0 | AC39: 6 | AD39: 5 | AE39: 4.57
A40: =McDonough!B10 -> 0 | B40: =McDonough!C10 -> N | C40: =McDonough!D10 -> Kam | D40: =McDonough!N10 -> 0 | F40: 0 | G40: N | H40: X | I40: 0 | K40: 0 | M40: 7 | N40: 1 | O40: 11.04 | Q40: ='CT River'!B10 -> 2 | R40: ='CT River'!C10 -> N | S40: ='CT River'!D10 -> Kam | T40: ='CT River'!N10 -> 4.91 | V40: 0 | W40: N | X40: X | Y40: 0 | AA40: 0 | AC40: 7 | AD40: 8 | AE40: 3.72
A41: =McDonough!B11 -> 8 | B41: =McDonough!C11 -> N | C41: =McDonough!D11 -> Kevin | D41: =McDonough!N11 -> 7.67 | F41: 0 | G41: N | H41: X | I41: 0 | K41: 0 | M41: 8 | N41: 5 | O41: 10.73 | Q41: ='CT River'!B11 -> 7 | R41: ='CT River'!C11 -> N | S41: ='CT River'!D11 -> Kevin | T41: ='CT River'!N11 -> 1.88 | V41: 0 | W41: N | X41: X | Y41: 0 | AA41: 0 | AC41: 8 | AD41: 6 | AE41: 3.33
A42: =McDonough!B12 -> 0 | B42: =McDonough!C12 -> N | C42: =McDonough!D12 -> Mike G | D42: =McDonough!N12 -> 0 | F42: 0 | G42: N | H42: X | I42: 0 | K42: 0 | M42: 9 | N42: 8 | O42: 10.06 | Q42: ='CT River'!B12 -> 6 | R42: ='CT River'!C12 -> N | S42: ='CT River'!D12 -> Mike G | T42: ='CT River'!N12 -> 0.86 | V42: 0 | W42: N | X42: X | Y42: 0 | AA42: 0 | AD42: 0 | AE42: 0
A43: =McDonough!B13 -> 0 | B43: =McDonough!C13 -> N | C43: =McDonough!D13 -> Morrie | D43: =McDonough!N13 -> 0 | F43: 0 | G43: N | H43: X | I43: 0 | K43: 0 | N43: 0 | O43: 0 | Q43: ='CT River'!B13 -> 5 | R43: ='CT River'!C13 -> N | S43: ='CT River'!D13 -> Morrie | T43: ='CT River'!N13 -> 4.57 | V43: 0 | W43: N | X43: X | Y43: 0 | AA43: 0 | AD43: 0 | AE43: 0
A44: =McDonough!B14 -> 5 | B44: =McDonough!C14 -> N | C44: =McDonough!D14 -> Oz | D44: =McDonough!N14 -> 1.02 | F44: 1 | G44: Y | H44: Rich B | I44: 4.76 | K44: 11.04 | L44: 7 | N44: 0 | O44: 0 | Q44: ='CT River'!B14 -> 5 | R44: ='CT River'!C14 -> N | S44: ='CT River'!D14 -> Oz | T44: ='CT River'!N14 -> 0 | V44: 1 | W44: N | X44: Pete | Y44: 3.32 | AA44: 7.47 | AB44: 4 | AD44: 0 | AE44: 0
A45: =McDonough!B15 -> 9 | B45: =McDonough!C15 -> N | C45: =McDonough!D15 -> Pete | D45: =McDonough!N15 -> 7.98 | F45: 2 | G45: N | H45: Ryan | I45: 10.46 | K45: 18.73 | L45: 1 | N45: 0 | O45: 0 | Q45: ='CT River'!B15 -> 1 | R45: ='CT River'!C15 -> N | S45: ='CT River'!D15 -> Pete | T45: ='CT River'!N15 -> 3.32 | V45: 1 | W45: N | X45: Steve S | Y45: 4.15 | AA45: 0 | AD45: 0 | AE45: 0
A46: =McDonough!B16 -> 1 | B46: =McDonough!C16 -> Y | C46: =McDonough!D16 -> Rich B | D46: =McDonough!N16 -> 4.76 | F46: 2 | G46: N | H46: Scott | I46: 8.27 | K46: 0 | N46: 0 | O46: 0 | Q46: ='CT River'!B16 -> 2 | R46: ='CT River'!C16 -> N | S46: ='CT River'!D16 -> Rich B | T46: ='CT River'!N16 -> 0 | V46: 2 | W46: N | X46: Kam | Y46: 4.91 | AA46: 4.91 | AB46: 5 | AD46: 0 | AE46: 0
A47: =McDonough!B17 -> 0 | B47: =McDonough!C17 -> N | C47: =McDonough!D17 -> Rich M | D47: =McDonough!N17 -> 0 | F47: 3 | G47: Y | H47: Dean | I47: 9.16 | K47: 15.44 | L47: 4 | N47: 0 | O47: 0 | Q47: ='CT River'!B17 -> 4 | R47: ='CT River'!C17 -> N | S47: ='CT River'!D17 -> Rich M | T47: ='CT River'!N17 -> 3.72 | V47: 2 | W47: N | X47: Rich B | Y47: 0 | AA47: 0 | AD47: 0 | AE47: 0
A48: =McDonough!B18 -> 4 | B48: =McDonough!C18 -> N | C48: =McDonough!D18 -> Rich T | D48: =McDonough!N18 -> 7.98 | F48: 4 | G48: N | H48: Rich T | I48: 7.98 | K48: 16.21 | L48: 2 | N48: 0 | O48: 0 | Q48: ='CT River'!B18 -> 8 | R48: ='CT River'!C18 -> N | S48: ='CT River'!D18 -> Rich T | T48: ='CT River'!N18 -> 3.72 | V48: 3 | W48: N | X48: Dean | Y48: 5.05 | AA48: 12.31 | AB48: 1 | AD48: 0 | AE48: 0
A49: =McDonough!B19 -> 2 | B49: =McDonough!C19 -> N | C49: =McDonough!D19 -> Ryan | D49: =McDonough!N19 -> 10.46 | F49: 4 | G49: N | H49: Steve D | I49: 8.23 | K49: 0 | N49: 0 | O49: 0 | Q49: ='CT River'!B19 -> 3 | R49: ='CT River'!C19 -> N | S49: ='CT River'!D19 -> Ryan | T49: ='CT River'!N19 -> 7.26 | V49: 3 | W49: N | X49: Ryan | Y49: 7.26 | AA49: 0 | AD49: 0 | AE49: 0
A50: =McDonough!B20 -> 2 | B50: =McDonough!C20 -> N | C50: =McDonough!D20 -> Scott | D50: =McDonough!N20 -> 8.27 | F50: 5 | G50: N | H50: Jason | I50: 9.71 | K50: 10.73 | L50: 8 | N50: 0 | O50: 0 | Q50: ='CT River'!B20 -> 6 | R50: ='CT River'!C20 -> N | S50: ='CT River'!D20 -> Scott | T50: ='CT River'!N20 -> 2.47 | V50: 4 | W50: N | X50: Rich M | Y50: 3.72 | AA50: 11.06 | AB50: 2 | AD50: 0 | AE50: 0
A51: =McDonough!B21 -> 4 | B51: =McDonough!C21 -> N | C51: =McDonough!D21 -> Steve D | D51: =McDonough!N21 -> 8.23 | F51: 5 | G51: N | H51: Oz | I51: 1.02 | K51: 0 | N51: 0 | O51: 0 | Q51: ='CT River'!B21 -> 4 | R51: ='CT River'!C21 -> N | S51: ='CT River'!D21 -> Steve D | T51: ='CT River'!N21 -> 7.34 | V51: 4 | W51: N | X51: Steve D | Y51: 7.34 | AA51: 0 | AD51: 0 | AE51: 0
A52: =McDonough!B22 -> 7 | B52: =McDonough!C22 -> N | C52: =McDonough!D22 -> Steve S | D52: =McDonough!N22 -> 6.7 | F52: 6 | G52: N | H52: Jim B | I52: 7.43 | K52: 13.49 | L52: 6 | N52: 0 | O52: 0 | Q52: ='CT River'!B22 -> 1 | R52: ='CT River'!C22 -> N | S52: ='CT River'!D22 -> Steve S | T52: ='CT River'!N22 -> 4.15 | V52: 5 | W52: N | X52: Morrie | Y52: 4.57 | AA52: 4.57 | AB52: 6 | AD52: 1 | AE52: 0
A53: =McDonough!B23 -> 6 | B53: =McDonough!C23 -> N | C53: =McDonough!D23 -> Tom | D53: =McDonough!N23 -> 6.06 | F53: 6 | G53: N | H53: Tom | I53: 6.06 | K53: 0 | N53: 2 | O53: 0 | Q53: ='CT River'!B23 -> 0 | R53: ='CT River'!C23 -> N | S53: ='CT River'!D23 -> Tom | T53: ='CT River'!N23 -> 0 | V53: 5 | W53: N | X53: Oz | Y53: 0 | AA53: 0 | AD53: 2 | AE53: 0
A54: =McDonough!B24 -> 0 | B54: =McDonough!C24 -> N | C54: =McDonough!D24 -> X | D54: =McDonough!N24 -> 0 | F54: 7 | G54: N | H54: Armand | I54: 9.42 | K54: 16.12 | L54: 3 | N54: 4 | O54: 0 | Q54: ='CT River'!B24 -> 0 | R54: ='CT River'!C24 -> N | S54: ='CT River'!D24 -> X | T54: ='CT River'!N24 -> 0 | V54: 6 | W54: N | X54: Mike G | Y54: 0.86 | AA54: 3.33 | AB54: 8 | AD54: 3 | AE54: 0
A55: =McDonough!B25 -> 0 | B55: =McDonough!C25 -> N | C55: =McDonough!D25 -> X | D55: =McDonough!N25 -> 0 | F55: 7 | G55: N | H55: Steve S | I55: 6.7 | K55: 0 | N55: 5 | O55: 0 | Q55: ='CT River'!B25 -> 0 | R55: ='CT River'!C25 -> N | S55: ='CT River'!D25 -> X | T55: ='CT River'!N25 -> 0 | V55: 6 | W55: N | X55: Scott | Y55: 2.47 | AA55: 0 | AD55: 4 | AE55: 0
A56: =McDonough!B26 -> 0 | B56: =McDonough!C26 -> N | C56: =McDonough!D26 -> X | D56: =McDonough!N26 -> 0 | F56: 8 | G56: N | H56: Anthony | I56: 2.39 | K56: 10.06 | L56: 9 | N56: 6 | O56: 0 | Q56: ='CT River'!B26 -> 0 | R56: ='CT River'!C26 -> N | S56: ='CT River'!D26 -> X | T56: ='CT River'!N26 -> 0 | V56: 7 | W56: N | X56: Jack | Y56: 8 | AA56: 9.88 | AB56: 3 | AD56: 5 | AE56: 0
A57: =McDonough!B27 -> 0 | B57: =McDonough!C27 -> N | C57: =McDonough!D27 -> X | D57: =McDonough!N27 -> 0 | F57: 8 | G57: N | H57: Kevin | I57: 7.67 | K57: 0 | N57: 7 | O57: 0 | Q57: ='CT River'!B27 -> 0 | R57: ='CT River'!C27 -> N | S57: ='CT River'!D27 -> X | T57: ='CT River'!N27 -> 0 | V57: 7 | W57: N | X57: Kevin | Y57: 1.88 | AA57: 0 | AD57: 6 | AE57: 0
A58: =McDonough!B28 -> 0 | B58: =McDonough!C28 -> N | C58: =McDonough!D28 -> X | D58: =McDonough!N28 -> 0 | F58: 9 | G58: N | H58: Jack | I58: 6.33 | K58: 14.31 | L58: 5 | N58: 8 | O58: 0 | Q58: ='CT River'!B28 -> 0 | R58: ='CT River'!C28 -> N | S58: ='CT River'!D28 -> X | T58: ='CT River'!N28 -> 0 | V58: 8 | W58: N | X58: Armand | Y58: 0 | AA58: 3.72 | AB58: 7 | AD58: 7 | AE58: 0
A59: =McDonough!B29 -> 0 | B59: =McDonough!C29 -> N | C59: =McDonough!D29 -> X | D59: =McDonough!N29 -> 0 | F59: 9 | G59: N | H59: Pete | I59: 7.98 | K59: 0 | N59: 9 | O59: 0 | Q59: ='CT River'!B29 -> 0 | R59: ='CT River'!C29 -> N | S59: ='CT River'!D29 -> X | T59: ='CT River'!N29 -> 0 | V59: 8 | W59: N | X59: Rich T | Y59: 3.72 | AA59: 0 | AD59: 8 | AE59: 0
B60: Macro | C60: CTL+D | D60: Teams | E60: 2 | H60: NB Avg | I60: =McDonough!Q31 -> 6.28 | R60: Macro | S60: CTL+T | T60: Teams | U60: 6 | X60: NB Avg | Y60: ='CT River'!Q31 -> 3.97375
A62: =YTD!L17 -> Quaddick | M62: Sort | N62: Copy | O62: Sort | Q62: =YTD!L21 -> West Hill | AC62: Sort | AD62: Copy | AE62: Sort
A63: Team # | B63: Alone? | C63: Name | D63: Net Wt | F63: Team # | G63: Alone? | H63: Name | I63: Net Wt | K63: Totals | L63: Rank | M63: Rank | N63: Team # | O63: Tot Wt | Q63: Team # | R63: Alone? | S63: Name | T63: Net Wt | V63: Team # | W63: Alone? | X63: Name | Y63: Net Wt | AA63: Totals | AB63: Rank | AC63: Rank | AD63: Team # | AE63: Tot Wt
A64: =Quaddick!B4 -> 3 | B64: =Quaddick!C4 -> N | C64: =Quaddick!D4 -> Anthony | D64: =Quaddick!N4 -> 0 | F64: 0 | G64: N | H64: Kam | I64: 0 | K64: =IF(F64=20,0,IF(F64=F65,I64+I65,IF(G64="Y",I64+I$90,0))) -> 0 | L64: =IF(K64>0,RANK(K64,K$64:K$89,0),"") ->  | M64: 1 | N64: 4 | O64: 17.54 | Q64: ='West Hill'!B4 -> 0 | R64: ='West Hill'!C4 -> N | S64: ='West Hill'!D4 -> Anthony | T64: ='West Hill'!N4 -> 0 | V64: 0 | W64: N | X64: Anthony | Y64: 0 | AA64: =IF(V64=20,0,IF(V64=V65,Y64+Y65,IF(W64="Y",Y64+Y$90,0))) -> 0 | AB64: =IF(AA64>0,RANK(AA64,AA$64:AA$89,0),"") ->  | AC64: 1 | AD64: 2 | AE64: 8.94
A65: =Quaddick!B5 -> 9 | B65: =Quaddick!C5 -> N | C65: =Quaddick!D5 -> Armand | D65: =Quaddick!N5 -> 8.56 | F65: 0 | G65: N | H65: Rich B | I65: 0 | K65: =IF(F65=20,0,IF(F65=F66,I65+I66,IF(G65="Y",I65+I$90,0))) -> 0 | L65: =IF(K65>0,RANK(K65,K$64:K$89,0),"") ->  | M65: 2 | N65: 1 | O65: 14.61 | Q65: ='West Hill'!B5 -> 7 | R65: ='West Hill'!C5 -> N | S65: ='West Hill'!D5 -> Armand | T65: ='West Hill'!N5 -> 3.21 | V65: 0 | W65: N | X65: Jason | Y65: 0 | AA65: =IF(V65=20,0,IF(V65=V66,Y65+Y66,IF(W65="Y",Y65+Y$90,0))) -> 0 | AB65: =IF(AA65>0,RANK(AA65,AA$64:AA$89,0),"") ->  | AC65: 2 | AD65: 7 | AE65: 4.38
A66: =Quaddick!B6 -> 5 | B66: =Quaddick!C6 -> N | C66: =Quaddick!D6 -> Dean | D66: =Quaddick!N6 -> 8.43 | F66: 0 | G66: N | H66: X | I66: 0 | K66: 0 | M66: 3 | N66: 9 | O66: 14.35 | Q66: ='West Hill'!B6 -> 1 | R66: ='West Hill'!C6 -> N | S66: ='West Hill'!D6 -> Dean | T66: ='West Hill'!N6 -> 3.21 | V66: 0 | W66: N | X66: Tom | Y66: 0 | AA66: 0 | AC66: 3 | AD66: 1 | AE66: 4.08
A67: =Quaddick!B7 -> 6 | B67: =Quaddick!C7 -> N | C67: =Quaddick!D7 -> Jack | D67: =Quaddick!N7 -> 6.43 | F67: 0 | G67: N | H67: X | I67: 0 | K67: 0 | M67: 4 | N67: 2 | O67: 14.14 | Q67: ='West Hill'!B7 -> 2 | R67: ='West Hill'!C7 -> N | S67: ='West Hill'!D7 -> Jack | T67: ='West Hill'!N7 -> 4.77 | V67: 0 | W67: N | X67: X | Y67: 0 | AA67: 0 | AC67: 4 | AD67: 9 | AE67: 3.22
A68: =Quaddick!B8 -> 3 | B68: =Quaddick!C8 -> N | C68: =Quaddick!D8 -> Jason | D68: =Quaddick!N8 -> 4.18 | F68: 0 | G68: N | H68: X | I68: 0 | K68: 0 | M68: 5 | N68: 8 | O68: 12.79 | Q68: ='West Hill'!B8 -> 0 | R68: ='West Hill'!C8 -> N | S68: ='West Hill'!D8 -> Jason | T68: ='West Hill'!N8 -> 0 | V68: 0 | W68: N | X68: X | Y68: 0 | AA68: 0 | AC68: 5 | AD68: 4 | AE68: 3.14
A69: =Quaddick!B9 -> 7 | B69: =Quaddick!C9 -> N | C69: =Quaddick!D9 -> Jim B | D69: =Quaddick!N9 -> 4.79 | F69: 0 | G69: N | H69: X | I69: 0 | K69: 0 | M69: 6 | N69: 7 | O69: 12 | Q69: ='West Hill'!B9 -> 3 | R69: ='West Hill'!C9 -> N | S69: ='West Hill'!D9 -> Jim B | T69: ='West Hill'!N9 -> 0 | V69: 0 | W69: N | X69: X | Y69: 0 | AA69: 0 | AC69: 6 | AD69: 3 | AE69: 2.02
A70: =Quaddick!B10 -> 0 | B70: =Quaddick!C10 -> N | C70: =Quaddick!D10 -> Kam | D70: =Quaddick!N10 -> 0 | F70: 0 | G70: N | H70: X | I70: 0 | K70: 0 | M70: 7 | N70: 5 | O70: 10.3 | Q70: ='West Hill'!B10 -> 9 | R70: ='West Hill'!C10 -> N | S70: ='West Hill'!D10 -> Kam | T70: ='West Hill'!N10 -> 1.3 | V70: 0 | W70: N | X70: X | Y70: 0 | AA70: 0 | AC70: 7 | AD70: 6 | AE70: 2.0125
A71: =Quaddick!B11 -> 8 | B71: =Quaddick!C11 -> N | C71: =Quaddick!D11 -> Kevin | D71: =Quaddick!N11 -> 9.07 | F71: 0 | G71: N | H71: X | I71: 0 | K71: 0 | M71: 8 | N71: 6 | O71: 9.9 | Q71: ='West Hill'!B11 -> 9 | R71: ='West Hill'!C11 -> N | S71: ='West Hill'!D11 -> Kevin | T71: ='West Hill'!N11 -> 1.92 | V71: 0 | W71: N | X71: X | Y71: 0 | AA71: 0 | AC71: 8 | AD71: 8 | AE71: 1.56
A72: =Quaddick!B12 -> 1 | B72: =Quaddick!C12 -> N | C72: =Quaddick!D12 -> Mike G | D72: =Quaddick!N12 -> 4.75 | F72: 1 | G72: N | H72: Mike G | I72: 4.75 | K72: 14.61 | L72: 2 | M72: 9 | N72: 3 | O72: 4.18 | Q72: ='West Hill'!B12 -> 7 | R72: ='West Hill'!C12 -> N | S72: ='West Hill'!D12 -> Mike G | T72: ='West Hill'!N12 -> 1.17 | V72: 0 | W72: N | X72: X | Y72: 0 | AA72: 0 | AC72: 9 | AD72: 5 | AE72: 0.74
A73: =Quaddick!B13 -> 8 | B73: =Quaddick!C13 -> N | C73: =Quaddick!D13 -> Morrie | D73: =Quaddick!N13 -> 3.72 | F73: 1 | G73: N | H73: Steve D | I73: 9.86 | K73: 0 | N73: 0 | O73: 0 | Q73: ='West Hill'!B13 -> 8 | R73: ='West Hill'!C13 -> N | S73: ='West Hill'!D13 -> Morrie | T73: ='West Hill'!N13 -> 0.75 | V73: 1 | W73: N | X73: Dean | Y73: 3.21 | AA73: 4.08 | AB73: 3 | AD73: 0 | AE73: 0
A74: =Quaddick!B14 -> 5 | B74: =Quaddick!C14 -> N | C74: =Quaddick!D14 -> Oz | D74: =Quaddick!N14 -> 1.87 | F74: 2 | G74: N | H74: Pete | I74: 4.29 | K74: 14.14 | L74: 4 | N74: 0 | O74: 0 | Q74: ='West Hill'!B14 -> 8 | R74: ='West Hill'!C14 -> N | S74: ='West Hill'!D14 -> Oz | T74: ='West Hill'!N14 -> 0.81 | V74: 1 | W74: N | X74: Pete | Y74: 0.87 | AA74: 0 | AD74: 0 | AE74: 0
A75: =Quaddick!B15 -> 2 | B75: =Quaddick!C15 -> N | C75: =Quaddick!D15 -> Pete | D75: =Quaddick!N15 -> 4.29 | F75: 2 | G75: N | H75: Scott | I75: 9.85 | K75: 0 | N75: 0 | O75: 0 | Q75: ='West Hill'!B15 -> 1 | R75: ='West Hill'!C15 -> N | S75: ='West Hill'!D15 -> Pete | T75: ='West Hill'!N15 -> 0.87 | V75: 2 | W75: N | X75: Jack | Y75: 4.77 | AA75: 8.94 | AB75: 1 | AD75: 0 | AE75: 0
A76: =Quaddick!B16 -> 0 | B76: =Quaddick!C16 -> N | C76: =Quaddick!D16 -> Rich B | D76: =Quaddick!N16 -> 0 | F76: 3 | G76: N | H76: Anthony | I76: 0 | K76: 4.18 | L76: 9 | N76: 0 | O76: 0 | Q76: ='West Hill'!B16 -> 3 | R76: ='West Hill'!C16 -> N | S76: ='West Hill'!D16 -> Rich B | T76: ='West Hill'!N16 -> 2.02 | V76: 2 | W76: N | X76: Rich T | Y76: 4.17 | AA76: 0 | AD76: 0 | AE76: 0
A77: =Quaddick!B17 -> 6 | B77: =Quaddick!C17 -> N | C77: =Quaddick!D17 -> Rich M | D77: =Quaddick!N17 -> 3.47 | F77: 3 | G77: N | H77: Jason | I77: 4.18 | K77: 0 | N77: 0 | O77: 0 | Q77: ='West Hill'!B17 -> 5 | R77: ='West Hill'!C17 -> N | S77: ='West Hill'!D17 -> Rich M | T77: ='West Hill'!N17 -> 0 | V77: 3 | W77: N | X77: Jim B | Y77: 0 | AA77: 2.02 | AB77: 6 | AD77: 0 | AE77: 0
A78: =Quaddick!B18 -> 4 | B78: =Quaddick!C18 -> N | C78: =Quaddick!D18 -> Rich T | D78: =Quaddick!N18 -> 8.41 | F78: 4 | G78: N | H78: Rich T | I78: 8.41 | K78: 17.54 | L78: 1 | N78: 0 | O78: 0 | Q78: ='West Hill'!B18 -> 2 | R78: ='West Hill'!C18 -> N | S78: ='West Hill'!D18 -> Rich T | T78: ='West Hill'!N18 -> 4.17 | V78: 3 | W78: N | X78: Rich B | Y78: 2.02 | AA78: 0 | AD78: 0 | AE78: 0
A79: =Quaddick!B19 -> 9 | B79: =Quaddick!C19 -> N | C79: =Quaddick!D19 -> Ryan | D79: =Quaddick!N19 -> 5.79 | F79: 4 | G79: N | H79: Steve S | I79: 9.13 | K79: 0 | N79: 0 | O79: 0 | Q79: ='West Hill'!B19 -> 4 | R79: ='West Hill'!C19 -> N | S79: ='West Hill'!D19 -> Ryan | T79: ='West Hill'!N19 -> 1.54 | V79: 4 | W79: N | X79: Ryan | Y79: 1.54 | AA79: 3.14 | AB79: 5 | AD79: 0 | AE79: 0
A80: =Quaddick!B20 -> 2 | B80: =Quaddick!C20 -> N | C80: =Quaddick!D20 -> Scott | D80: =Quaddick!N20 -> 9.85 | F80: 5 | G80: N | H80: Dean | I80: 8.43 | K80: 10.3 | L80: 7 | N80: 0 | O80: 0 | Q80: ='West Hill'!B20 -> 6 | R80: ='West Hill'!C20 -> y | S80: ='West Hill'!D20 -> Scott | T80: ='West Hill'!N20 -> 0.78 | V80: 4 | W80: N | X80: Steve D | Y80: 1.6 | AA80: 0 | AD80: 0 | AE80: 0
A81: =Quaddick!B21 -> 1 | B81: =Quaddick!C21 -> N | C81: =Quaddick!D21 -> Steve D | D81: =Quaddick!N21 -> 9.86 | F81: 5 | G81: N | H81: Oz | I81: 1.87 | K81: 0 | N81: 1 | O81: 0 | Q81: ='West Hill'!B21 -> 4 | R81: ='West Hill'!C21 -> N | S81: ='West Hill'!D21 -> Steve D | T81: ='West Hill'!N21 -> 1.6 | V81: 5 | W81: N | X81: Rich M | Y81: 0 | AA81: 0.74 | AB81: 9 | AD81: 0 | AE81: 0
A82: =Quaddick!B22 -> 4 | B82: =Quaddick!C22 -> N | C82: =Quaddick!D22 -> Steve S | D82: =Quaddick!N22 -> 9.13 | F82: 6 | G82: N | H82: Jack | I82: 6.43 | K82: 9.9 | L82: 8 | N82: 2 | O82: 0 | Q82: ='West Hill'!B22 -> 5 | R82: ='West Hill'!C22 -> N | S82: ='West Hill'!D22 -> Steve S | T82: ='West Hill'!N22 -> 0.74 | V82: 5 | W82: N | X82: Steve S | Y82: 0.74 | AA82: 0 | AD82: 1 | AE82: 0
A83: =Quaddick!B23 -> 7 | B83: =Quaddick!C23 -> N | C83: =Quaddick!D23 -> Tom | D83: =Quaddick!N23 -> 7.21 | F83: 6 | G83: N | H83: Rich M | I83: 3.47 | K83: 0 | N83: 3 | O83: 0 | Q83: ='West Hill'!B23 -> 0 | R83: ='West Hill'!C23 -> N | S83: ='West Hill'!D23 -> Tom | T83: ='West Hill'!N23 -> 0 | V83: 6 | W83: y | X83: Scott | Y83: 0.78 | AA83: 2.0125 | AB83: 7 | AD83: 2 | AE83: 0
A84: =Quaddick!B24 -> 0 | B84: =Quaddick!C24 -> N | C84: =Quaddick!D24 -> X | D84: =Quaddick!N24 -> 0 | F84: 7 | G84: N | H84: Jim B | I84: 4.79 | K84: 12 | L84: 6 | N84: 4 | O84: 0 | Q84: ='West Hill'!B24 -> 0 | R84: ='West Hill'!C24 -> N | S84: ='West Hill'!D24 -> X | T84: ='West Hill'!N24 -> 0 | V84: 7 | W84: N | X84: Armand | Y84: 3.21 | AA84: 4.38 | AB84: 2 | AD84: 3 | AE84: 0
A85: =Quaddick!B25 -> 0 | B85: =Quaddick!C25 -> N | C85: =Quaddick!D25 -> X | D85: =Quaddick!N25 -> 0 | F85: 7 | G85: N | H85: Tom | I85: 7.21 | K85: 0 | N85: 5 | O85: 0 | Q85: ='West Hill'!B25 -> 0 | R85: ='West Hill'!C25 -> N | S85: ='West Hill'!D25 -> X | T85: ='West Hill'!N25 -> 0 | V85: 7 | W85: N | X85: Mike G | Y85: 1.17 | AA85: 0 | AD85: 4 | AE85: 0
A86: =Quaddick!B26 -> 0 | B86: =Quaddick!C26 -> N | C86: =Quaddick!D26 -> X | D86: =Quaddick!N26 -> 0 | F86: 8 | G86: N | H86: Kevin | I86: 9.07 | K86: 12.79 | L86: 5 | N86: 6 | O86: 0 | Q86: ='West Hill'!B26 -> 0 | R86: ='West Hill'!C26 -> N | S86: ='West Hill'!D26 -> X | T86: ='West Hill'!N26 -> 0 | V86: 8 | W86: N | X86: Morrie | Y86: 0.75 | AA86: 1.56 | AB86: 8 | AD86: 5 | AE86: 0
A87: =Quaddick!B27 -> 0 | B87: =Quaddick!C27 -> N | C87: =Quaddick!D27 -> X | D87: =Quaddick!N27 -> 0 | F87: 8 | G87: N | H87: Morrie | I87: 3.72 | K87: 0 | N87: 7 | O87: 0 | Q87: ='West Hill'!B27 -> 0 | R87: ='West Hill'!C27 -> N | S87: ='West Hill'!D27 -> X | T87: ='West Hill'!N27 -> 0 | V87: 8 | W87: N | X87: Oz | Y87: 0.81 | AA87: 0 | AD87: 7 | AE87: 0
A88: =Quaddick!B28 -> 0 | B88: =Quaddick!C28 -> N | C88: =Quaddick!D28 -> X | D88: =Quaddick!N28 -> 0 | F88: 9 | G88: N | H88: Armand | I88: 8.56 | K88: 14.35 | L88: 3 | N88: 8 | O88: 0 | Q88: ='West Hill'!B28 -> 0 | R88: ='West Hill'!C28 -> N | S88: ='West Hill'!D28 -> X | T88: ='West Hill'!N28 -> 0 | V88: 9 | W88: N | X88: Kam | Y88: 1.3 | AA88: 3.22 | AB88: 4 | AD88: 8 | AE88: 0
A89: =Quaddick!B29 -> 0 | B89: =Quaddick!C29 -> N | C89: =Quaddick!D29 -> X | D89: =Quaddick!N29 -> 0 | F89: 9 | G89: N | H89: Ryan | I89: 5.79 | K89: 0 | N89: 9 | O89: 0 | Q89: ='West Hill'!B29 -> 0 | R89: ='West Hill'!C29 -> N | S89: ='West Hill'!D29 -> X | T89: ='West Hill'!N29 -> 0 | V89: 9 | W89: N | X89: Kevin | Y89: 1.92 | AA89: 0 | AD89: 9 | AE89: 0
B90: Macro | C90: CTL+H | D90: Teams | E90: 3 | H90: NB Avg | I90: =Quaddick!Q31 -> 4.715555556 | R90: Macro | S90: CTL+E | T90: Teams | U90: 7 | X90: NB Avg | Y90: ='West Hill'!Q31 -> 1.2325
A92: =YTD!L18 -> Candlewood | M92: Sort | N92: Copy | O92: Sort | Q92: =YTD!L22 -> Moodus | AC92: Sort | AD92: Copy | AE92: Sort
A93: Team # | B93: Alone? | C93: Name | D93: Net Wt | F93: Team # | G93: Alone? | H93: Name | I93: Net Wt | K93: Totals | L93: Rank | M93: Rank | N93: Team # | O93: Tot Wt | Q93: Team # | R93: Alone? | S93: Name | T93: Net Wt | V93: Team # | W93: Alone? | X93: Name | Y93: Net Wt | AA93: Totals | AB93: Rank | AC93: Rank | AD93: Team # | AE93: Tot Wt
A94: =Candlewood!B4 -> 5 | B94: =Candlewood!C4 -> N | C94: =Candlewood!D4 -> Anthony | D94: =Candlewood!N4 -> 1.83 | F94: 0 | G94: N | H94: Armand | I94: 0 | K94: =IF(F94=20,0,IF(F94=F95,I94+I95,IF(G94="Y",I94+I$120,0))) -> 0 | L94: =IF(K94>0,RANK(K94,K$94:K$119,0),"") ->  | M94: 1 | N94: 1 | O94: 22.01 | Q94: =Moodus!B4 -> 0 | R94: =Moodus!C4 -> N | S94: =Moodus!D4 -> Anthony | T94: =Moodus!N4 -> 0 | V94: 0 | W94: N | X94: Anthony | Y94: 0 | AA94: =IF(V94=20,0,IF(V94=V95,Y94+Y95,IF(W94="Y",Y94+Y$120,0))) -> 0 | AB94: =IF(AA94>0,RANK(AA94,AA$94:AA$119,0),"") ->  | AC94: 1 | AD94: 4 | AE94: 12.23
A95: =Candlewood!B5 -> 0 | B95: =Candlewood!C5 -> N | C95: =Candlewood!D5 -> Armand | D95: =Candlewood!N5 -> 0 | F95: 0 | G95: N | H95: Jim B | I95: 0 | K95: =IF(F95=20,0,IF(F95=F96,I95+I96,IF(G95="Y",I95+I$120,0))) -> 0 | L95: =IF(K95>0,RANK(K95,K$94:K$119,0),"") ->  | M95: 2 | N95: 8 | O95: 21.36 | Q95: =Moodus!B5 -> 3 | R95: =Moodus!C5 -> N | S95: =Moodus!D5 -> Armand | T95: =Moodus!N5 -> 3.28 | V95: 0 | W95: N | X95: Jason | Y95: 0 | AA95: =IF(V95=20,0,IF(V95=V96,Y95+Y96,IF(W95="Y",Y95+Y$120,0))) -> 0 | AB95: =IF(AA95>0,RANK(AA95,AA$94:AA$119,0),"") ->  | AC95: 2 | AD95: 6 | AE95: 4.8
A96: =Candlewood!B6 -> 5 | B96: =Candlewood!C6 -> N | C96: =Candlewood!D6 -> Dean | D96: =Candlewood!N6 -> 14.7 | F96: 0 | G96: N | H96: Kam | I96: 0 | K96: 0 | M96: 3 | N96: 9 | O96: 20.29 | Q96: =Moodus!B6 -> 8 | R96: =Moodus!C6 -> y | S96: =Moodus!D6 -> Dean | T96: =Moodus!N6 -> 2.28 | V96: 0 | W96: N | X96: Mike G | Y96: 0 | AA96: 0 | AC96: 3 | AD96: 5 | AE96: 4.69
A97: =Candlewood!B7 -> 1 | B97: =Candlewood!C7 -> N | C97: =Candlewood!D7 -> Jack | D97: =Candlewood!N7 -> 9.37 | F97: 0 | G97: N | H97: Morrie | I97: 0 | K97: 0 | M97: 4 | N97: 7 | O97: 17.38142857 | Q97: =Moodus!B7 -> 5 | R97: =Moodus!C7 -> N | S97: =Moodus!D7 -> Jack | T97: =Moodus!N7 -> 3.84 | V97: 0 | W97: N | X97: Rich T | Y97: 0 | AA97: 0 | AC97: 4 | AD97: 3 | AE97: 4.04
A98: =Candlewood!B8 -> 6 | B98: =Candlewood!C8 -> N | C98: =Candlewood!D8 -> Jason | D98: =Candlewood!N8 -> 3.54 | F98: 0 | G98: N | H98: X | I98: 0 | K98: 0 | M98: 5 | N98: 5 | O98: 16.53 | Q98: =Moodus!B8 -> 0 | R98: =Moodus!C8 -> N | S98: =Moodus!D8 -> Jason | T98: =Moodus!N8 -> 0 | V98: 0 | W98: N | X98: Tom | Y98: 0 | AA98: 0 | AC98: 5 | AD98: 8 | AE98: 3.935714286
A99: =Candlewood!B9 -> 0 | B99: =Candlewood!C9 -> N | C99: =Candlewood!D9 -> Jim B | D99: =Candlewood!N9 -> 0 | F99: 0 | G99: N | H99: X | I99: 0 | K99: 0 | M99: 6 | N99: 4 | O99: 15.5 | Q99: =Moodus!B9 -> 1 | R99: =Moodus!C9 -> N | S99: =Moodus!D9 -> Jim B | T99: =Moodus!N9 -> 0.77 | V99: 0 | W99: N | X99: X | Y99: 0 | AA99: 0 | AC99: 6 | AD99: 2 | AE99: 3.3
A100: =Candlewood!B10 -> 0 | B100: =Candlewood!C10 -> N | C100: =Candlewood!D10 -> Kam | D100: =Candlewood!N10 -> 0 | F100: 0 | G100: N | H100: X | I100: 0 | K100: 0 | M100: 7 | N100: 3 | O100: 14.55142857 | Q100: =Moodus!B10 -> 5 | R100: =Moodus!C10 -> N | S100: =Moodus!D10 -> Kam | T100: =Moodus!N10 -> 0.85 | V100: 0 | W100: N | X100: X | Y100: 0 | AA100: 0 | AC100: 7 | AD100: 1 | AE100: 2.99
A101: =Candlewood!B11 -> 9 | B101: =Candlewood!C11 -> N | C101: =Candlewood!D11 -> Kevin | D101: =Candlewood!N11 -> 9.52 | F101: 0 | G101: N | H101: X | I101: 0 | K101: 0 | M101: 8 | N101: 6 | O101: 10.47 | Q101: =Moodus!B11 -> 1 | R101: =Moodus!C11 -> N | S101: =Moodus!D11 -> Kevin | T101: =Moodus!N11 -> 2.22 | V101: 0 | W101: N | X101: X | Y101: 0 | AA101: 0 | AC101: 8 | AD101: 7 | AE101: 2.73
A102: =Candlewood!B12 -> 2 | B102: =Candlewood!C12 -> N | C102: =Candlewood!D12 -> Mike G | D102: =Candlewood!N12 -> 5.4 | F102: 0 | G102: N | H102: X | I102: 0 | K102: 0 | M102: 9 | N102: 2 | O102: 9.97 | Q102: =Moodus!B12 -> 0 | R102: =Moodus!C12 -> N | S102: =Moodus!D12 -> Mike G | T102: =Moodus!N12 -> 0 | V102: 0 | W102: N | X102: X | Y102: 0 | AA102: 0 | AD102: 0 | AE102: 0
A103: =Candlewood!B13 -> 0 | B103: =Candlewood!C13 -> N | C103: =Candlewood!D13 -> Morrie | D103: =Candlewood!N13 -> 0 | F103: 0 | G103: N | H103: X | I103: 0 | K103: 0 | N103: 0 | O103: 0 | Q103: =Moodus!B13 -> 2 | R103: =Moodus!C13 -> N | S103: =Moodus!D13 -> Morrie | T103: =Moodus!N13 -> 0 | V103: 0 | W103: N | X103: X | Y103: 0 | AA103: 0 | AD103: 0 | AE103: 0
A104: =Candlewood!B14 -> 8 | B104: =Candlewood!C14 -> N | C104: =Candlewood!D14 -> Oz | D104: =Candlewood!N14 -> 8.09 | F104: 1 | G104: N | H104: Jack | I104: 9.37 | K104: 22.01 | L104: 1 | N104: 0 | O104: 0 | Q104: =Moodus!B14 -> 3 | R104: =Moodus!C14 -> N | S104: =Moodus!D14 -> Oz | T104: =Moodus!N14 -> 0.76 | V104: 0 | W104: N | X104: X | Y104: 0 | AA104: 0 | AD104: 0 | AE104: 0
A105: =Candlewood!B15 -> 4 | B105: =Candlewood!C15 -> N | C105: =Candlewood!D15 -> Pete | D105: =Candlewood!N15 -> 9.16 | F105: 1 | G105: N | H105: Rich T | I105: 12.64 | K105: 0 | N105: 0 | O105: 0 | Q105: =Moodus!B15 -> 6 | R105: =Moodus!C15 -> N | S105: =Moodus!D15 -> Pete | T105: =Moodus!N15 -> 1.53 | V105: 1 | W105: N | X105: Jim B | Y105: 0.77 | AA105: 2.99 | AB105: 7 | AD105: 0 | AE105: 0
A106: =Candlewood!B16 -> 4 | B106: =Candlewood!C16 -> N | C106: =Candlewood!D16 -> Rich B | D106: =Candlewood!N16 -> 6.34 | F106: 2 | G106: N | H106: Mike G | I106: 5.4 | K106: 9.97 | L106: 9 | N106: 0 | O106: 0 | Q106: =Moodus!B16 -> 4 | R106: =Moodus!C16 -> N | S106: =Moodus!D16 -> Rich B | T106: =Moodus!N16 -> 1.65 | V106: 1 | W106: N | X106: Kevin | Y106: 2.22 | AA106: 0 | AD106: 0 | AE106: 0
A107: =Candlewood!B17 -> 6 | B107: =Candlewood!C17 -> N | C107: =Candlewood!D17 -> Rich M | D107: =Candlewood!N17 -> 6.93 | F107: 2 | G107: N | H107: Steve S | I107: 4.57 | K107: 0 | N107: 0 | O107: 0 | Q107: =Moodus!B17 -> 2 | R107: =Moodus!C17 -> N | S107: =Moodus!D17 -> Rich M | T107: =Moodus!N17 -> 3.3 | V107: 2 | W107: N | X107: Morrie | Y107: 0 | AA107: 3.3 | AB107: 6 | AD107: 0 | AE107: 0
A108: =Candlewood!B18 -> 1 | B108: =Candlewood!C18 -> N | C108: =Candlewood!D18 -> Rich T | D108: =Candlewood!N18 -> 12.64 | F108: 3 | G108: Y | H108: Scott | I108: 6.72 | K108: 14.55142857 | L108: 7 | N108: 0 | O108: 0 | Q108: =Moodus!B18 -> 0 | R108: =Moodus!C18 -> N | S108: =Moodus!D18 -> Rich T | T108: =Moodus!N18 -> 0 | V108: 2 | W108: N | X108: Rich M | Y108: 3.3 | AA108: 0 | AD108: 0 | AE108: 0
A109: =Candlewood!B19 -> 9 | B109: =Candlewood!C19 -> N | C109: =Candlewood!D19 -> Ryan | D109: =Candlewood!N19 -> 10.77 | F109: 4 | G109: N | H109: Pete | I109: 9.16 | K109: 15.5 | L109: 6 | N109: 0 | O109: 0 | Q109: =Moodus!B19 -> 7 | R109: =Moodus!C19 -> N | S109: =Moodus!D19 -> Ryan | T109: =Moodus!N19 -> 2.73 | V109: 3 | W109: N | X109: Armand | Y109: 3.28 | AA109: 4.04 | AB109: 4 | AD109: 0 | AE109: 0
A110: =Candlewood!B20 -> 3 | B110: =Candlewood!C20 -> Y | C110: =Candlewood!D20 -> Scott | D110: =Candlewood!N20 -> 6.72 | F110: 4 | G110: N | H110: Rich B | I110: 6.34 | K110: 0 | N110: 0 | O110: 0 | Q110: =Moodus!B20 -> 4 | R110: =Moodus!C20 -> N | S110: =Moodus!D20 -> Scott | T110: =Moodus!N20 -> 10.58 | V110: 3 | W110: N | X110: Oz | Y110: 0.76 | AA110: 0 | AD110: 0 | AE110: 0
A111: =Candlewood!B21 -> 8 | B111: =Candlewood!C21 -> N | C111: =Candlewood!D21 -> Steve D | D111: =Candlewood!N21 -> 13.27 | F111: 5 | G111: N | H111: Anthony | I111: 1.83 | K111: 16.53 | L111: 5 | N111: 0 | O111: 0 | Q111: =Moodus!B21 -> 6 | R111: =Moodus!C21 -> N | S111: =Moodus!D21 -> Steve D | T111: =Moodus!N21 -> 3.27 | V111: 4 | W111: N | X111: Rich B | Y111: 1.65 | AA111: 12.23 | AB111: 1 | AD111: 0 | AE111: 0
A112: =Candlewood!B22 -> 2 | B112: =Candlewood!C22 -> N | C112: =Candlewood!D22 -> Steve S | D112: =Candlewood!N22 -> 4.57 | F112: 5 | G112: N | H112: Dean | I112: 14.7 | K112: 0 | N112: 0 | O112: 0 | Q112: =Moodus!B22 -> 7 | R112: =Moodus!C22 -> N | S112: =Moodus!D22 -> Steve S | T112: =Moodus!N22 -> 0 | V112: 4 | W112: N | X112: Scott | Y112: 10.58 | AA112: 0 | AD112: 0 | AE112: 0
A113: =Candlewood!B23 -> 7 | B113: =Candlewood!C23 -> Y | C113: =Candlewood!D23 -> Tom | D113: =Candlewood!N23 -> 9.55 | F113: 6 | G113: N | H113: Jason | I113: 3.54 | K113: 10.47 | L113: 8 | N113: 1 | O113: 0 | Q113: =Moodus!B23 -> 0 | R113: =Moodus!C23 -> N | S113: =Moodus!D23 -> Tom | T113: =Moodus!N23 -> 0 | V113: 5 | W113: N | X113: Jack | Y113: 3.84 | AA113: 4.69 | AB113: 3 | AD113: 1 | AE113: 0
A114: =Candlewood!B24 -> 0 | B114: =Candlewood!C24 -> N | C114: =Candlewood!D24 -> X | D114: =Candlewood!N24 -> 0 | F114: 6 | G114: N | H114: Rich M | I114: 6.93 | K114: 0 | N114: 2 | O114: 0 | Q114: =Moodus!B24 -> 0 | R114: =Moodus!C24 -> N | S114: =Moodus!D24 -> X | T114: =Moodus!N24 -> 0 | V114: 5 | W114: N | X114: Kam | Y114: 0.85 | AA114: 0 | AD114: 2 | AE114: 0
A115: =Candlewood!B25 -> 0 | B115: =Candlewood!C25 -> N | C115: =Candlewood!D25 -> X | D115: =Candlewood!N25 -> 0 | F115: 7 | G115: Y | H115: Tom | I115: 9.55 | K115: 17.38142857 | L115: 4 | N115: 4 | O115: 0 | Q115: =Moodus!B25 -> 0 | R115: =Moodus!C25 -> N | S115: =Moodus!D25 -> X | T115: =Moodus!N25 -> 0 | V115: 6 | W115: N | X115: Pete | Y115: 1.53 | AA115: 4.8 | AB115: 2 | AD115: 3 | AE115: 0
A116: =Candlewood!B26 -> 0 | B116: =Candlewood!C26 -> N | C116: =Candlewood!D26 -> X | D116: =Candlewood!N26 -> 0 | F116: 8 | G116: N | H116: Oz | I116: 8.09 | K116: 21.36 | L116: 2 | N116: 5 | O116: 0 | Q116: =Moodus!B26 -> 0 | R116: =Moodus!C26 -> N | S116: =Moodus!D26 -> X | T116: =Moodus!N26 -> 0 | V116: 6 | W116: N | X116: Steve D | Y116: 3.27 | AA116: 0 | AD116: 4 | AE116: 0
A117: =Candlewood!B27 -> 0 | B117: =Candlewood!C27 -> N | C117: =Candlewood!D27 -> X | D117: =Candlewood!N27 -> 0 | F117: 8 | G117: N | H117: Steve D | I117: 13.27 | K117: 0 | N117: 6 | O117: 0 | Q117: =Moodus!B27 -> 0 | R117: =Moodus!C27 -> N | S117: =Moodus!D27 -> X | T117: =Moodus!N27 -> 0 | V117: 7 | W117: N | X117: Ryan | Y117: 2.73 | AA117: 2.73 | AB117: 8 | AD117: 5 | AE117: 0
A118: =Candlewood!B28 -> 0 | B118: =Candlewood!C28 -> N | C118: =Candlewood!D28 -> X | D118: =Candlewood!N28 -> 0 | F118: 9 | G118: N | H118: Kevin | I118: 9.52 | K118: 20.29 | L118: 3 | N118: 8 | O118: 0 | Q118: =Moodus!B28 -> 0 | R118: =Moodus!C28 -> N | S118: =Moodus!D28 -> X | T118: =Moodus!N28 -> 0 | V118: 7 | W118: N | X118: Steve S | Y118: 0 | AA118: 0 | AD118: 6 | AE118: 0
A119: =Candlewood!B29 -> 0 | B119: =Candlewood!C29 -> N | C119: =Candlewood!D29 -> X | D119: =Candlewood!N29 -> 0 | F119: 9 | G119: N | H119: Ryan | I119: 10.77 | K119: 0 | N119: 9 | O119: 0 | Q119: =Moodus!B29 -> 0 | R119: =Moodus!C29 -> N | S119: =Moodus!D29 -> X | T119: =Moodus!N29 -> 0 | V119: 8 | W119: y | X119: Dean | Y119: 2.28 | AA119: 3.935714286 | AB119: 5 | AD119: 7 | AE119: 0
B120: Macro | C120: CTL+N | D120: Teams | E120: 4 | H120: NB Avg | I120: =Candlewood!Q31 -> 7.831428571 | R120: Macro | S120: CTL+Q | T120: Teams | U120: 8 | X120: NB Avg | Y120: =Moodus!Q31 -> 1.655714286

Sheet Report
A1: MVBC 2017 Year-To-Date Report
A3: Individual Standings | E3: Lunkers | K3: Individual Adj'd Total Weight
A4: Name | B4: Position | C4: Points | E4: Lake / River | F4: Name | G4: Weight | H4: Species | I4: Trophy | K4: Name | L4: Adj'd Weight
A5: =YTD!E15 -> Dean | B5: =YTD!F15 -> 1 | C5: =YTD!G15 -> 20 | E5: =YTD!L15 -> Bantam | F5: =IF(YTD!A103="X","N/A",YTD!A103) -> Armand | G5: =YTD!B103 -> 4.05 | H5: =IF(YTD!C103=0,"N/A",YTD!C103) -> SMB | I5: =IF((H5="LMB")*AND(G5>=6),"Yes",IF((H5="SMB")*AND(G5>=4),"Yes","No")) -> Yes | K5: =YTD!S49 -> Dean | L5: =YTD!T49 -> 59.02
A6: =YTD!E16 -> Armand | B6: =YTD!F16 -> 2 | C6: =YTD!G16 -> 22 | E6: =YTD!L16 -> McDonough | F6: =IF(YTD!D103="X","N/A",YTD!D103) -> Ryan | G6: =YTD!E103 -> 3.97 | H6: =IF(YTD!F103=0,"N/A",YTD!F103) -> LMB | I6: =IF((H6="LMB")*AND(G6>=6),"Yes",IF((H6="SMB")*AND(G6>=4),"Yes","No")) -> No | K6: =YTD!S54 -> Kevin | L6: =YTD!T54 -> 51.49
A7: =YTD!E17 -> Steve D | B7: =YTD!F17 -> 3 | C7: =YTD!G17 -> 23 | E7: =YTD!L17 -> Quaddick | F7: =IF(YTD!G103="X","N/A",YTD!G103) -> Tom | G7: =YTD!H103 -> 5.36 | H7: =IF(YTD!I103=0,"N/A",YTD!I103) -> lmb | I7: No | K7: =YTD!S64 -> Steve D | L7: =YTD!T64 -> 51.32
A8: =YTD!E18 -> Jack | B8: =YTD!F18 -> 4 | C8: =YTD!G18 -> 25 | E8: =YTD!L18 -> Candlewood | F8: =IF(YTD!J103="X","N/A",YTD!J103) -> Dean | G8: =YTD!K103 -> 3.91 | H8: =IF(YTD!L103=0,"N/A",YTD!L103) -> LMB | I8: No | K8: =YTD!S50 -> Jack | L8: =YTD!T50 -> 50.56
A9: =YTD!E19 -> Kevin | B9: =YTD!F19 -> 5 | C9: =YTD!G19 -> 28 | E9: =YTD!L19 -> Lillinonah | F9: =IF(YTD!M103="X","N/A",YTD!M103) -> Dean | G9: =YTD!N103 -> 3.94 | H9: =IF(YTD!O103=0,"N/A",YTD!O103) -> LMB | I9: =IF((H9="LMB")*AND(G9>=6),"Yes",IF((H9="SMB")*AND(G9>=4),"Yes","No")) -> No | K9: =YTD!S63 -> Scott | L9: =YTD!T63 -> 48.11
A10: =YTD!E20 -> Ryan | B10: =YTD!F20 -> 6 | C10: =YTD!G20 -> 29 | E10: =YTD!L20 -> CT River | F10: =IF(YTD!P103="X","N/A",YTD!P103) -> N/A | G10: =YTD!Q103 -> 3.58 | H10: =IF(YTD!R103=0,"N/A",YTD!R103) -> LMB | I10: =IF((H10="LMB")*AND(G10>=6),"Yes",IF((H10="SMB")*AND(G10>=4),"Yes","No")) -> No | K10: =YTD!S62 -> Ryan | L10: =YTD!T62 -> 45.68
A11: =YTD!E21 -> Scott | B11: =YTD!F21 -> 7 | C11: =YTD!G21 -> 33 | E11: =YTD!L21 -> West Hill | F11: =IF(YTD!S103="X","N/A",YTD!S103) -> Armand | G11: =YTD!T103 -> 3.21 | H11: =IF(YTD!U103=0,"N/A",YTD!U103) -> LMB | I11: No | K11: =YTD!S48 -> Armand | L11: =YTD!T48 -> 42.64
A12: =YTD!E22 -> Rich T | B12: =YTD!F22 -> 8 | C12: =YTD!G22 -> 42 | E12: =YTD!L22 -> Moodus | F12: =IF(YTD!V103="X","N/A",YTD!V103) -> Scott | G12: =YTD!W103 -> 6.84 | H12: =IF(YTD!X103=0,"N/A",YTD!X103) -> LMB | I12: =IF((H12="LMB")*AND(G12>=6),"Yes",IF((H12="SMB")*AND(G12>=4),"Yes","No")) -> Yes | K12: =YTD!S58 -> Pete | L12: =YTD!T58 -> 40.28
A13: =YTD!E23 -> Pete | B13: =YTD!F23 -> 9 | C13: =YTD!G23 -> 46 | K13: =YTD!S61 -> Rich T | L13: =YTD!T61 -> 37.87
A14: =YTD!E24 -> Steve S | B14: =YTD!F24 -> 10 | C14: =YTD!G24 -> 50 | E14: Statistics | K14: =YTD!S65 -> Steve S | L14: =YTD!T65 -> 35.52
A15: =YTD!E25 -> Rich B | B15: =YTD!F25 -> 11 | C15: =YTD!G25 -> 51 | E15: Lake / River | F15: Anglers | G15: Fish | H15: Total Wt | I15: Avg Wt | K15: =YTD!S66 -> Tom | L15: =YTD!T66 -> 26.47
A16: =YTD!E26 -> Rich M | B16: =YTD!F26 -> 12 | C16: =YTD!G26 -> 77 | E16: =YTD!L15 -> Bantam | F16: =Bantam!E30 -> 17 | G16: =Bantam!M30 -> 38 | H16: =Bantam!L30 -> 66.39 | I16: =IF(G16=0,0,H16/G16) -> 1.747105263 | K16: =YTD!S59 -> Rich B | L16: =YTD!T59 -> 26.34
A17: =YTD!E27 -> Oz | B17: =YTD!F27 -> 13 | C17: =YTD!G27 -> 79 | E17: =YTD!L16 -> McDonough | F17: =McDonough!E30 -> 16 | G17: =McDonough!M30 -> 71 | H17: =McDonough!L30 -> 113.77 | I17: 1.602394366 | K17: =YTD!S51 -> Jason | L17: =YTD!T51 -> 25.05
A18: =YTD!E28 -> Mike G | B18: =YTD!F28 -> 14 | C18: =YTD!G28 -> 93 | E18: =YTD!L17 -> Quaddick | F18: =Quaddick!E30 -> 18 | G18: =Quaddick!M30 -> 61 | H18: =Quaddick!L30 -> 110.21 | I18: 1.806721311 | K18: =YTD!S60 -> Rich M | L18: =YTD!T60 -> 22.34
A19: =YTD!E29 -> Tom | B19: =YTD!F29 -> 15 | C19: =YTD!G29 -> 103 | E19: =YTD!L18 -> Candlewood | F19: =Candlewood!E30 -> 16 | G19: =Candlewood!M30 -> 63 | H19: =Candlewood!L30 -> 132.8 | I19: 2.107936508 | K19: =YTD!S52 -> Jim B | L19: =YTD!T52 -> 16.69
A20: =YTD!E30 -> Jason | B20: =YTD!F30 -> 16 | C20: =YTD!G30 -> 105 | E20: =YTD!L19 -> Lillinonah | F20: =Lillinonah!E30 -> 15 | G20: =Lillinonah!M30 -> 58 | H20: =Lillinonah!L30 -> 88.15 | I20: 1.519827586 | K20: =YTD!S55 -> Mike G | L20: =YTD!T55 -> 15.12
A21: =YTD!E31 -> Jim B | B21: =YTD!F31 -> 17 | C21: =YTD!G31 -> 106 | E21: =YTD!L20 -> CT River | F21: ='CT River'!E30 -> 16 | G21: ='CT River'!M30 -> 40 | H21: ='CT River'!L30 -> 59.15 | I21: 1.47875 | K21: =YTD!S57 -> Oz | L21: =YTD!T57 -> 13.97
A22: =YTD!E32 -> Morrie | B22: =YTD!F32 -> 18 | C22: =YTD!G32 -> 110 | E22: =YTD!L21 -> West Hill | F22: ='West Hill'!E30 -> 17 | G22: ='West Hill'!M30 -> 26 | H22: ='West Hill'!L30 -> 28.86 | I22: 1.11 | K22: =YTD!S56 -> Morrie | L22: =YTD!T56 -> 13.51
A23: =YTD!E33 -> Kam | B23: =YTD!F33 -> 19 | C23: =YTD!G33 -> 130 | E23: =YTD!L22 -> Moodus | F23: =Moodus!E30 -> 15 | G23: =Moodus!M30 -> 30 | H23: =Moodus!L30 -> 37.06 | I23: 1.235333333 | K23: =YTD!S53 -> Kam | L23: =YTD!T53 -> 7.06
A24: =YTD!E34 -> Anthony | B24: 21 | C24: =YTD!G34 -> 145 | K24: =YTD!S47 -> Anthony | L24: =YTD!T47 -> 4.95
A25: =YTD!E35 -> X | B25: =YTD!F35 -> 21 | C25: =YTD!G35 -> 210 | E25: Winning Teams | K25: =YTD!S67 -> X | L25: =YTD!T67 -> 0
A26: =YTD!E36 -> X | B26: =YTD!F36 -> 21 | C26: =YTD!G36 -> 210 | E26: Lake / River | F26: Team Number | H26: Total Weight | K26: =YTD!S68 -> X | L26: =YTD!T68 -> 0
A27: =YTD!E37 -> X | B27: =YTD!F37 -> 21 | C27: =YTD!G37 -> 210 | E27: =YTD!L15 -> Bantam | F27: =IF(Teams!N4=20,"N/A",Teams!N4) -> 5 | H27: =Teams!O4 -> 15.74 | K27: =YTD!S69 -> X | L27: =YTD!T69 -> 0
A28: =YTD!E38 -> X | B28: =YTD!F38 -> 21 | C28: =YTD!G38 -> 210 | E28: =YTD!L16 -> McDonough | F28: =IF(Teams!N34=20,"N/A",Teams!N34) -> 2 | H28: =Teams!O34 -> 18.73 | K28: =YTD!S70 -> X | L28: =YTD!T70 -> 0
A29: =YTD!E39 -> X | B29: =YTD!F39 -> 21 | C29: =YTD!G39 -> 210 | E29: =YTD!L17 -> Quaddick | F29: =IF(Teams!N64=20,"N/A",Teams!N64) -> 4 | H29: =Teams!O64 -> 17.54 | K29: =YTD!S71 -> X | L29: =YTD!T71 -> 0
A30: =YTD!E40 -> X | B30: =YTD!F40 -> 21 | C30: =YTD!G40 -> 210 | E30: =YTD!L18 -> Candlewood | F30: =IF(Teams!N94=20,"N/A",Teams!N94) -> 1 | H30: =Teams!O94 -> 22.01 | K30: =YTD!S72 -> X | L30: =YTD!T72 -> 0
E31: =YTD!L19 -> Lillinonah | F31: =IF(Teams!AD4=20,"N/A",Teams!AD4) -> 8 | H31: =Teams!AE4 -> 19.37
E32: =YTD!L20 -> CT River | F32: =IF(Teams!AD34=20,"N/A",Teams!AD34) -> 3 | H32: =Teams!AE34 -> 12.31
E33: =YTD!L21 -> West Hill | F33: =IF(Teams!AD64=20,"N/A",Teams!AD64) -> 2 | H33: =Teams!AE64 -> 8.94
E34: =YTD!L22 -> Moodus | F34: =IF(Teams!AD94=20,"N/A",Teams!AD94) -> 4 | H34: =Teams!AE94 -> 12.23

Sheet YTD
B1: =P15 -> Anthony | C1: =P16 -> Armand | D1: =P17 -> Dean | E1: =P18 -> Jack | F1: =P19 -> Jason | G1: =P20 -> Jim B | H1: =P21 -> Kam | I1: =P22 -> Kevin | J1: =P23 -> Mike G | K1: =P24 -> Morrie | L1: =P25 -> Oz | M1: =P26 -> Pete | N1: =P27 -> Rich B | O1: =P28 -> Rich M | P1: =P29 -> Rich T | Q1: =P30 -> Ryan | R1: =P31 -> Scott | S1: =P32 -> Steve D | T1: =P33 -> Steve S | U1: =P34 -> Tom | V1: =P35 -> X | W1: =P36 -> X | X1: =P37 -> X | Y1: =P38 -> X | Z1: =P39 -> X | AA1: =P40 -> X
B2: =Bantam!O4 -> 14 | C2: =Bantam!O5 -> 1 | D2: =Candlewood!O6 -> 1 | E2: ='CT River'!O7 -> 1 | F2: =McDonough!O8 -> 2 | G2: =Bantam!O9 -> 8 | H2: ='CT River'!O10 -> 5 | I2: =Lillinonah!O11 -> 1 | J2: ='West Hill'!O12 -> 10 | K2: ='CT River'!O13 -> 6 | L2: =Candlewood!O14 -> 9 | M2: =Lillinonah!O15 -> 5 | N2: =Lillinonah!O16 -> 2 | O2: =Moodus!O17 -> 3 | P2: ='West Hill'!O18 -> 2 | Q2: =McDonough!O19 -> 1 | R2: =Moodus!O20 -> 1 | S2: =Quaddick!O21 -> 1 | T2: =Quaddick!O22 -> 3 | U2: =Candlewood!O23 -> 5 | V2: =Bantam!O24 -> 35 | W2: =McDonough!O25 -> 35 | X2: ='CT River'!O26 -> 35 | Y2: =Candlewood!O27 -> 35 | Z2: =Lillinonah!O28 -> 35 | AA2: =Moodus!O29 -> 35
B3: =McDonough!O4 -> 15 | C3: =McDonough!O5 -> 3 | D3: =Bantam!O6 -> 2 | E3: ='West Hill'!O7 -> 1 | F3: =Bantam!O8 -> 4 | G3: =McDonough!O9 -> 10 | H3: ='West Hill'!O10 -> 9 | I3: =Bantam!O11 -> 3 | J3: =Quaddick!O12 -> 12 | K3: =Lillinonah!O13 -> 10 | L3: =Bantam!O14 -> 12 | M3: =Bantam!O15 -> 6 | N3: ='West Hill'!O16 -> 5 | O3: =Lillinonah!O17 -> 9 | P3: =Candlewood!O18 -> 3 | Q3: ='CT River'!O19 -> 3 | R3: =Quaddick!O20 -> 2 | S3: =Candlewood!O21 -> 2 | T3: =Lillinonah!O22 -> 4 | U3: =Quaddick!O23 -> 8 | V3: =Quaddick!O24 -> 35 | W3: =Quaddick!O25 -> 35 | X3: ='West Hill'!O26 -> 35 | Y3: ='CT River'!O27 -> 35 | Z3: =Quaddick!O28 -> 35 | AA3: =Bantam!O29 -> 35
B4: =Candlewood!O4 -> 16 | C4: ='West Hill'!O5 -> 3 | D4: ='West Hill'!O6 -> 3 | E4: =Moodus!O7 -> 2 | F4: =Quaddick!O8 -> 14 | G4: =Quaddick!O9 -> 11 | H4: =Moodus!O10 -> 11 | I4: =Quaddick!O11 -> 4 | J4: =Candlewood!O12 -> 13 | K4: ='West Hill'!O13 -> 14 | L4: ='West Hill'!O14 -> 12 | M4: =McDonough!O15 -> 7 | N4: =Bantam!O16 -> 9 | O4: ='CT River'!O17 -> 9 | P4: =Quaddick!O18 -> 7 | Q4: =Candlewood!O19 -> 4 | R4: =Lillinonah!O20 -> 3 | S4: ='CT River'!O21 -> 2 | T4: ='CT River'!O22 -> 7 | U4: =Lillinonah!O23 -> 12 | V4: =Moodus!O24 -> 35 | W4: =Candlewood!O25 -> 35 | X4: =Quaddick!O26 -> 35 | Y4: =McDonough!O27 -> 35 | Z4: =Moodus!O28 -> 35 | AA4: =Lillinonah!O29 -> 35
B5: =Quaddick!O4 -> 30 | C5: =Moodus!O5 -> 4 | D5: =McDonough!O6 -> 4 | E5: =Bantam!O7 -> 5 | F5: =Candlewood!O8 -> 15 | G5: =Moodus!O9 -> 12 | H5: =Lillinonah!O10 -> 35 | I5: =Candlewood!O11 -> 6 | J5: ='CT River'!O12 -> 14 | K5: =Quaddick!O13 -> 15 | L5: =Moodus!O14 -> 13 | M5: =Candlewood!O15 -> 8 | N5: =Moodus!O16 -> 9 | O5: =Candlewood!O17 -> 10 | P5: =McDonough!O18 -> 7 | Q5: =Moodus!O19 -> 6 | R5: =McDonough!O20 -> 5 | S5: =Moodus!O21 -> 5 | T5: =Bantam!O22 -> 11 | U5: =McDonough!O23 -> 13 | V5: ='West Hill'!O24 -> 35 | W5: =Bantam!O25 -> 35 | X5: =McDonough!O26 -> 35 | Y5: =Moodus!O27 -> 35 | Z5: =Bantam!O28 -> 35 | AA5: =Candlewood!O29 -> 35
B6: =Moodus!O4 -> 35 | C6: =Quaddick!O5 -> 5 | D6: ='CT River'!O6 -> 4 | E6: =Candlewood!O7 -> 7 | F6: =Moodus!O8 -> 35 | G6: ='West Hill'!O9 -> 30 | H6: =Candlewood!O10 -> 35 | I6: ='West Hill'!O11 -> 6 | J6: =Lillinonah!O12 -> 14 | K6: =Moodus!O13 -> 30 | L6: =McDonough!O14 -> 16 | M6: ='CT River'!O15 -> 10 | N6: =Candlewood!O16 -> 12 | O6: =Quaddick!O17 -> 16 | P6: ='CT River'!O18 -> 8 | Q6: =Bantam!O19 -> 7 | R6: =Candlewood!O20 -> 11 | S6: =McDonough!O21 -> 6 | T6: =McDonough!O22 -> 11 | U6: =Bantam!O23 -> 30 | V6: =Candlewood!O24 -> 35 | W6: ='CT River'!O25 -> 35 | X6: =Bantam!O26 -> 35 | Y6: =Lillinonah!O27 -> 35 | Z6: =Candlewood!O28 -> 35 | AA6: =McDonough!O29 -> 35
B7: ='West Hill'!O4 -> 35 | C7: =Lillinonah!O5 -> 6 | D7: =Quaddick!O6 -> 6 | E7: =Quaddick!O7 -> 9 | F7: ='West Hill'!O8 -> 35 | G7: ='CT River'!O9 -> 35 | H7: =Quaddick!O10 -> 35 | I7: =Moodus!O11 -> 8 | J7: =Bantam!O12 -> 30 | K7: =Candlewood!O13 -> 35 | L7: =Quaddick!O14 -> 17 | M7: =Moodus!O15 -> 10 | N7: =McDonough!O16 -> 14 | O7: ='West Hill'!O17 -> 30 | P7: =Lillinonah!O18 -> 15 | Q7: ='West Hill'!O19 -> 8 | R7: ='CT River'!O20 -> 11 | S7: ='West Hill'!O21 -> 7 | T7: =Candlewood!O22 -> 14 | U7: =Moodus!O23 -> 35 | V7: =McDonough!O24 -> 35 | W7: ='West Hill'!O25 -> 35 | X7: =Moodus!O26 -> 35 | Y7: =Bantam!O27 -> 35 | Z7: =McDonough!O28 -> 35 | AA7: =Quaddick!O29 -> 35
B8: ='CT River'!O4 -> 35 | C8: ='CT River'!O5 -> 13 | D8: =Lillinonah!O6 -> 7 | E8: =Lillinonah!O7 -> 11 | F8: ='CT River'!O8 -> 35 | G8: =Lillinonah!O9 -> 35 | H8: =McDonough!O10 -> 35 | I8: =McDonough!O11 -> 9 | J8: =Moodus!O12 -> 35 | K8: =McDonough!O13 -> 35 | L8: ='CT River'!O14 -> 30 | M8: ='West Hill'!O15 -> 11 | N8: ='CT River'!O16 -> 30 | O8: =McDonough!O17 -> 35 | P8: =Bantam!O18 -> 30 | Q8: =Quaddick!O19 -> 10 | R8: =Bantam!O20 -> 13 | S8: =Lillinonah!O21 -> 8 | T8: ='West Hill'!O22 -> 15 | U8: ='West Hill'!O23 -> 35 | V8: ='CT River'!O24 -> 35 | W8: =Lillinonah!O25 -> 35 | X8: =Lillinonah!O26 -> 35 | Y8: ='West Hill'!O27 -> 35 | Z8: ='CT River'!O28 -> 35 | AA8: ='CT River'!O29 -> 35
B9: =Lillinonah!O4 -> 35 | C9: =Candlewood!O5 -> 35 | D9: =Moodus!O6 -> 7 | E9: =McDonough!O7 -> 12 | F9: =Lillinonah!O8 -> 35 | G9: =Candlewood!O9 -> 35 | H9: =Bantam!O10 -> 35 | I9: ='CT River'!O11 -> 12 | J9: =McDonough!O12 -> 35 | K9: =Bantam!O13 -> 35 | L9: =Lillinonah!O14 -> 35 | M9: =Quaddick!O15 -> 13 | N9: =Quaddick!O16 -> 35 | O9: =Bantam!O17 -> 35 | P9: =Moodus!O18 -> 35 | Q9: =Lillinonah!O19 -> 13 | R9: ='West Hill'!O20 -> 13 | S9: =Bantam!O21 -> 10 | T9: =Moodus!O22 -> 30 | U9: ='CT River'!O23 -> 35 | V9: =Lillinonah!O24 -> 35 | W9: =Moodus!O25 -> 35 | X9: =Candlewood!O26 -> 35 | Y9: =Quaddick!O27 -> 35 | Z9: ='West Hill'!O28 -> 35 | AA9: ='West Hill'!O29 -> 35
A10: Pts. YTD | B10: =SUM(B2:B7) -> 145 | C10: 22 | D10: 20 | E10: 25 | F10: 105 | G10: 106 | H10: 130 | I10: =SUM(I2:I7) -> 28 | J10: 93 | K10: 110 | L10: 79 | M10: 46 | N10: 51 | O10: 77 | P10: 42 | Q10: 29 | R10: =SUM(R2:R7) -> 33 | S10: 23 | T10: 50 | U10: 103 | V10: 210 | W10: 210 | X10: 210 | Y10: 210 | Z10: 210 | AA10: 210
A11: Position | B11: =RANK(B10,Pts._YTD,1) -> 20 | C11: 2 | D11: 1 | E11: 4 | F11: 16 | G11: 17 | H11: 19 | I11: 5 | J11: =RANK(J10,Pts._YTD,1) -> 14 | K11: 18 | L11: =RANK(L10,Pts._YTD,1) -> 13 | M11: 9 | N11: 11 | O11: 12 | P11: 8 | Q11: 6 | R11: 7 | S11: =RANK(S10,Pts._YTD,1) -> 3 | T11: 10 | U11: 15 | V11: 21 | W11: 21 | X11: 21 | Y11: 21 | Z11: 21 | AA11: 21
W13: Use macro ctl-f
A14: Name | B14: Position | C14: Pts. YTD | E14: Name | F14: Position | G14: Pts. YTD | I14: Total Weight | L14: Lake / River 2017 | P14: Members | Q14: NonBoater | S14: Top 3 Finishers for Each Tournament
A15: =B1 -> Anthony | B15: =B11 -> 20 | C15: =B10 -> 145 | E15: Dean | F15: 1 | G15: 20 | I15: =P15 -> Anthony | J15: =Moodus!N4+Bantam!N4+'CT River'!N4+Quaddick!N4+'West Hill'!N4+McDonough!N4+Candlewood!N4+Lillinonah!N4 -> 4.95 | L15: Bantam | P15: Anthony | Q15: Y | S15: =L15 -> Bantam | U15: =L16 -> McDonough | W15: =L17 -> Quaddick | Y15: =L18 -> Candlewood | AA15: =L19 -> Lillinonah | AC15: =L20 -> CT River | AE15: =L21 -> West Hill | AG15: =L22 -> Moodus
A16: =C1 -> Armand | B16: =C11 -> 2 | C16: =C10 -> 22 | E16: Armand | F16: 2 | G16: 22 | I16: Armand | J16: =Moodus!N5+Bantam!N5+'CT River'!N5+Quaddick!N5+'West Hill'!N5+McDonough!N5+Candlewood!N5+Lillinonah!N5 -> 42.64 | L16: McDonough | P16: Armand | Q16: N | S16: =Bantam!D5 -> Armand | T16: =Bantam!O5 -> 1 | U16: =McDonough!D19 -> Ryan | V16: =McDonough!O19 -> 1 | W16: =Quaddick!D21 -> Steve D | X16: =Quaddick!O21 -> 1 | Y16: =Candlewood!D6 -> Dean | Z16: =Candlewood!O6 -> 1 | AA16: =Lillinonah!D11 -> Kevin | AB16: =Lillinonah!O11 -> 1 | AC16: ='CT River'!D7 -> Jack | AD16: ='CT River'!O7 -> 1 | AE16: ='West Hill'!D7 -> Jack | AF16: ='West Hill'!O7 -> 1 | AG16: =Moodus!D20 -> Scott | AH16: =Moodus!O20 -> 1
A17: =D1 -> Dean | B17: =D11 -> 1 | C17: =D10 -> 20 | E17: Steve D | F17: 3 | G17: 23 | I17: Dean | J17: =Moodus!N6+Bantam!N6+'CT River'!N6+Quaddick!N6+'West Hill'!N6+McDonough!N6+Candlewood!N6+Lillinonah!N6 -> 59.02 | L17: Quaddick | P17: Dean | Q17: N | S17: =Bantam!D6 -> Dean | T17: =Bantam!O6 -> 2 | U17: =McDonough!D8 -> Jason | V17: =McDonough!O8 -> 2 | W17: =Quaddick!D20 -> Scott | X17: =Quaddick!O20 -> 2 | Y17: =Candlewood!D21 -> Steve D | Z17: =Candlewood!O21 -> 2 | AA17: =Lillinonah!D16 -> Rich B | AB17: =Lillinonah!O16 -> 2 | AC17: ='CT River'!D21 -> Steve D | AD17: ='CT River'!O21 -> 2 | AE17: ='West Hill'!D18 -> Rich T | AF17: ='West Hill'!O18 -> 2 | AG17: =Moodus!D7 -> Jack | AH17: =Moodus!O7 -> 2
A18: =E1 -> Jack | B18: =E11 -> 4 | C18: =E10 -> 25 | E18: Jack | F18: 4 | G18: 25 | I18: Jack | J18: =Moodus!N7+Bantam!N7+'CT River'!N7+Quaddick!N7+'West Hill'!N7+McDonough!N7+Candlewood!N7+Lillinonah!N7 -> 50.56 | L18: Candlewood | P18: Jack | Q18: N | S18: =Bantam!D11 -> Kevin | T18: =Bantam!O11 -> 3 | U18: =McDonough!D5 -> Armand | V18: =McDonough!O5 -> 3 | W18: =Quaddick!D22 -> Steve S | X18: =Quaddick!O22 -> 3 | Y18: =Candlewood!D18 -> Rich T | Z18: =Candlewood!O18 -> 3 | AA18: =Lillinonah!D20 -> Scott | AB18: =Lillinonah!O20 -> 3 | AC18: ='CT River'!D19 -> Ryan | AD18: ='CT River'!O19 -> 3 | AE18: ='West Hill'!D6 -> Dean | AF18: ='West Hill'!O6 -> 3 | AG18: =Moodus!D17 -> Rich M | AH18: =Moodus!O17 -> 3
A19: =F1 -> Jason | B19: =F11 -> 16 | C19: =F10 -> 105 | E19: Kevin | F19: 5 | G19: 28 | I19: Jason | J19: =Moodus!N8+Bantam!N8+'CT River'!N8+Quaddick!N8+'West Hill'!N8+McDonough!N8+Candlewood!N8+Lillinonah!N8 -> 25.05 | L19: Lillinonah | P19: Jason | Q19: N | S19: =Bantam!D8 -> Jason | T19: =Bantam!O8 -> 4 | U19: =McDonough!D6 -> Dean | V19: =McDonough!O6 -> 4 | W19: =Quaddick!D11 -> Kevin | X19: =Quaddick!O11 -> 4 | Y19: =Candlewood!D19 -> Ryan | Z19: =Candlewood!O19 -> 4 | AA19: =Lillinonah!D22 -> Steve S | AB19: =Lillinonah!O22 -> 4 | AC19: ='CT River'!D6 -> Dean | AD19: ='CT River'!O6 -> 4 | AE19: ='West Hill'!D5 -> Armand | AF19: ='West Hill'!O5 -> 3 | AG19: =Moodus!D5 -> Armand | AH19: =Moodus!O5 -> 4
A20: =G1 -> Jim B | B20: =G11 -> 17 | C20: =G10 -> 106 | E20: Ryan | F20: 6 | G20: 29 | I20: Jim B | J20: =Moodus!N9+Bantam!N9+'CT River'!N9+Quaddick!N9+'West Hill'!N9+McDonough!N9+Candlewood!N9+Lillinonah!N9 -> 16.69 | L20: CT River | P20: Jim B | Q20: Y | S20: =Bantam!D7 -> Jack | T20: =Bantam!O7 -> 5 | U20: =McDonough!D20 -> Scott | V20: =McDonough!O20 -> 5 | W20: =Quaddick!D5 -> Armand | X20: =Quaddick!O5 -> 5 | Y20: =Candlewood!D23 -> Tom | Z20: =Candlewood!O23 -> 5 | AA20: =Lillinonah!D15 -> Pete | AB20: =Lillinonah!O15 -> 5 | AC20: ='CT River'!D10 -> Kam | AD20: ='CT River'!O10 -> 5 | AE20: ='West Hill'!D16 -> Rich B | AF20: ='West Hill'!O16 -> 5 | AG20: =Moodus!D21 -> Steve D | AH20: =Moodus!O21 -> 5
A21: =H1 -> Kam | B21: =H11 -> 19 | C21: =H10 -> 130 | E21: Scott | F21: 7 | G21: 33 | I21: Kam | J21: =Moodus!N10+Bantam!N10+'CT River'!N10+Quaddick!N10+'West Hill'!N10+McDonough!N10+Candlewood!N10+Lillinonah!N10 -> 7.06 | L21: West Hill | P21: Kam | Q21: Y | S21: =Bantam!D15 -> Pete | T21: =Bantam!O15 -> 6 | U21: =McDonough!D21 -> Steve D | V21: =McDonough!O21 -> 6 | W21: =Quaddick!D6 -> Dean | X21: =Quaddick!O6 -> 6 | Y21: =Candlewood!D11 -> Kevin | Z21: =Candlewood!O11 -> 6 | AA21: =Lillinonah!D5 -> Armand | AB21: =Lillinonah!O5 -> 6 | AC21: ='CT River'!D13 -> Morrie | AD21: ='CT River'!O13 -> 6 | AE21: ='West Hill'!D11 -> Kevin | AF21: ='West Hill'!O11 -> 6 | AG21: =Moodus!D19 -> Ryan | AH21: =Moodus!O19 -> 6
A22: =I1 -> Kevin | B22: =I11 -> 5 | C22: =I10 -> 28 | E22: Rich T | F22: 8 | G22: 42 | I22: Kevin | J22: =Moodus!N11+Bantam!N11+'CT River'!N11+Quaddick!N11+'West Hill'!N11+McDonough!N11+Candlewood!N11+Lillinonah!N11 -> 51.49 | L22: Moodus | P22: Kevin | Q22: N | S22: =Bantam!D19 -> Ryan | T22: =Bantam!O19 -> 7 | U22: =McDonough!D18 -> Rich T | V22: =McDonough!O18 -> 7 | W22: =Quaddick!D18 -> Rich T | X22: =Quaddick!O18 -> 7 | Y22: =Candlewood!D7 -> Jack | Z22: =Candlewood!O7 -> 7 | AA22: =Lillinonah!D6 -> Dean | AB22: =Lillinonah!O6 -> 7 | AC22: ='CT River'!D22 -> Steve S | AD22: ='CT River'!O22 -> 7 | AE22: ='West Hill'!D21 -> Steve D | AF22: ='West Hill'!O21 -> 7 | AG22: =Moodus!D6 -> Dean | AH22: =Moodus!O6 -> 7
A23: =J1 -> Mike G | B23: =J11 -> 14 | C23: =J10 -> 93 | E23: Pete | F23: 9 | G23: 46 | I23: Mike G | J23: =Moodus!N12+Bantam!N12+'CT River'!N12+Quaddick!N12+'West Hill'!N12+McDonough!N12+Candlewood!N12+Lillinonah!N12 -> 15.12 | P23: Mike G | Q23: Y | S23: =Bantam!D9 -> Jim B | T23: =Bantam!O9 -> 8 | U23: =McDonough!D15 -> Pete | V23: =McDonough!O15 -> 7 | W23: =Quaddick!D23 -> Tom | X23: =Quaddick!O23 -> 8 | Y23: =Candlewood!D15 -> Pete | Z23: =Candlewood!O15 -> 8 | AA23: =Lillinonah!D21 -> Steve D | AB23: =Lillinonah!O21 -> 8 | AC23: ='CT River'!D18 -> Rich T | AD23: ='CT River'!O18 -> 8 | AE23: ='West Hill'!D19 -> Ryan | AF23: ='West Hill'!O19 -> 8 | AG23: =Moodus!D11 -> Kevin | AH23: =Moodus!O11 -> 8
A24: =K1 -> Morrie | B24: =K11 -> 18 | C24: =K10 -> 110 | E24: Steve S | F24: 10 | G24: 50 | I24: Morrie | J24: =Moodus!N13+Bantam!N13+'CT River'!N13+Quaddick!N13+'West Hill'!N13+McDonough!N13+Candlewood!N13+Lillinonah!N13 -> 13.51 | P24: Morrie | Q24: N | S24: =Bantam!D16 -> Rich B | T24: =Bantam!O16 -> 9 | U24: =McDonough!D11 -> Kevin | V24: =McDonough!O11 -> 9 | W24: =Quaddick!D7 -> Jack | X24: =Quaddick!O7 -> 9 | Y24: =Candlewood!D14 -> Oz | Z24: =Candlewood!O14 -> 9 | AA24: =Lillinonah!D17 -> Rich M | AB24: =Lillinonah!O17 -> 9 | AC24: ='CT River'!D17 -> Rich M | AD24: ='CT River'!O17 -> 9 | AE24: ='West Hill'!D10 -> Kam | AF24: ='West Hill'!O10 -> 9 | AG24: =Moodus!D16 -> Rich B | AH24: =Moodus!O16 -> 9
A25: =L1 -> Oz | B25: =L11 -> 13 | C25: =L10 -> 79 | E25: Rich B | F25: 11 | G25: 51 | I25: Oz | J25: =Moodus!N14+Bantam!N14+'CT River'!N14+Quaddick!N14+'West Hill'!N14+McDonough!N14+Candlewood!N14+Lillinonah!N14 -> 13.97 | P25: Oz | Q25: Y | S25: =Bantam!D21 -> Steve D | T25: =Bantam!O21 -> 10 | U25: =McDonough!D9 -> Jim B | V25: =McDonough!O9 -> 10 | W25: =Quaddick!D19 -> Ryan | X25: =Quaddick!O19 -> 10 | Y25: =Candlewood!D17 -> Rich M | Z25: =Candlewood!O17 -> 10 | AA25: =Lillinonah!D13 -> Morrie | AB25: =Lillinonah!O13 -> 10 | AC25: ='CT River'!D15 -> Pete | AD25: ='CT River'!O15 -> 10 | AE25: ='West Hill'!D12 -> Mike G | AF25: ='West Hill'!O12 -> 10 | AG25: =Moodus!D15 -> Pete | AH25: =Moodus!O15 -> 10
A26: =M1 -> Pete | B26: =M11 -> 9 | C26: =M10 -> 46 | E26: Rich M | F26: 12 | G26: 77 | I26: Pete | J26: =Moodus!N15+Bantam!N15+'CT River'!N15+Quaddick!N15+'West Hill'!N15+McDonough!N15+Candlewood!N15+Lillinonah!N15 -> 40.28 | L26: Macros | P26: Pete | Q26: Y | S26: =Bantam!D22 -> Steve S | T26: =Bantam!O22 -> 11 | U26: =McDonough!D22 -> Steve S | V26: =McDonough!O22 -> 11 | W26: =Quaddick!D9 -> Jim B | X26: =Quaddick!O9 -> 11 | Y26: =Candlewood!D20 -> Scott | Z26: =Candlewood!O20 -> 11 | AA26: =Lillinonah!D7 -> Jack | AB26: =Lillinonah!O7 -> 11 | AC26: ='CT River'!D20 -> Scott | AD26: ='CT River'!O20 -> 11 | AE26: ='West Hill'!D15 -> Pete | AF26: ='West Hill'!O15 -> 11 | AG26: =Moodus!D10 -> Kam | AH26: =Moodus!O10 -> 11
A27: =N1 -> Rich B | B27: =N11 -> 11 | C27: =N10 -> 51 | E27: Oz | F27: 13 | G27: 79 | I27: Rich B | J27: =Moodus!N16+Bantam!N16+'CT River'!N16+Quaddick!N16+'West Hill'!N16+McDonough!N16+Candlewood!N16+Lillinonah!N16 -> 26.34 | L27: ctl-S Sort Upper Section | P27: Rich B | Q27: N | S27: =Bantam!D14 -> Oz | T27: =Bantam!O14 -> 12 | U27: =McDonough!D7 -> Jack | V27: =McDonough!O7 -> 12 | W27: =Quaddick!D12 -> Mike G | X27: =Quaddick!O12 -> 12 | Y27: =Candlewood!D16 -> Rich B | Z27: =Candlewood!O16 -> 12 | AA27: =Lillinonah!D23 -> Tom | AB27: =Lillinonah!O23 -> 12 | AC27: ='CT River'!D11 -> Kevin | AD27: ='CT River'!O11 -> 12 | AE27: ='West Hill'!D14 -> Oz | AF27: ='West Hill'!O14 -> 12 | AG27: =Moodus!D9 -> Jim B | AH27: =Moodus!O9 -> 12
A28: =O1 -> Rich M | B28: =O11 -> 12 | C28: =O10 -> 77 | E28: Mike G | F28: 14 | G28: 93 | I28: Rich M | J28: =Moodus!N17+Bantam!N17+'CT River'!N17+Quaddick!N17+'West Hill'!N17+McDonough!N17+Candlewood!N17+Lillinonah!N17 -> 22.34 | L28: ctl-K Copy and Paste for Position | P28: Rich M | Q28: Y | S28: =Bantam!D20 -> Scott | T28: =Bantam!O20 -> 13 | U28: =McDonough!D23 -> Tom | V28: =McDonough!O23 -> 13 | W28: =Quaddick!D15 -> Pete | X28: =Quaddick!O15 -> 13 | Y28: =Candlewood!D12 -> Mike G | Z28: =Candlewood!O12 -> 13 | AA28: =Lillinonah!D19 -> Ryan | AB28: =Lillinonah!O19 -> 13 | AC28: ='CT River'!D5 -> Armand | AD28: ='CT River'!O5 -> 13 | AE28: ='West Hill'!D20 -> Scott | AF28: ='West Hill'!O20 -> 13 | AG28: =Moodus!D14 -> Oz | AH28: =Moodus!O14 -> 13
A29: =P1 -> Rich T | B29: =P11 -> 8 | C29: =P10 -> 42 | E29: Tom | F29: 15 | G29: 103 | I29: Rich T | J29: =Moodus!N18+Bantam!N18+'CT River'!N18+Quaddick!N18+'West Hill'!N18+McDonough!N18+Candlewood!N18+Lillinonah!N18 -> 37.87 | L29: ctl-L Sort For Lunker | P29: Rich T | Q29: Y | S29: =Bantam!D4 -> Anthony | T29: =Bantam!O4 -> 14 | U29: =McDonough!D16 -> Rich B | V29: =McDonough!O16 -> 14 | W29: =Quaddick!D8 -> Jason | X29: =Quaddick!O8 -> 14 | Y29: =Candlewood!D22 -> Steve S | Z29: =Candlewood!O22 -> 14 | AA29: =Lillinonah!D12 -> Mike G | AB29: =Lillinonah!O12 -> 14 | AC29: ='CT River'!D12 -> Mike G | AD29: ='CT River'!O12 -> 14 | AE29: ='West Hill'!D13 -> Morrie | AF29: ='West Hill'!O13 -> 14 | AG29: =Moodus!D13 -> Morrie | AH29: =Moodus!O13 -> 30
A30: =Q1 -> Ryan | B30: =Q11 -> 6 | C30: =Q10 -> 29 | E30: Jason | F30: 16 | G30: 105 | I30: Ryan | J30: =Moodus!N19+Bantam!N19+'CT River'!N19+Quaddick!N19+'West Hill'!N19+McDonough!N19+Candlewood!N19+Lillinonah!N19 -> 45.68 | L30: ctl-F Sort Top 3 Finishers | P30: Ryan | Q30: Y | S30: =Bantam!D12 -> Mike G | T30: =Bantam!O12 -> 30 | U30: =McDonough!D4 -> Anthony | V30: =McDonough!O4 -> 15 | W30: =Quaddick!D13 -> Morrie | X30: =Quaddick!O13 -> 15 | Y30: =Candlewood!D8 -> Jason | Z30: =Candlewood!O8 -> 15 | AA30: =Lillinonah!D18 -> Rich T | AB30: =Lillinonah!O18 -> 15 | AC30: ='CT River'!D16 -> Rich B | AD30: ='CT River'!O16 -> 30 | AE30: ='West Hill'!D22 -> Steve S | AF30: ='West Hill'!O22 -> 15 | AG30: =Moodus!D22 -> Steve S | AH30: =Moodus!O22 -> 30
A31: =R1 -> Scott | B31: =R11 -> 7 | C31: =R10 -> 33 | E31: Jim B | F31: 17 | G31: 106 | I31: Scott | J31: =Moodus!N20+Bantam!N20+'CT River'!N20+Quaddick!N20+'West Hill'!N20+McDonough!N20+Candlewood!N20+Lillinonah!N20 -> 48.11 | L31: ctl-W Sort for Total Weight | P31: Scott | Q31: N | S31: =Bantam!D18 -> Rich T | T31: =Bantam!O18 -> 30 | U31: =McDonough!D14 -> Oz | V31: =McDonough!O14 -> 16 | W31: =Quaddick!D17 -> Rich M | X31: =Quaddick!O17 -> 16 | Y31: =Candlewood!D4 -> Anthony | Z31: =Candlewood!O4 -> 16 | AA31: =Lillinonah!D9 -> Jim B | AB31: =Lillinonah!O9 -> 35 | AC31: ='CT River'!D14 -> Oz | AD31: ='CT River'!O14 -> 30 | AE31: ='West Hill'!D9 -> Jim B | AF31: ='West Hill'!O9 -> 30 | AG31: =Moodus!D12 -> Mike G | AH31: =Moodus!O12 -> 35
A32: =S1 -> Steve D | B32: =S11 -> 3 | C32: =S10 -> 23 | E32: Morrie | F32: 18 | G32: 110 | I32: Steve D | J32: =Moodus!N21+Bantam!N21+'CT River'!N21+Quaddick!N21+'West Hill'!N21+McDonough!N21+Candlewood!N21+Lillinonah!N21 -> 51.32 | P32: Steve D | Q32: N | S32: =Bantam!D23 -> Tom | T32: =Bantam!O23 -> 30 | U32: =McDonough!D17 -> Rich M | V32: =McDonough!O17 -> 35 | W32: =Quaddick!D14 -> Oz | X32: =Quaddick!O14 -> 17 | Y32: =Candlewood!D9 -> Jim B | Z32: =Candlewood!O9 -> 35 | AA32: =Lillinonah!D14 -> Oz | AB32: =Lillinonah!O14 -> 35 | AC32: ='CT River'!D9 -> Jim B | AD32: ='CT River'!O9 -> 35 | AE32: ='West Hill'!D17 -> Rich M | AF32: ='West Hill'!O17 -> 30 | AG32: =Moodus!D4 -> Anthony | AH32: =Moodus!O4 -> 35
A33: =T1 -> Steve S | B33: =T11 -> 10 | C33: =T10 -> 50 | E33: Kam | F33: 19 | G33: 130 | I33: Steve S | J33: =Moodus!N22+Bantam!N22+'CT River'!N22+Quaddick!N22+'West Hill'!N22+McDonough!N22+Candlewood!N22+Lillinonah!N22 -> 35.52 | P33: Steve S | Q33: N | S33: =Bantam!D17 -> Rich M | T33: =Bantam!O17 -> 35 | U33: =McDonough!D12 -> Mike G | V33: =McDonough!O12 -> 35 | W33: =Quaddick!D4 -> Anthony | X33: =Quaddick!O4 -> 30 | Y33: =Candlewood!D13 -> Morrie | Z33: =Candlewood!O13 -> 35 | AA33: =Lillinonah!D8 -> Jason | AB33: =Lillinonah!O8 -> 35 | AC33: ='CT River'!D8 -> Jason | AD33: ='CT River'!O8 -> 35 | AE33: ='West Hill'!D8 -> Jason | AF33: ='West Hill'!O8 -> 35 | AG33: =Moodus!D8 -> Jason | AH33: =Moodus!O8 -> 35
A34: =U1 -> Tom | B34: =U11 -> 15 | C34: =U10 -> 103 | E34: Anthony | F34: 20 | G34: 145 | I34: Tom | J34: =Moodus!N23+Bantam!N23+'CT River'!N23+Quaddick!N23+'West Hill'!N23+McDonough!N23+Candlewood!N23+Lillinonah!N23 -> 26.47 | P34: Tom | Q34: N | S34: =Bantam!D13 -> Morrie | T34: =Bantam!O13 -> 35 | U34: =McDonough!D10 -> Kam | V34: =McDonough!O10 -> 35 | W34: =Quaddick!D16 -> Rich B | X34: =Quaddick!O16 -> 35 | Y34: =Candlewood!D10 -> Kam | Z34: =Candlewood!O10 -> 35 | AA34: =Lillinonah!D10 -> Kam | AB34: =Lillinonah!O10 -> 35 | AC34: ='CT River'!D4 -> Anthony | AD34: ='CT River'!O4 -> 35 | AE34: ='West Hill'!D4 -> Anthony | AF34: ='West Hill'!O4 -> 35 | AG34: =Moodus!D18 -> Rich T | AH34: =Moodus!O18 -> 35
A35: =V1 -> X | B35: =V11 -> 21 | C35: =V10 -> 210 | E35: X | F35: 21 | G35: 210 | I35: X | J35: =Moodus!N24+Bantam!N24+'CT River'!N24+Quaddick!N24+'West Hill'!N24+McDonough!N24+Candlewood!N24+Lillinonah!N24 -> 0 | P35: X | S35: =Bantam!D10 -> Kam | T35: =Bantam!O10 -> 35 | U35: =McDonough!D13 -> Morrie | V35: =McDonough!O13 -> 35 | W35: =Quaddick!D10 -> Kam | X35: =Quaddick!O10 -> 35 | Y35: =Candlewood!D5 -> Armand | Z35: =Candlewood!O5 -> 35 | AA35: =Lillinonah!D4 -> Anthony | AB35: =Lillinonah!O4 -> 35 | AC35: ='CT River'!D23 -> Tom | AD35: ='CT River'!O23 -> 35 | AE35: ='West Hill'!D23 -> Tom | AF35: ='West Hill'!O23 -> 35 | AG35: =Moodus!D23 -> Tom | AH35: =Moodus!O23 -> 35
A36: =W1 -> X | B36: =W11 -> 21 | C36: =W10 -> 210 | E36: X | F36: 21 | G36: 210 | I36: X | J36: =Moodus!N25+Bantam!N25+'CT River'!N25+Quaddick!N25+'West Hill'!N25+McDonough!N25+Candlewood!N25+Lillinonah!N25 -> 0 | P36: X | S36: =Bantam!D24 -> X | T36: =Bantam!O24 -> 35 | U36: =McDonough!D24 -> X | V36: =McDonough!O24 -> 35 | W36: =Quaddick!D24 -> X | X36: =Quaddick!O24 -> 35 | Y36: =Candlewood!D24 -> X | Z36: =Candlewood!O24 -> 35 | AA36: =Lillinonah!D24 -> X | AB36: =Lillinonah!O24 -> 35 | AC36: ='CT River'!D24 -> X | AD36: ='CT River'!O24 -> 35 | AE36: ='West Hill'!D24 -> X | AF36: ='West Hill'!O24 -> 35 | AG36: =Moodus!D24 -> X | AH36: =Moodus!O24 -> 35
A37: =X1 -> X | B37: =X11 -> 21 | C37: =X10 -> 210 | E37: X | F37: 21 | G37: 210 | I37: X | J37: =Moodus!N26+Bantam!N26+'CT River'!N26+Quaddick!N26+'West Hill'!N26+McDonough!N26+Candlewood!N26+Lillinonah!N26 -> 0 | P37: X | S37: =Bantam!D25 -> X | T37: =Bantam!O25 -> 35 | U37: =McDonough!D25 -> X | V37: =McDonough!O25 -> 35 | W37: =Quaddick!D25 -> X | X37: =Quaddick!O25 -> 35 | Y37: =Candlewood!D25 -> X | Z37: =Candlewood!O25 -> 35 | AA37: =Lillinonah!D25 -> X | AB37: =Lillinonah!O25 -> 35 | AC37: ='CT River'!D25 -> X | AD37: ='CT River'!O25 -> 35 | AE37: ='West Hill'!D25 -> X | AF37: ='West Hill'!O25 -> 35 | AG37: =Moodus!D25 -> X | AH37: =Moodus!O25 -> 35
A38: =Y1 -> X | B38: =Y11 -> 21 | C38: =Y10 -> 210 | E38: X | F38: 21 | G38: 210 | I38: X | J38: =Moodus!N27+Bantam!N27+'CT River'!N27+Quaddick!N27+'West Hill'!N27+McDonough!N27+Candlewood!N27+Lillinonah!N27 -> 0 | P38: X | S38: =Bantam!D26 -> X | T38: =Bantam!O26 -> 35 | U38: =McDonough!D27 -> X | V38: =McDonough!O27 -> 35 | W38: =Quaddick!D26 -> X | X38: =Quaddick!O26 -> 35 | Y38: =Candlewood!D26 -> X | Z38: =Candlewood!O26 -> 35 | AA38: =Lillinonah!D26 -> X | AB38: =Lillinonah!O26 -> 35 | AC38: ='CT River'!D26 -> X | AD38: ='CT River'!O26 -> 35 | AE38: ='West Hill'!D26 -> X | AF38: ='West Hill'!O26 -> 35 | AG38: =Moodus!D26 -> X | AH38: =Moodus!O26 -> 35
A39: =Z1 -> X | B39: =Z11 -> 21 | C39: =Z10 -> 210 | E39: X | F39: 21 | G39: 210 | I39: X | J39: =Moodus!N28+Bantam!N28+'CT River'!N28+Quaddick!N28+'West Hill'!N28+McDonough!N28+Candlewood!N28+Lillinonah!N28 -> 0 | P39: X | S39: =Bantam!D27 -> X | T39: =Bantam!O27 -> 35 | U39: =McDonough!D26 -> X | V39: =McDonough!O26 -> 35 | W39: =Quaddick!D27 -> X | X39: =Quaddick!O27 -> 35 | Y39: =Candlewood!D27 -> X | Z39: =Candlewood!O27 -> 35 | AA39: =Lillinonah!D27 -> X | AB39: =Lillinonah!O27 -> 35 | AC39: ='CT River'!D27 -> X | AD39: ='CT River'!O27 -> 35 | AE39: ='West Hill'!D27 -> X | AF39: ='West Hill'!O27 -> 35 | AG39: =Moodus!D27 -> X | AH39: =Moodus!O27 -> 35
A40: =AA1 -> X | B40: =AA11 -> 21 | C40: =AA10 -> 210 | E40: X | F40: 21 | G40: 210 | I40: X | J40: =Moodus!N29+Bantam!N29+'CT River'!N29+Quaddick!N29+'West Hill'!N29+McDonough!N29+Candlewood!N29+Lillinonah!N29 -> 0 | P40: X | S40: =Bantam!D28 -> X | T40: =Bantam!O28 -> 35 | U40: =McDonough!D28 -> X | V40: =McDonough!O28 -> 35 | W40: =Quaddick!D28 -> X | X40: =Quaddick!O28 -> 35 | Y40: =Candlewood!D28 -> X | Z40: =Candlewood!O28 -> 35 | AA40: =Lillinonah!D28 -> X | AB40: =Lillinonah!O28 -> 35 | AC40: ='CT River'!D28 -> X | AD40: ='CT River'!O28 -> 35 | AE40: ='West Hill'!D28 -> X | AF40: ='West Hill'!O28 -> 35 | AG40: =Moodus!D28 -> X | AH40: =Moodus!O28 -> 35
S41: =Bantam!D29 -> X | T41: =Bantam!O29 -> 35 | U41: =McDonough!D29 -> X | V41: =McDonough!O29 -> 35 | W41: =Quaddick!D29 -> X | X41: =Quaddick!O29 -> 35 | Y41: =Candlewood!D29 -> X | Z41: =Candlewood!O29 -> 35 | AA41: =Lillinonah!D29 -> X | AB41: =Lillinonah!O29 -> 35 | AC41: ='CT River'!D29 -> X | AD41: ='CT River'!O29 -> 35 | AE41: ='West Hill'!D29 -> X | AF41: ='West Hill'!O29 -> 35 | AG41: =Moodus!D29 -> X | AH41: =Moodus!O29 -> 35
A44: Total Weight
A45: =L15 -> Bantam | C45: =L16 -> McDonough | E45: =L17 -> Quaddick | G45: =L18 -> Candlewood | I45: =L19 -> Lillinonah | K45: =L20 -> CT River | M45: =L21 -> West Hill | O45: =L22 -> Moodus | Q45: Lbs | S45: Total Weight YTD
A46: Name | B46: Weight | C46: Name | D46: Weight | E46: Name | F46: Weight | G46: Name | H46: Weight | I46: Name | J46: Weight | K46: Name | L46: Weight | M46: Name | N46: Weight | O46: Name | P46: Weight | Q46: Ytd | S46: Name | T46: Weight
A47: =P15 -> Anthony | B47: =Bantam!N4 -> 0.73 | C47: =P15 -> Anthony | D47: =McDonough!N4 -> 2.39 | E47: =P15 -> Anthony | F47: =Quaddick!N4 -> 0 | G47: =P15 -> Anthony | H47: =Candlewood!N4 -> 1.83 | I47: =P15 -> Anthony | J47: =Lillinonah!N4 -> 0 | K47: =P15 -> Anthony | L47: ='CT River'!N4 -> 0 | M47: =P15 -> Anthony | N47: ='West Hill'!N4 -> 0 | O47: =P15 -> Anthony | P47: =Moodus!N4 -> 0 | Q47: =SUM(A47:P47) -> 4.95 | S47: =P15 -> Anthony | T47: =Q47 -> 4.95
A48: =P16 -> Armand | B48: =Bantam!N5 -> 10.57 | C48: Armand | D48: =McDonough!N5 -> 9.42 | E48: Armand | F48: =Quaddick!N5 -> 8.56 | G48: Armand | H48: =Candlewood!N5 -> 0 | I48: Armand | J48: =Lillinonah!N5 -> 6.5 | K48: Armand | L48: ='CT River'!N5 -> 1.1 | M48: Armand | N48: ='West Hill'!N5 -> 3.21 | O48: Armand | P48: =Moodus!N5 -> 3.28 | Q48: 42.64 | S48: =P16 -> Armand | T48: =Q48 -> 42.64
A49: =P17 -> Dean | B49: =Bantam!N6 -> 10.28 | C49: Dean | D49: =McDonough!N6 -> 9.16 | E49: Dean | F49: =Quaddick!N6 -> 8.43 | G49: Dean | H49: =Candlewood!N6 -> 14.7 | I49: Dean | J49: =Lillinonah!N6 -> 5.91 | K49: Dean | L49: ='CT River'!N6 -> 5.05 | M49: Dean | N49: ='West Hill'!N6 -> 3.21 | O49: Dean | P49: =Moodus!N6 -> 2.28 | Q49: 59.02 | S49: =P17 -> Dean | T49: 59.02
A50: Jack | B50: =Bantam!N7 -> 7.41 | C50: Jack | D50: =McDonough!N7 -> 6.33 | E50: Jack | F50: =Quaddick!N7 -> 6.43 | G50: Jack | H50: =Candlewood!N7 -> 9.37 | I50: Jack | J50: =Lillinonah!N7 -> 4.41 | K50: Jack | L50: ='CT River'!N7 -> 8 | M50: Jack | N50: ='West Hill'!N7 -> 4.77 | O50: Jack | P50: =Moodus!N7 -> 3.84 | Q50: 50.56 | S50: Jack | T50: 50.56
A51: Jason | B51: =Bantam!N8 -> 7.62 | C51: Jason | D51: =McDonough!N8 -> 9.71 | E51: Jason | F51: =Quaddick!N8 -> 4.18 | G51: Jason | H51: =Candlewood!N8 -> 3.54 | I51: Jason | J51: =Lillinonah!N8 -> 0 | K51: Jason | L51: ='CT River'!N8 -> 0 | M51: Jason | N51: ='West Hill'!N8 -> 0 | O51: Jason | P51: =Moodus!N8 -> 0 | Q51: 25.05 | S51: Jason | T51: 25.05
A52: Jim B | B52: =Bantam!N9 -> 3.7 | C52: Jim B | D52: =McDonough!N9 -> 7.43 | E52: =P20 -> Jim B | F52: =Quaddick!N9 -> 4.79 | G52: Jim B | H52: =Candlewood!N9 -> 0 | I52: Jim B | J52: =Lillinonah!N9 -> 0 | K52: Jim B | L52: ='CT River'!N9 -> 0 | M52: Jim B | N52: ='West Hill'!N9 -> 0 | O52: Jim B | P52: =Moodus!N9 -> 0.77 | Q52: 16.69 | S52: Jim B | T52: 16.69
A53: Kam | B53: =Bantam!N10 -> 0 | C53: Kam | D53: =McDonough!N10 -> 0 | E53: Kam | F53: =Quaddick!N10 -> 0 | G53: Kam | H53: =Candlewood!N10 -> 0 | I53: Kam | J53: =Lillinonah!N10 -> 0 | K53: Kam | L53: ='CT River'!N10 -> 4.91 | M53: Kam | N53: ='West Hill'!N10 -> 1.3 | O53: Kam | P53: =Moodus!N10 -> 0.85 | Q53: 7.06 | S53: Kam | T53: 7.06
A54: Kevin | B54: =Bantam!N11 -> 7.8 | C54: Kevin | D54: =McDonough!N11 -> 7.67 | E54: Kevin | F54: =Quaddick!N11 -> 9.07 | G54: Kevin | H54: =Candlewood!N11 -> 9.52 | I54: Kevin | J54: =Lillinonah!N11 -> 11.41 | K54: Kevin | L54: ='CT River'!N11 -> 1.88 | M54: Kevin | N54: ='West Hill'!N11 -> 1.92 | O54: Kevin | P54: =Moodus!N11 -> 2.22 | Q54: 51.49 | S54: Kevin | T54: 51.49
A55: Mike G | B55: =Bantam!N12 -> 0 | C55: Mike G | D55: =McDonough!N12 -> 0 | E55: Mike G | F55: =Quaddick!N12 -> 4.75 | G55: Mike G | H55: =Candlewood!N12 -> 5.4 | I55: Mike G | J55: =Lillinonah!N12 -> 2.94 | K55: Mike G | L55: ='CT River'!N12 -> 0.86 | M55: Mike G | N55: ='West Hill'!N12 -> 1.17 | O55: Mike G | P55: =Moodus!N12 -> 0 | Q55: 15.12 | S55: Mike G | T55: 15.12
A56: Morrie | B56: =Bantam!N13 -> 0 | C56: Morrie | D56: =McDonough!N13 -> 0 | E56: Morrie | F56: =Quaddick!N13 -> 3.72 | G56: Morrie | H56: =Candlewood!N13 -> 0 | I56: Morrie | J56: =Lillinonah!N13 -> 4.47 | K56: Morrie | L56: ='CT River'!N13 -> 4.57 | M56: Morrie | N56: ='West Hill'!N13 -> 0.75 | O56: Morrie | P56: =Moodus!N13 -> 0 | Q56: 13.51 | S56: Morrie | T56: 13.51
A57: Oz | B57: =Bantam!N14 -> 1.42 | C57: Oz | D57: =McDonough!N14 -> 1.02 | E57: Oz | F57: =Quaddick!N14 -> 1.87 | G57: Oz | H57: =Candlewood!N14 -> 8.09 | I57: Oz | J57: =Lillinonah!N14 -> 0 | K57: Oz | L57: ='CT River'!N14 -> 0 | M57: Oz | N57: ='West Hill'!N14 -> 0.81 | O57: Oz | P57: =Moodus!N14 -> 0.76 | Q57: 13.97 | S57: Oz | T57: 13.97
A58: Pete | B58: =Bantam!N15 -> 5.17 | C58: Pete | D58: =McDonough!N15 -> 7.98 | E58: Pete | F58: =Quaddick!N15 -> 4.29 | G58: Pete | H58: =Candlewood!N15 -> 9.16 | I58: Pete | J58: =Lillinonah!N15 -> 7.96 | K58: Pete | L58: ='CT River'!N15 -> 3.32 | M58: Pete | N58: ='West Hill'!N15 -> 0.87 | O58: Pete | P58: =Moodus!N15 -> 1.53 | Q58: 40.28 | S58: Pete | T58: 40.28
A59: Rich B | B59: =Bantam!N16 -> 2.75 | C59: Rich B | D59: =McDonough!N16 -> 4.76 | E59: Rich B | F59: =Quaddick!N16 -> 0 | G59: Rich B | H59: =Candlewood!N16 -> 6.34 | I59: Rich B | J59: =Lillinonah!N16 -> 8.82 | K59: Rich B | L59: ='CT River'!N16 -> 0 | M59: Rich B | N59: ='West Hill'!N16 -> 2.02 | O59: Rich B | P59: =Moodus!N16 -> 1.65 | Q59: 26.34 | S59: Rich B | T59: 26.34
A60: Rich M | B60: =Bantam!N17 -> 0 | C60: Rich M | D60: =McDonough!N17 -> 0 | E60: Rich M | F60: =Quaddick!N17 -> 3.47 | G60: Rich M | H60: =Candlewood!N17 -> 6.93 | I60: Rich M | J60: =Lillinonah!N17 -> 4.92 | K60: Rich M | L60: ='CT River'!N17 -> 3.72 | M60: Rich M | N60: ='West Hill'!N17 -> 0 | O60: Rich M | P60: =Moodus!N17 -> 3.3 | Q60: 22.34 | S60: Rich M | T60: 22.34
A61: Rich T | B61: =Bantam!N18 -> 0 | C61: Rich T | D61: =McDonough!N18 -> 7.98 | E61: Rich T | F61: =Quaddick!N18 -> 8.41 | G61: Rich T | H61: =Candlewood!N18 -> 12.64 | I61: Rich T | J61: =Lillinonah!N18 -> 0.95 | K61: Rich T | L61: ='CT River'!N18 -> 3.72 | M61: Rich T | N61: ='West Hill'!N18 -> 4.17 | O61: Rich T | P61: =Moodus!N18 -> 0 | Q61: 37.87 | S61: Rich T | T61: 37.87
A62: Ryan | B62: =Bantam!N19 -> 3.91 | C62: Ryan | D62: =McDonough!N19 -> 10.46 | E62: Ryan | F62: =Quaddick!N19 -> 5.79 | G62: Ryan | H62: =Candlewood!N19 -> 10.77 | I62: Ryan | J62: =Lillinonah!N19 -> 3.22 | K62: Ryan | L62: ='CT River'!N19 -> 7.26 | M62: Ryan | N62: ='West Hill'!N19 -> 1.54 | O62: Ryan | P62: =Moodus!N19 -> 2.73 | Q62: 45.68 | S62: Ryan | T62: 45.68
A63: Scott | B63: =Bantam!N20 -> 0.92 | C63: Scott | D63: =McDonough!N20 -> 8.27 | E63: Scott | F63: =Quaddick!N20 -> 9.85 | G63: Scott | H63: =Candlewood!N20 -> 6.72 | I63: Scott | J63: =Lillinonah!N20 -> 8.52 | K63: Scott | L63: ='CT River'!N20 -> 2.47 | M63: Scott | N63: ='West Hill'!N20 -> 0.78 | O63: Scott | P63: =Moodus!N20 -> 10.58 | Q63: 48.11 | S63: Scott | T63: 48.11
A64: Steve D | B64: =Bantam!N21 -> 2.06 | C64: Steve D | D64: =McDonough!N21 -> 8.23 | E64: Steve D | F64: =Quaddick!N21 -> 9.86 | G64: Steve D | H64: =Candlewood!N21 -> 13.27 | I64: Steve D | J64: =Lillinonah!N21 -> 5.69 | K64: Steve D | L64: ='CT River'!N21 -> 7.34 | M64: Steve D | N64: ='West Hill'!N21 -> 1.6 | O64: Steve D | P64: =Moodus!N21 -> 3.27 | Q64: 51.32 | S64: Steve D | T64: 51.32
A65: Steve S | B65: =Bantam!N22 -> 2.05 | C65: Steve S | D65: =McDonough!N22 -> 6.7 | E65: Steve S | F65: =Quaddick!N22 -> 9.13 | G65: Steve S | H65: =Candlewood!N22 -> 4.57 | I65: Steve S | J65: =Lillinonah!N22 -> 8.18 | K65: Steve S | L65: ='CT River'!N22 -> 4.15 | M65: Steve S | N65: ='West Hill'!N22 -> 0.74 | O65: Steve S | P65: =Moodus!N22 -> 0 | Q65: 35.52 | S65: Steve S | T65: 35.52
A66: Tom | B66: =Bantam!N23 -> 0 | C66: Tom | D66: =McDonough!N23 -> 6.06 | E66: Tom | F66: =Quaddick!N23 -> 7.21 | G66: Tom | H66: =Candlewood!N23 -> 9.55 | I66: Tom | J66: =Lillinonah!N23 -> 3.65 | K66: Tom | L66: ='CT River'!N23 -> 0 | M66: Tom | N66: ='West Hill'!N23 -> 0 | O66: Tom | P66: =Moodus!N23 -> 0 | Q66: 26.47 | S66: Tom | T66: 26.47
A67: X | B67: =Bantam!N24 -> 0 | C67: X | D67: =McDonough!N24 -> 0 | E67: X | F67: =Quaddick!N24 -> 0 | G67: X | H67: =Candlewood!N24 -> 0 | I67: X | J67: =Lillinonah!N24 -> 0 | K67: X | L67: ='CT River'!N24 -> 0 | M67: X | N67: ='West Hill'!N24 -> 0 | O67: X | P67: =Moodus!N24 -> 0 | Q67: 0 | S67: X | T67: 0
A68: X | B68: =Bantam!N25 -> 0 | C68: X | D68: =McDonough!N25 -> 0 | E68: X | F68: =Quaddick!N25 -> 0 | G68: X | H68: =Candlewood!N25 -> 0 | I68: X | J68: =Lillinonah!N25 -> 0 | K68: X | L68: ='CT River'!N25 -> 0 | M68: X | N68: ='West Hill'!N25 -> 0 | O68: X | P68: =Moodus!N25 -> 0 | Q68: 0 | S68: X | T68: 0
A69: X | B69: =Bantam!N26 -> 0 | C69: X | D69: =McDonough!N26 -> 0 | E69: X | F69: =Quaddick!N26 -> 0 | G69: X | H69: =Candlewood!N26 -> 0 | I69: X | J69: =Lillinonah!N26 -> 0 | K69: X | L69: ='CT River'!N26 -> 0 | M69: X | N69: ='West Hill'!N26 -> 0 | O69: X | P69: =Moodus!N26 -> 0 | Q69: 0 | S69: X | T69: 0
A70: X | B70: =Bantam!N27 -> 0 | C70: X | D70: =McDonough!N27 -> 0 | E70: X | F70: =Quaddick!N27 -> 0 | G70: X | H70: =Candlewood!N27 -> 0 | I70: X | J70: =Lillinonah!N27 -> 0 | K70: X | L70: ='CT River'!N27 -> 0 | M70: X | N70: ='West Hill'!N27 -> 0 | O70: X | P70: =Moodus!N27 -> 0 | Q70: 0 | S70: X | T70: 0
A71: X | B71: =Bantam!N28 -> 0 | C71: X | D71: =McDonough!N28 -> 0 | E71: X | F71: =Quaddick!N28 -> 0 | G71: X | H71: =Candlewood!N28 -> 0 | I71: X | J71: =Lillinonah!N28 -> 0 | K71: X | L71: ='CT River'!N28 -> 0 | M71: X | N71: ='West Hill'!N28 -> 0 | O71: X | P71: =Moodus!N28 -> 0 | Q71: 0 | S71: X | T71: 0
A72: X | B72: =Bantam!N29 -> 0 | C72: X | D72: =McDonough!N29 -> 0 | E72: X | F72: =Quaddick!N29 -> 0 | G72: X | H72: =Candlewood!N29 -> 0 | I72: X | J72: =Lillinonah!N29 -> 0 | K72: X | L72: ='CT River'!N29 -> 0 | M72: X | N72: ='West Hill'!N29 -> 0 | O72: X | P72: =Moodus!N29 -> 0 | Q72: 0 | S72: X | T72: 0
A74: Lunkers
A75: =A45 -> Bantam | D75: =C45 -> McDonough | G75: =E45 -> Quaddick | J75: =G45 -> Candlewood | M75: =I45 -> Lillinonah | P75: =K45 -> CT River | S75: =M45 -> West Hill | V75: =O45 -> Moodus
A76: Name | B76: Weight | C76: L or S | D76: Name | E76: Weight | F76: L or S | G76: Name | H76: Weight | I76: L or S | J76: Name | K76: Weight | L76: L or S | M76: Name | N76: Weight | O76: L or S | P76: Name | Q76: Weight | R76: L or S | S76: Name | T76: Weight | U76: L or S | V76: Name | W76: Weight | X76: L or S
A77: =Bantam!D4 -> Anthony | B77: =Bantam!J4 -> 0 | C77: =Bantam!K4 -> 0 | D77: =McDonough!D4 -> Anthony | E77: =McDonough!J4 -> 0 | F77: =McDonough!K4 -> 0 | G77: =Quaddick!D4 -> Anthony | H77: =Quaddick!J4 -> 0 | I77: =Quaddick!K4 -> 0 | J77: =Candlewood!D4 -> Anthony | K77: =Candlewood!J4 -> 0 | L77: =Candlewood!K4 -> 0 | M77: =Lillinonah!D4 -> Anthony | N77: =Lillinonah!J4 -> 0 | O77: =Lillinonah!K4 -> 0 | P77: ='CT River'!D4 -> Anthony | Q77: ='CT River'!J4 -> 0 | R77: ='CT River'!K4 -> 0 | S77: ='West Hill'!D4 -> Anthony | T77: ='West Hill'!J4 -> 0 | U77: ='West Hill'!K4 -> 0 | V77: =Moodus!D4 -> Anthony | W77: =Moodus!J4 -> 0 | X77: =Moodus!K4 -> 0
A78: =Bantam!D6 -> Dean | B78: =Bantam!J6 -> 0 | C78: =Bantam!K6 -> 0 | D78: =McDonough!D5 -> Armand | E78: =McDonough!J5 -> 0 | F78: =McDonough!K5 -> 0 | G78: =Quaddick!D5 -> Armand | H78: =Quaddick!J5 -> 0 | I78: =Quaddick!K5 -> 0 | J78: =Candlewood!D5 -> Armand | K78: =Candlewood!J5 -> 0 | L78: =Candlewood!K5 -> 0 | M78: =Lillinonah!D5 -> Armand | N78: =Lillinonah!J5 -> 0 | O78: =Lillinonah!K5 -> 0 | P78: =P16 -> Armand | Q78: ='CT River'!J5 -> 0 | R78: ='CT River'!K5 -> 0 | S78: ='CT River'!D6 -> Dean | T78: ='West Hill'!J6 -> 0 | U78: ='West Hill'!K6 -> 0 | V78: =Moodus!D5 -> Armand | W78: =Moodus!J5 -> 0 | X78: =Moodus!K5 -> 0
A79: =Bantam!D7 -> Jack | B79: =Bantam!J7 -> 0 | C79: =Bantam!K7 -> 0 | D79: =McDonough!D6 -> Dean | E79: =McDonough!J6 -> 0 | F79: =McDonough!K6 -> 0 | G79: =Quaddick!D6 -> Dean | H79: =Quaddick!J6 -> 0 | I79: =Quaddick!K6 -> 0 | J79: =Candlewood!D7 -> Jack | K79: =Candlewood!J7 -> 0 | L79: =Candlewood!K7 -> 0 | M79: =Lillinonah!D7 -> Jack | N79: =Lillinonah!J7 -> 0 | O79: =Lillinonah!K7 -> 0 | P79: Dean | Q79: ='CT River'!J8 -> 0 | R79: ='CT River'!K8 -> 0 | S79: ='CT River'!D7 -> Jack | T79: ='West Hill'!J7 -> 0 | U79: ='West Hill'!K7 -> 0 | V79: =Moodus!D6 -> Dean | W79: =Moodus!J6 -> 0 | X79: =Moodus!K6 -> 0
A80: =Bantam!D8 -> Jason | B80: =Bantam!J8 -> 0 | C80: =Bantam!K8 -> 0 | D80: =McDonough!D7 -> Jack | E80: =McDonough!J7 -> 0 | F80: =McDonough!K7 -> 0 | G80: =Quaddick!D7 -> Jack | H80: =Quaddick!J7 -> 0 | I80: =Quaddick!K7 -> 0 | J80: =Candlewood!D8 -> Jason | K80: =Candlewood!J8 -> 0 | L80: =Candlewood!K8 -> 0 | M80: =Lillinonah!D8 -> Jason | N80: =Lillinonah!J8 -> 0 | O80: =Lillinonah!K8 -> 0 | P80: Jack | Q80: ='CT River'!J9 -> 0 | R80: ='CT River'!K9 -> 0 | S80: ='CT River'!D8 -> Jason | T80: ='West Hill'!J8 -> 0 | U80: ='West Hill'!K8 -> 0 | V80: =Moodus!D7 -> Jack | W80: =Moodus!J7 -> 0 | X80: =Moodus!K7 -> 0
A81: =Bantam!D10 -> Kam | B81: =Bantam!J10 -> 0 | C81: =Bantam!K10 -> 0 | D81: =McDonough!D8 -> Jason | E81: =McDonough!J8 -> 0 | F81: =McDonough!K8 -> 0 | G81: =Quaddick!D8 -> Jason | H81: =Quaddick!J8 -> 0 | I81: =Quaddick!K8 -> 0 | J81: =Candlewood!D9 -> Jim B | K81: =Candlewood!J9 -> 0 | L81: =Candlewood!K9 -> 0 | M81: =Lillinonah!D9 -> Jim B | N81: =Lillinonah!J9 -> 0 | O81: =Lillinonah!K9 -> 0 | P81: Jason | Q81: ='CT River'!J10 -> 0 | R81: ='CT River'!K10 -> 0 | S81: ='CT River'!D9 -> Jim B | T81: ='West Hill'!J9 -> 0 | U81: ='West Hill'!K9 -> 0 | V81: =Moodus!D8 -> Jason | W81: =Moodus!J8 -> 0 | X81: =Moodus!K8 -> 0
A82: =Bantam!D11 -> Kevin | B82: =Bantam!J11 -> 0 | C82: =Bantam!K11 -> 0 | D82: =McDonough!D9 -> Jim B | E82: =McDonough!J9 -> 0 | F82: =McDonough!K9 -> 0 | G82: =Quaddick!D9 -> Jim B | H82: =Quaddick!J9 -> 0 | I82: =Quaddick!K9 -> 0 | J82: =Candlewood!D10 -> Kam | K82: =Candlewood!J10 -> 0 | L82: =Candlewood!K10 -> 0 | M82: =Lillinonah!D10 -> Kam | N82: =Lillinonah!J10 -> 0 | O82: =Lillinonah!K10 -> 0 | P82: Jim B | Q82: ='CT River'!J11 -> 0 | R82: ='CT River'!K11 -> 0 | S82: ='CT River'!D10 -> Kam | T82: ='West Hill'!J10 -> 0 | U82: ='West Hill'!K10 -> 0 | V82: =Moodus!D9 -> Jim B | W82: =Moodus!J9 -> 0 | X82: =Moodus!K9 -> 0
A83: =Bantam!D12 -> Mike G | B83: =Bantam!J12 -> 0 | C83: =Bantam!K12 -> 0 | D83: =McDonough!D10 -> Kam | E83: =McDonough!J10 -> 0 | F83: =McDonough!K10 -> 0 | G83: =Quaddick!D10 -> Kam | H83: =Quaddick!J10 -> 0 | I83: =Quaddick!K10 -> 0 | J83: =Candlewood!D11 -> Kevin | K83: =Candlewood!J11 -> 0 | L83: =Candlewood!K11 -> 0 | M83: =Lillinonah!D12 -> Mike G | N83: =Lillinonah!J12 -> 0 | O83: =Lillinonah!K12 -> 0 | P83: Kam | Q83: ='CT River'!J12 -> 0 | R83: ='CT River'!K12 -> 0 | S83: ='CT River'!D11 -> Kevin | T83: ='West Hill'!J11 -> 0 | U83: ='West Hill'!K11 -> 0 | V83: =Moodus!D10 -> Kam | W83: =Moodus!J10 -> 0 | X83: =Moodus!K10 -> 0
A84: =Bantam!D13 -> Morrie | B84: =Bantam!J13 -> 0 | C84: =Bantam!K13 -> 0 | D84: =McDonough!D11 -> Kevin | E84: =McDonough!J11 -> 0 | F84: =McDonough!K11 -> 0 | G84: =Quaddick!D11 -> Kevin | H84: =Quaddick!J11 -> 0 | I84: =Quaddick!K11 -> 0 | J84: =Candlewood!D12 -> Mike G | K84: =Candlewood!J12 -> 0 | L84: =Candlewood!K12 -> 0 | M84: =Lillinonah!D13 -> Morrie | N84: =Lillinonah!J13 -> 0 | O84: =Lillinonah!K13 -> 0 | P84: Kevin | Q84: ='CT River'!J13 -> 0 | R84: ='CT River'!K13 -> 0 | S84: ='CT River'!D12 -> Mike G | T84: ='West Hill'!J12 -> 0 | U84: ='West Hill'!K12 -> 0 | V84: =Moodus!D11 -> Kevin | W84: =Moodus!J11 -> 0 | X84: =Moodus!K11 -> 0
A85: =Bantam!D14 -> Oz | B85: =Bantam!J14 -> 0 | C85: =Bantam!K14 -> 0 | D85: =McDonough!D12 -> Mike G | E85: =McDonough!J12 -> 0 | F85: =McDonough!K12 -> 0 | G85: =Quaddick!D12 -> Mike G | H85: =Quaddick!J12 -> 0 | I85: =Quaddick!K12 -> 0 | J85: =Candlewood!D13 -> Morrie | K85: =Candlewood!J13 -> 0 | L85: =Candlewood!K13 -> 0 | M85: =Lillinonah!D14 -> Oz | N85: =Lillinonah!J14 -> 0 | O85: =Lillinonah!K14 -> 0 | P85: Mike G | Q85: ='CT River'!J14 -> 0 | R85: ='CT River'!K14 -> 0 | S85: ='CT River'!D13 -> Morrie | T85: ='West Hill'!J13 -> 0 | U85: ='West Hill'!K13 -> 0 | V85: =Moodus!D12 -> Mike G | W85: =Moodus!J12 -> 0 | X85: =Moodus!K12 -> 0
A86: =Bantam!D15 -> Pete | B86: =Bantam!J15 -> 0 | C86: =Bantam!K15 -> 0 | D86: =McDonough!D13 -> Morrie | E86: =McDonough!J13 -> 0 | F86: =McDonough!K13 -> 0 | G86: =Quaddick!D13 -> Morrie | H86: =Quaddick!J13 -> 0 | I86: =Quaddick!K13 -> 0 | J86: =Candlewood!D15 -> Pete | K86: =Candlewood!J15 -> 0 | L86: =Candlewood!K15 -> 0 | M86: =Lillinonah!D15 -> Pete | N86: =Lillinonah!J15 -> 0 | O86: =Lillinonah!K15 -> 0 | P86: Morrie | Q86: ='CT River'!J15 -> 0 | R86: ='CT River'!K15 -> 0 | S86: ='CT River'!D14 -> Oz | T86: ='West Hill'!J14 -> 0 | U86: ='West Hill'!K14 -> 0 | V86: =Moodus!D13 -> Morrie | W86: =Moodus!J13 -> 0 | X86: =Moodus!K13 -> 0
A87: =Bantam!D16 -> Rich B | B87: =Bantam!J16 -> 0 | C87: =Bantam!K16 -> 0 | D87: =McDonough!D14 -> Oz | E87: =McDonough!J14 -> 0 | F87: =McDonough!K14 -> 0 | G87: =Quaddick!D14 -> Oz | H87: =Quaddick!J14 -> 0 | I87: =Quaddick!K14 -> 0 | J87: =Candlewood!D16 -> Rich B | K87: =Candlewood!J16 -> 0 | L87: =Candlewood!K16 -> 0 | M87: =Lillinonah!D17 -> Rich M | N87: =Lillinonah!J17 -> 0 | O87: =Lillinonah!K17 -> 0 | P87: Oz | Q87: ='CT River'!J16 -> 0 | R87: ='CT River'!K16 -> 0 | S87: ='CT River'!D15 -> Pete | T87: ='West Hill'!J15 -> 0 | U87: ='West Hill'!K15 -> 0 | V87: =Moodus!D14 -> Oz | W87: =Moodus!J14 -> 0 | X87: =Moodus!K14 -> 0
A88: =Bantam!D17 -> Rich M | B88: =Bantam!J17 -> 0 | C88: =Bantam!K17 -> 0 | D88: =McDonough!D15 -> Pete | E88: =McDonough!J15 -> 0 | F88: =McDonough!K15 -> 0 | G88: =Quaddick!D15 -> Pete | H88: =Quaddick!J15 -> 0 | I88: =Quaddick!K15 -> 0 | J88: =Candlewood!D17 -> Rich M | K88: =Candlewood!J17 -> 0 | L88: =Candlewood!K17 -> 0 | M88: =Lillinonah!D18 -> Rich T | N88: =Lillinonah!J18 -> 0 | O88: =Lillinonah!K18 -> 0 | P88: Pete | Q88: ='CT River'!J17 -> 0 | R88: ='CT River'!K17 -> 0 | S88: ='CT River'!D16 -> Rich B | T88: ='West Hill'!J16 -> 0 | U88: ='West Hill'!K16 -> 0 | V88: =Moodus!D15 -> Pete | W88: =Moodus!J15 -> 0 | X88: =Moodus!K15 -> 0
A89: =Bantam!D18 -> Rich T | B89: =Bantam!J18 -> 0 | C89: =Bantam!K18 -> 0 | D89: =McDonough!D16 -> Rich B | E89: =McDonough!J16 -> 0 | F89: =McDonough!K16 -> 0 | G89: =Quaddick!D16 -> Rich B | H89: =Quaddick!J16 -> 0 | I89: =Quaddick!K16 -> 0 | J89: =Candlewood!D20 -> Scott | K89: =Candlewood!J20 -> 0 | L89: =Candlewood!K20 -> 0 | M89: =Lillinonah!D19 -> Ryan | N89: =Lillinonah!J19 -> 0 | O89: =Lillinonah!K19 -> 0 | P89: Rich B | Q89: ='CT River'!J18 -> 0 | R89: ='CT River'!K18 -> 0 | S89: ='CT River'!D17 -> Rich M | T89: ='West Hill'!J17 -> 0 | U89: ='West Hill'!K17 -> 0 | V89: =Moodus!D16 -> Rich B | W89: =Moodus!J16 -> 0 | X89: =Moodus!K16 -> 0
A90: =Bantam!D19 -> Ryan | B90: =Bantam!J19 -> 0 | C90: =Bantam!K19 -> 0 | D90: =McDonough!D17 -> Rich M | E90: =McDonough!J17 -> 0 | F90: =McDonough!K17 -> 0 | G90: =Quaddick!D17 -> Rich M | H90: =Quaddick!J17 -> 0 | I90: =Quaddick!K17 -> 0 | J90: =Candlewood!D21 -> Steve D | K90: =Candlewood!J21 -> 0 | L90: =Candlewood!K21 -> 0 | M90: =Lillinonah!D20 -> Scott | N90: =Lillinonah!J20 -> 0 | O90: =Lillinonah!K20 -> 0 | P90: Rich M | Q90: ='CT River'!J20 -> 0 | R90: ='CT River'!K20 -> 0 | S90: ='CT River'!D18 -> Rich T | T90: ='West Hill'!J18 -> 0 | U90: ='West Hill'!K18 -> 0 | V90: =Moodus!D17 -> Rich M | W90: =Moodus!J17 -> 0 | X90: =Moodus!K17 -> 0
A91: =Bantam!D20 -> Scott | B91: =Bantam!J20 -> 0 | C91: =Bantam!K20 -> 0 | D91: =McDonough!D18 -> Rich T | E91: =McDonough!J18 -> 0 | F91: =McDonough!K18 -> 0 | G91: =Quaddick!D18 -> Rich T | H91: =Quaddick!J18 -> 0 | I91: =Quaddick!K18 -> 0 | J91: =Candlewood!D22 -> Steve S | K91: =Candlewood!J22 -> 0 | L91: =Candlewood!K22 -> 0 | M91: =Lillinonah!D21 -> Steve D | N91: =Lillinonah!J21 -> 0 | O91: =Lillinonah!K21 -> 0 | P91: Rich T | Q91: ='CT River'!J22 -> 0 | R91: ='CT River'!K22 -> 0 | S91: ='CT River'!D19 -> Ryan | T91: ='West Hill'!J19 -> 0 | U91: ='West Hill'!K19 -> 0 | V91: =Moodus!D18 -> Rich T | W91: =Moodus!J18 -> 0 | X91: =Moodus!K18 -> 0
A92: =Bantam!D21 -> Steve D | B92: =Bantam!J21 -> 0 | C92: =Bantam!K21 -> 0 | D92: =McDonough!D20 -> Scott | E92: =McDonough!J20 -> 0 | F92: =McDonough!K20 -> 0 | G92: =Quaddick!D19 -> Ryan | H92: =Quaddick!J19 -> 0 | I92: =Quaddick!K19 -> 0 | J92: =Candlewood!D23 -> Tom | K92: =Candlewood!J23 -> 0 | L92: =Candlewood!K23 -> 0 | M92: =Lillinonah!D23 -> Tom | N92: =Lillinonah!J23 -> 0 | O92: =Lillinonah!K23 -> 0 | P92: Ryan | Q92: ='CT River'!J23 -> 0 | R92: ='CT River'!K23 -> 0 | S92: ='CT River'!D20 -> Scott | T92: ='West Hill'!J20 -> 0 | U92: ='West Hill'!K20 -> 0 | V92: =Moodus!D19 -> Ryan | W92: =Moodus!J19 -> 0 | X92: =Moodus!K19 -> 0
A93: =Bantam!D22 -> Steve S | B93: =Bantam!J22 -> 0 | C93: =Bantam!K22 -> 0 | D93: =McDonough!D21 -> Steve D | E93: =McDonough!J21 -> 0 | F93: =McDonough!K21 -> 0 | G93: =Quaddick!D20 -> Scott | H93: =Quaddick!J20 -> 0 | I93: =Quaddick!K20 -> 0 | J93: =Candlewood!D24 -> X | K93: =Candlewood!J24 -> 0 | L93: =Candlewood!K24 -> 0 | M93: =Lillinonah!D24 -> X | N93: =Lillinonah!J24 -> 0 | O93: =Lillinonah!K24 -> 0 | P93: Scott | Q93: ='CT River'!J24 -> 0 | R93: ='CT River'!K24 -> 0 | S93: ='CT River'!D21 -> Steve D | T93: ='West Hill'!J21 -> 0 | U93: ='West Hill'!K21 -> 0 | V93: =Moodus!D21 -> Steve D | W93: =Moodus!J21 -> 0 | X93: =Moodus!K21 -> 0
A94: =Bantam!D23 -> Tom | B94: =Bantam!J23 -> 0 | C94: =Bantam!K23 -> 0 | D94: =McDonough!D22 -> Steve S | E94: =McDonough!J22 -> 0 | F94: =McDonough!K22 -> 0 | G94: =Quaddick!D21 -> Steve D | H94: =Quaddick!J21 -> 0 | I94: =Quaddick!K21 -> 0 | J94: =Candlewood!D25 -> X | K94: =Candlewood!J25 -> 0 | L94: =Candlewood!K25 -> 0 | M94: =Lillinonah!D25 -> X | N94: =Lillinonah!J25 -> 0 | O94: =Lillinonah!K25 -> 0 | P94: Steve D | Q94: ='CT River'!J25 -> 0 | R94: ='CT River'!K25 -> 0 | S94: ='CT River'!D22 -> Steve S | T94: ='West Hill'!J22 -> 0 | U94: ='West Hill'!K22 -> 0 | V94: =Moodus!D22 -> Steve S | W94: =Moodus!J22 -> 0 | X94: =Moodus!K22 -> 0
A95: =Bantam!D24 -> X | B95: =Bantam!J24 -> 0 | C95: =Bantam!K24 -> 0 | D95: =McDonough!D23 -> Tom | E95: =McDonough!J23 -> 0 | F95: =McDonough!K23 -> 0 | G95: =Quaddick!D22 -> Steve S | H95: =Quaddick!J22 -> 0 | I95: =Quaddick!K22 -> 0 | J95: =Candlewood!D26 -> X | K95: =Candlewood!J26 -> 0 | L95: =Candlewood!K26 -> 0 | M95: =Lillinonah!D26 -> X | N95: =Lillinonah!J26 -> 0 | O95: =Lillinonah!K26 -> 0 | P95: X | Q95: ='CT River'!J26 -> 0 | R95: ='CT River'!K26 -> 0 | S95: ='CT River'!D23 -> Tom | T95: ='West Hill'!J23 -> 0 | U95: ='West Hill'!K23 -> 0 | V95: =Moodus!D23 -> Tom | W95: =Moodus!J23 -> 0 | X95: =Moodus!K23 -> 0
A96: =Bantam!D25 -> X | B96: =Bantam!J25 -> 0 | C96: =Bantam!K25 -> 0 | D96: =McDonough!D24 -> X | E96: =McDonough!J24 -> 0 | F96: =McDonough!K24 -> 0 | G96: =Quaddick!D24 -> X | H96: =Quaddick!J24 -> 0 | I96: =Quaddick!K24 -> 0 | J96: =Candlewood!D27 -> X | K96: =Candlewood!J27 -> 0 | L96: =Candlewood!K27 -> 0 | M96: =Lillinonah!D27 -> X | N96: =Lillinonah!J27 -> 0 | O96: =Lillinonah!K27 -> 0 | P96: X | Q96: ='CT River'!J27 -> 0 | R96: ='CT River'!K27 -> 0 | S96: ='CT River'!D24 -> X | T96: ='West Hill'!J24 -> 0 | U96: ='West Hill'!K24 -> 0 | V96: =Moodus!D24 -> X | W96: =Moodus!J24 -> 0 | X96: =Moodus!K24 -> 0
A97: =Bantam!D26 -> X | B97: =Bantam!J26 -> 0 | C97: =Bantam!K26 -> 0 | D97: =McDonough!D25 -> X | E97: =McDonough!J25 -> 0 | F97: =McDonough!K25 -> 0 | G97: =Quaddick!D25 -> X | H97: =Quaddick!J25 -> 0 | I97: =Quaddick!K25 -> 0 | J97: =Candlewood!D28 -> X | K97: =Candlewood!J28 -> 0 | L97: =Candlewood!K28 -> 0 | M97: =Lillinonah!D28 -> X | N97: =Lillinonah!J28 -> 0 | O97: =Lillinonah!K28 -> 0 | P97: X | Q97: ='CT River'!J28 -> 0 | R97: ='CT River'!K28 -> 0 | S97: ='CT River'!D25 -> X | T97: ='West Hill'!J25 -> 0 | U97: ='West Hill'!K25 -> 0 | V97: =Moodus!D25 -> X | W97: =Moodus!J25 -> 0 | X97: =Moodus!K25 -> 0
A98: =Bantam!D27 -> X | B98: =Bantam!J27 -> 0 | C98: =Bantam!K27 -> 0 | D98: =McDonough!D26 -> X | E98: =McDonough!J26 -> 0 | F98: =McDonough!K26 -> 0 | G98: =Quaddick!D26 -> X | H98: =Quaddick!J26 -> 0 | I98: =Quaddick!K26 -> 0 | J98: =Candlewood!D29 -> X | K98: =Candlewood!J29 -> 0 | L98: =Candlewood!K29 -> 0 | M98: =Lillinonah!D29 -> X | N98: =Lillinonah!J29 -> 0 | O98: =Lillinonah!K29 -> 0 | P98: =AE36 -> X | Q98: ='CT River'!J29 -> 0 | R98: ='CT River'!K29 -> 0 | S98: ='CT River'!D26 -> X | T98: ='West Hill'!J26 -> 0 | U98: ='West Hill'!K26 -> 0 | V98: =Moodus!D26 -> X | W98: =Moodus!J26 -> 0 | X98: =Moodus!K26 -> 0
A99: =Bantam!D28 -> X | B99: =Bantam!J28 -> 0 | C99: =Bantam!K28 -> 0 | D99: =McDonough!D27 -> X | E99: =McDonough!J27 -> 0 | F99: =McDonough!K27 -> 0 | G99: =Quaddick!D27 -> X | H99: =Quaddick!J27 -> 0 | I99: =Quaddick!K27 -> 0 | J99: =Candlewood!D14 -> Oz | K99: =Candlewood!J14 -> 3.28 | L99: =Candlewood!K14 -> LMB | M99: =Lillinonah!D22 -> Steve S | N99: =Lillinonah!J22 -> 2.85 | O99: =Lillinonah!K22 -> LMB | P99: =P37 -> X | Q99: ='CT River'!J21 -> 2.05 | R99: ='CT River'!K21 -> LMB | S99: ='CT River'!D27 -> X | T99: ='West Hill'!J27 -> 0 | U99: ='West Hill'!K27 -> 0 | V99: =Moodus!D27 -> X | W99: =Moodus!J27 -> 0 | X99: =Moodus!K27 -> 0
A100: =Bantam!D29 -> X | B100: =Bantam!J29 -> 0 | C100: =Bantam!K29 -> 0 | D100: =McDonough!D28 -> X | E100: =McDonough!J28 -> 0 | F100: =McDonough!K28 -> 0 | G100: =Quaddick!D28 -> X | H100: =Quaddick!J28 -> 0 | I100: =Quaddick!K28 -> 0 | J100: =Candlewood!D18 -> Rich T | K100: =Candlewood!J18 -> 3.3 | L100: =Candlewood!K18 -> LMB | M100: =Lillinonah!D16 -> Rich B | N100: =Lillinonah!J16 -> 3.09 | O100: =Lillinonah!K16 -> lmb | P100: =P38 -> X | Q100: ='CT River'!J19 -> 2.3 | R100: ='CT River'!K19 -> LMB | S100: ='CT River'!D28 -> X | T100: ='West Hill'!J28 -> 0 | U100: ='West Hill'!K28 -> 0 | V100: =Moodus!D28 -> X | W100: =Moodus!J28 -> 0 | X100: =Moodus!K28 -> 0
A101: =Bantam!D9 -> Jim B | B101: =Bantam!J9 -> 3.7 | C101: =Bantam!K9 -> LMB | D101: =McDonough!D29 -> X | E101: =McDonough!J29 -> 0 | F101: =McDonough!K29 -> 0 | G101: =Quaddick!D29 -> X | H101: =Quaddick!J29 -> 0 | I101: =Quaddick!K29 -> 0 | J101: =Candlewood!D19 -> Ryan | K101: =Candlewood!J19 -> 3.37 | L101: =Candlewood!K19 -> LMB | M101: =Lillinonah!D11 -> Kevin | N101: =Lillinonah!J11 -> 3.22 | O101: =Lillinonah!K11 -> smb | P101: =P39 -> X | Q101: ='CT River'!J6 -> 2.32 | R101: ='CT River'!K6 -> LMB | S101: ='CT River'!D29 -> X | T101: ='West Hill'!J29 -> 0 | U101: ='West Hill'!K29 -> 0 | V101: =Moodus!D29 -> X | W101: =Moodus!J29 -> 0 | X101: =Moodus!K29 -> 0
A102: =Bantam!D5 -> Armand | B102: =Bantam!J5 -> 4.05 | C102: =Bantam!K5 -> SMB | D102: =McDonough!D19 -> Ryan | E102: =McDonough!J19 -> 3.97 | F102: =McDonough!K19 -> LMB | G102: =Quaddick!D23 -> Tom | H102: =Quaddick!J23 -> 5.36 | I102: =Quaddick!K23 -> lmb | J102: =Candlewood!D6 -> Dean | K102: =Candlewood!J6 -> 3.91 | L102: =Candlewood!K6 -> LMB | M102: =Lillinonah!D6 -> Dean | N102: =Lillinonah!J6 -> 3.94 | O102: =Lillinonah!K6 -> LMB | P102: =P40 -> X | Q102: ='CT River'!J7 -> 3.58 | R102: ='CT River'!K7 -> LMB | S102: ='CT River'!D5 -> Armand | T102: ='West Hill'!J5 -> 3.21 | U102: ='West Hill'!K5 -> LMB | V102: =Moodus!D20 -> Scott | W102: =Moodus!J20 -> 6.84 | X102: =Moodus!K20 -> LMB
A103: =A102 -> Armand | B103: =B102 -> 4.05 | C103: =C102 -> SMB | D103: =D102 -> Ryan | E103: 3.97 | F103: =F102 -> LMB | G103: =G102 -> Tom | H103: =H102 -> 5.36 | I103: =I102 -> lmb | J103: Dean | K103: 3.91 | L103: LMB | M103: Dean | N103: 3.94 | O103: LMB | P103: X | Q103: 3.58 | R103: LMB | S103: Armand | T103: 3.21 | U103: LMB | V103: Scott | W103: 6.84 | X103: LMB

Sheet Sheet1
A1: Name | B1: Weight | C1: Name | D1: Weight
A2: Anthony | C2: Anthony
A3: Armand | C3: Armand
A4: Dean | C4: Dean
A5: Jack | C5: Jack
A6: Jason | C6: Jason
A7: Jim B | C7: Jim B
A8: Kam | C8: Kam
A9: Kevin | C9: Kevin
A10: Mike G | C10: Mike G
A11: Morrie | C11: Morrie
A12: Oz | C12: Oz
A13: Pete | C13: Pete
A14: Rich B | C14: Rich B
A15: Rich T | C15: Rich T
A16: Ryan | C16: Ryan
A17: Scott | C17: Scott
A18: Steve D | C18: Steve D
A19: Steve S | C19: Steve S
A20: Tom | C20: Tom

Sheet Sheet2
